{"text_format":"1","workbook":"xlsx","n_sheets":36,"sheets":["Portada","Créditos","Presentación","Índice","Hoja1","Hoja2","Hoja3","Hoja4","Hoja5","Hoja6","Hoja7","Hoja8","Hoja9","Hoja10","Hoja11","Hoja12","Hoja13","Hoja14","Hoja15","Hoja16","Hoja17","Hoja18","Hoja19","Hoja20","Hoja21","Hoja22","Hoja23","Hoja24","Hoja25","Hoja26","Hoja27","Hoja28","Hoja29","Hoja30","Anexo EP","Anexo PANOTRATSS"],"not_rendered":{"charts":20,"images":8,"macros":1,"external_links":0,"defined_names":28,"comments":0,"pivot_tables":0},"unopened":[],"bounds":{"document_bytes":16777216,"sheet_cells":100000,"rows_first":2000,"rows_last":500,"rows_between":2000,"halvings":0,"cell_chars":16384,"cell_head_chars":4096},"cells_cut":0,"cells_raw":0,"read":"whole","date_system":"1900"}

{"sheet":"Portada","index":0,"n_rows":0,"n_cols":0,"rows_kept":0,"cut":false,"hidden":false,"merged":[]}

{"sheet":"Créditos","index":1,"n_rows":34,"n_cols":1,"rows_kept":34,"cut":false,"hidden":false,"merged":[]}
["CONSEJERÍA DE ECONOMÍA, EMPLEO Y COMPETITIVIDAD"]
[]
["Consejero de Economía, Empleo y Competitividad"]
["Excmo. Sr. D. Manuel Giménez Rasero"]
[]
["Viceconsejera de Empleo"]
["Ilma. Sra. Doña Eva María Blázquez Agudo"]
[]
["Director General de Trabajo y Gerente del Instituto Regional"]
["de Seguridad y Salud en el Trabajo"]
["Ilmo. Sr. D. Álvaro Rodríguez de la Calle"]
[]
["Elaboración"]
["Dirección"]
["Álvaro Rodríguez de la Calle"]
["y Gerente del Instituto Regional de Seguridad y Salud en el Trabajo"]
[]
["Autoría"]
["Dolores Núñez Munaiz"]
["Unidad Técnica de Estadística de Accidentes de trabajo y Enfermedades"]
["Profesionales"]
[]
["Unidad Técnica de Divulgación y Difusión"]
["Alberto Muñoz González"]
["Germán Blázquez López"]
["Rebeca Robles Gayo"]
[]
["© Comunidad de Madrid, 2020"]
[]
["Edita: Instituto Regional de Seguridad y Salud en el Trabajo"]
["Ventura Rodríguez, 7. 28008 Madrid"]
["Tel.: 900 713 123 Fax.: 91 420 61 17"]
["irsst.formacion@madrid.org"]
["http://www.comunidad.madrid"]

{"sheet":"Presentación","index":2,"n_rows":8,"n_cols":1,"rows_kept":8,"cut":false,"hidden":false,"merged":[]}
["Presentación"]
["El Instituto Regional de Seguridad y Salud en el Trabajo de la Comunidad de Madrid desarrolla acciones dirigidas a la mejora de las condiciones de seguridad y salud en el trabajo, así como a la lucha contra la siniestralidad laboral. En este sentido, y entre otras actuaciones, desde este organismo se realiza el análisis e investigación de las enfermedades profesionales declaradas en la región, con el fin de conocer las causas que las originan e impulsar medidas que contribuyan a reducir las causas de las mismas."]
["Con la publicación de este informe, la Consejería de Economía, Empleo y Hacienda, a través del Instituto Regional de Seguridad y Salud en el Trabajo, ofrece a todos los agentes involucrados una información imprescindible en relación con la caracterización pormenorizada de las enfermedades profesionales declaradas en el primer semestre de 2020. De este modo, se presenta información sobre el perfil del trabajador, las características de la empresa o los agentes causantes de las mismas entre otras. Asimismo, el informe proporciona información sobre patologías no traumáticas declaradas en el mismo periodo. "]
["Desde el Instituto Regional de Seguridad y Salud en el Trabajo de la Comunidad de Madrid esperamos que la publicación de este documento se convierta en una herramienta de gran utilidad para todos los que desde cualquier ámbito, público o privado, dedicamos importantes recursos para el diseño y elaboración de estrategias en la lucha contra la siniestralidad laboral."]
[]
["D. Álvaro Rodríguez de la Calle"]
["Director General de Trabajo"]
["y Gerente del Instituto Regional de Seguridad y Salud en el Trabajo"]

{"sheet":"Índice","index":3,"n_rows":50,"n_cols":1,"rows_kept":50,"cut":false,"hidden":false,"merged":[[44,0,44,6],[10,0,10,5]]}
["IRSST INSTITUTO REGIONAL DE SEGURIDAD Y SALUD EN EL TRABAJO"]
["COMUNIDAD DE MADRID"]
[]
["ENERO JUNIO 2020"]
[]
["PARTES COMUNICADOS ENERO-JUNIO 2020"]
[]
["T1.1 Partes comunicados por sexo y situación"]
["T1.2 Partes comunicados por sexo, situación y sector de actividad"]
["T1.3 Partes comunicados por sexo y grupos de edad"]
["T1.3.1 Partes de enfermedad comunicados por sexo situación por Edad Media  "]
["T1.4 Partes comunicados por sexo, situación y nacionalidad"]
["T1.5 Partes comunicados por sexo situación según ocupación"]
["T2.1 Partes comunicados por grupo de enfermedad y sexo  "]
["T2.2 Partes comunicados por grupo de enfermedad y edad  "]
["T2.3 Partes comunicados por grupo de enfermedad , sexo y sector de actividad  "]
["T2.4 Partes comunicados por grupo de enfermedad y sección de actividad "]
["T2.5 Partes comunicados por grupo de enfermedad, agente y actividad "]
["T2.6 Partes comunicados por ocupación y grupo de enfermedad "]
[]
[]
["PARTES CERRADOS "]
[]
["T3.1 Partes de enfermedad cerrados por  grupo de enfermedad según sexo"]
["T3.2 Partes de enfermedad cerrados por grupo de enfermedad según sexo y duración media de la baja"]
["T3.3 Partes de enfermedad cerrados por  Actividad económica según sexo"]
["T3.4 Partes de enfermedad cerrados por Actividad económica según sexo y duración media de la baja en días"]
["T3.5 Partes de enfermedad cerrados según sexo y grupos de edad"]
["T3.6 Partes de enfermedad cerrados según grupos de edad y enfermedades profesionales"]
["T3.7 Partes de enfermedad cerrados según sexo y ocupación"]
["T3.8 Partes de enfermedad cerrados según grupo de enfermedad y ocupación"]
["T3.9 Partes de enfermedad cerrados según grupo de enfermedad y causa de cierre"]
["T3.10 Partes de enfermedad cerrados según el número de recaídas y grupo de enfermedad"]
[]
[]
["PATOLOGÍAS NO TRAUMÁTICAS CAUSADAS POR EL TRABAJO "]
[]
["T4.1 Partes de enfermedades causadas o agravadas por el trabajo comunicados por sexo  Comunidad de Madrid"]
["T4.2 Partes de enfermedades causadas o agravadas por el trabajo comunicados por sexo, situación y enfermedad. "]
["T4.3 Partes de enfermedades causadas o agravadas por el trabajo comunicados por tipo patología, situación y categoria"]
["T4.4 Partes de enfermedades causadas o agravadas por el trabajo comunicados por sección de actividad y sexo"]
["T4.5 Partes de enfermedades causadas o agravadas por el trabajo comunicados por edad y sexo según situación"]
["T4.6 Partes de enfermedades causadas o agravadas por el trabajo comunicados por nacionalidad y sexo según situación "]
["T4.7 Partes de enfermedades causadas o agravadas por el trabajo comunicados por ocupación y sexo según situación "]
["T4.8 Partes de enfermedades causadas o agravadas por el trabajo comunicados por ocupación según categoria"]
["T 4.9 Partes de enfermedad comunicados por  grupo de enfermedad, sexo según sector de actividad "]
[]
[]
["ANEXO Enfermedades Profesionales"]
["ANEXO PANOTRATSS"]

{"sheet":"Hoja1","index":4,"n_rows":6,"n_cols":4,"rows_kept":6,"cut":false,"hidden":true,"merged":[[5,0,5,4],[0,0,0,4]]}
["T1_ Partes de enfermedad comunicados por sexo  Comunidad de Madrid"]
[{"$f":"Índice!A4","v":"ENERO JUNIO 2020"},"Total","Hombres","Mujeres"]
["Total",502,233,269]
["Con baja",332,150,182]
["Sin baja",170,83,87]
["Fuente: CEPROSS"]

{"sheet":"Hoja2","index":5,"n_rows":11,"n_cols":7,"rows_kept":11,"cut":false,"hidden":true,"merged":[[2,1,2,3],[2,4,2,6]]}
["T2_ Partes de enfermedad comunicados por sexo situación por Sectores de actividad  Comunidad de Madrid"]
[]
[null,"Con baja",null,null,"Sin baja"]
[{"$f":"Índice!A4","v":"ENERO JUNIO 2020"},"Total","Hombres","Mujeres","Total","Hombres","Mujeres"]
["Total",332,150,182,170,83,87]
["Agricultura y ganadería",0,0,0,0,0,0]
["Industria, energía y minería",69,51,18,42,30,12]
["Construcción",19,18,1,9,8,1]
["Servicios",244,81,163,119,45,74]
["No consta",0,0,0,0,0,0]
["Fuente: CEPROSS"]

{"sheet":"Hoja3","index":6,"n_rows":58,"n_cols":7,"rows_kept":58,"cut":false,"hidden":true,"merged":[[30,0,30,6],[25,5,25,6],[4,5,4,6],[4,1,4,3],[24,0,24,6],[25,1,25,3]]}
[]
[]
[]
["T1.3_ Partes de enfermedad comunicados por sexo situación por grupos de edad  Comunidad de Madrid"]
[null,"Con baja","Con baja",null,null,"Sin baja"]
[{"$f":"Hoja2!A4","v":"ENERO JUNIO 2020"},"Total","Hombres"," Mujeres","Total","Hombres"," Mujeres"]
["Total",332,150,182,170,83,87]
["2_De 16 - 19",2,1,1,0,0,0]
["3_De 20 - 24",6,3,3,6,4,2]
["4_De 25 - 29",23,11,12,10,6,4]
["5_De 30 - 34",30,14,16,21,10,11]
["6_De 35 - 39",47,17,30,17,8,9]
["7_De 40 - 44",47,16,31,26,15,11]
["8_De 45 - 49",70,34,36,39,10,29]
["9_De 50 - 54",48,23,25,28,15,13]
["10_De 55 - 59",33,18,15,14,9,5]
["11_De 60 - 64",24,11,13,9,6,3]
["12_ De 65 o más",2,2,0,0,0,0]
["Fuente: CEPROSS"]
[]
[]
[]
[]
[]
["T1.3.1 Partes de enfermedad comunicados por sexo situación por Edad Media  Comunidad de Madrid"]
[null,"Con baja","Con baja",null,null,"Sin baja"]
[null,"Total","Hombres"," Mujeres","Total","Hombres"," Mujeres"]
[{"$f":"Hoja2!A4","v":"ENERO JUNIO 2020"},"Media","Media","Media","Media","Media","Media"]
[]
["Edad ",44.5,45,44,43.6,43.7,43.6]
["Fuente: CEPROSS"]
[]
[]
[]
[]
[]
[]
[]
[]
[]
[]
[]
[]
[]
[]
[]
[]
[]
[]
[]
[]
[]
[]
[]
[]
[]
[]
["Volver índice"]

{"sheet":"Hoja4","index":7,"n_rows":29,"n_cols":7,"rows_kept":29,"cut":false,"hidden":true,"merged":[[2,1,2,3],[2,4,2,6],[0,0,0,6]]}
["T1.4 Partes de enfermedad comunicados por sexo situación y  nacionalidad  Comunidad de Madrid"]
[]
[null,"Con baja",null,null,"Sin baja"]
[{"$f":"Índice!A4","v":"ENERO JUNIO 2020"},"Total","Hombres","Mujeres","Total","Hombres","Mujeres"]
["Total",332,150,182,170,83,87]
["ESPAÑA",299,134,165,146,70,76]
["RUMANIA",10,1,9,7,4,3]
["MARRUECOS",6,5,1,3,3,0]
["VENEZUELA",4,3,1,1,0,1]
["ECUADOR",2,2,0,1,1,0]
["COLOMBIA",1,0,1,2,1,1]
["POLONIA",2,2,0,0,0,0]
["DOMINICANA (REPUBL.)",1,0,1,1,0,1]
["BULGARIA",0,0,0,2,0,2]
["URUGUAY",0,0,0,1,1,0]
["UCRANIA",1,0,1,0,0,0]
["REINO UNIDO",1,1,0,0,0,0]
["PORTUGAL",0,0,0,1,1,0]
["PERU",1,1,0,0,0,0]
["PARAGUAY",0,0,0,1,0,1]
["JAPON",1,0,1,0,0,0]
["GUINEA ECUATORIAL",0,0,0,1,0,1]
["GAMBIA",0,0,0,1,1,0]
["FILIPINAS",0,0,0,1,0,1]
["CHILE",1,0,1,0,0,0]
["BRASIL",1,1,0,0,0,0]
["BOLIVIA",1,0,1,0,0,0]
["AUSTRALIA",0,0,0,1,1,0]
["Fuente: CEPROSS"]

{"sheet":"Hoja5","index":8,"n_rows":21,"n_cols":7,"rows_kept":21,"cut":false,"hidden":true,"merged":[]}
[]
[]
[]
[]
["T1.5 Partes de enfermedad comunicados por sexo y  situación según Ocupación  Comunidad de Madrid"]
[]
[null,null,"Con baja",null,null,"Sin baja"]
[]
["Enero-Junio 2018","Total","Hombres"," Mujeres","Total","Hombres"," Mujeres"]
["Total",332,150,182,170,83,87]
["1_Directores y gerentes",1,0,1,0,0,0]
["2_Técnicos y profesionales científicos e intelectuales",42,15,27,7,3,4]
["3_Técnicos y profesionales de apoyo",25,9,16,6,4,2]
["4_Empleados contables, administrativos y otros empleados de oficina",11,2,9,11,0,11]
["5_Trabajadores de los servicios de restauración, personales, protección y vendedores",94,20,74,40,8,32]
["6_Tabajadores cualificados en el sector agrícola, ganadero, forestal y pesquero",4,4,0,4,4,0]
["7_Artesanos y trabajadores cualificados de las industrias manufactureras y la construccion (excepto los operadores de ma",52,44,8,33,30,3]
["8_Operadores de instalaciones y maquinaria, y montadores",28,24,4,11,7,4]
["9_Ocupaciones elementales",53,19,34,22,7,15]
["10_Sin asignar código",22,13,9,36,20,16]
["Fuente: CEPROSS"]

{"sheet":"Hoja6","index":9,"n_rows":14,"n_cols":4,"rows_kept":14,"cut":false,"hidden":true,"merged":[[13,0,13,4],[2,0,2,4],[4,1,4,3]]}
[]
[]
["T2.1 Partes de enfermedad comunicados por sexo y grupo de enfermedad  Comunidad de Madrid"]
[]
[]
[{"$f":"fecha_publi","v":"ENERO JUNIO 2020"},"Total","Hombres"," Mujeres"]
["Total",502,233,269]
["Grupo1_Agentes químicos",28,16,12]
["Grupo2_Agentes físicos",324,153,171]
["Grupo3_Agentes biológicos",84,24,60]
["Grupo4_Inhalación",23,17,6]
["Grupo5_Enfermedades de la piel",41,21,20]
["Grupo6_Agentes carcinógenos",2,2,0]
["Fuente: CEPROSS"]

{"sheet":"Hoja7","index":10,"n_rows":15,"n_cols":13,"rows_kept":15,"cut":false,"hidden":true,"merged":[[14,0,14,10]]}
[]
[]
[]
["T2.2 Partes de enfermedad comunicados por grupos de edad y grupo de enfermedad  Comunidad de Madrid"]
[]
[null,null,null,null,null,"Grupos de edad"]
[{"$f":"fecha_publi","v":"ENERO JUNIO 2020"},"Total","De 16-19","De 20 - 24 ","De 25 - 29 ","De 30 - 34 ","De 35 - 39 ","De 40 - 44 ","De 45 - 49 ","De 50 - 54  ","De 55 - 59  ","De 60 - 64  ","De 65 o más "]
["Total",502,2,12,33,51,64,73,109,76,47,33,2]
["Grupo1_Agentes químicos",28,1,0,4,2,6,2,2,8,1,1,1]
["Grupo2_Agentes físicos",324,1,2,11,24,36,62,80,55,31,22,0]
["Grupo3_Agentes biológicos",84,0,3,14,13,14,7,8,6,10,9,0]
["Grupo4_Inhalación",23,0,1,2,1,1,0,10,6,1,1,0]
["Grupo5_Enfermedades de la piel",41,0,6,2,11,7,2,9,1,3,0,0]
["Grupo6_Agentes carcinógenos",2,0,0,0,0,0,0,0,0,1,0,1]
["Fuente: CEPROSS"]

{"sheet":"Hoja8","index":11,"n_rows":12,"n_cols":19,"rows_kept":12,"cut":false,"hidden":true,"merged":[[2,16,2,18],[0,0,0,15],[11,0,11,15],[2,4,2,6],[2,7,2,9],[2,10,2,12],[2,13,2,15],[2,1,2,3]]}
["T2.3 Partes de enfermedad comunicados por  grupo de enfermedad, sexo según sector de actividad Comunidad de Madrid"]
[]
[" ","Total",null,null,"Agricultura y ganadería",null,null,"Industria, energía y minería",null,null,"Construcción",null,null,"Servicios",null,null,"No consta"]
[{"$f":"fecha_publi","v":"ENERO JUNIO 2020"},"Total","Hombres"," Mujeres","Total","Hombres"," Mujeres","Total","Hombres"," Mujeres","Total","Hombres"," Mujeres","Total","Hombres"," Mujeres","Total","Hombres"," Mujeres"]
["Total",502,233,269,0,0,0,111,81,30,28,26,2,363,126,237,0,0,0]
["Grupo1_Agentes químicos",28,16,12,0,0,0,9,9,0,0,0,0,19,7,12,0,0,0]
["Grupo2_Agentes físicos",324,153,171,0,0,0,76,50,26,20,18,2,228,85,143,0,0,0]
["Grupo3_Agentes biológicos",84,24,60,0,0,0,1,1,0,0,0,0,83,23,60,0,0,0]
["Grupo4_Inhalación",23,17,6,0,0,0,12,11,1,5,5,0,6,1,5,0,0,0]
["Grupo5_Enfermedades de la piel",41,21,20,0,0,0,12,9,3,3,3,0,26,9,17,0,0,0]
["Grupo6_Agentes carcinógenos",2,2,0,0,0,0,1,1,0,0,0,0,1,1,0,0,0,0]
["Fuente: CEPROSS"]

{"sheet":"Hoja9","index":12,"n_rows":24,"n_cols":8,"rows_kept":24,"cut":false,"hidden":true,"merged":[[3,0,3,7]]}
[]
[]
[]
["T2.4 Partes de enfermedad comunicados por sección de activicdad  según grupo de enfermedad Comunidad de Madrid"]
[]
[null,null,null,null,"Grupo de enfermedades"]
[{"$f":"fecha_publi","v":"ENERO JUNIO 2020"},"Total","Grupo1_Agentes químicos","Grupo2_Agentes físicos","Grupo3_Agentes biológicos","Grupo4_Inhalación","Grupo5_Enfermedades de la piel","Grupo6_Agentes carcinógenos"]
["Total",502,28,324,84,23,41,2]
["C_Industria manufacturera",106,8,72,1,12,12,1]
["E_Suministro de agua, actividades de saneamiento, gestión de residuos y descontaminación",5,1,4,0,0,0,0]
["F_Construcción",28,0,20,0,5,3,0]
["G_Comercio al por mayor y al por menor; reparación de vehículos de motor y motocicletas",118,2,104,2,2,7,1]
["H_Transporte y almacenamiento",6,0,5,1,0,0,0]
["I_Hostelería",29,1,23,0,0,5,0]
["J_Información y comunicaciones",5,0,5,0,0,0,0]
["M_Actividades profesionales, científicas y técnicas",8,1,4,2,0,1,0]
["N_Actividades administrativas y servicios auxiliares",41,4,33,2,0,2,0]
["O_Administración Pública y defensa; Seguiridad Social obligatoria",10,0,10,0,0,0,0]
["P_Educación",5,0,5,0,0,0,0]
["Q_Actividades sanitarias y de servicios sociales",94,1,12,75,0,6,0]
["R_Actividades artísticas, recreativas y de entretenimiento",11,0,10,1,0,0,0]
["S_Otros servicios",33,10,14,0,4,5,0]
["T_Actividades de los hogares como empleadores de personal doméstico; act.hogares como product bienes y servicio",3,0,3,0,0,0,0]
["Fuente: CEPROSS"]

{"sheet":"Hoja10","index":13,"n_rows":47,"n_cols":7,"rows_kept":47,"cut":false,"hidden":true,"merged":[]}
[]
[]
[]
["T2.5 Partes de enfermedad comunicados por actividad de la empresa según grupo de enfermedad y agente. Comunidad de Madrid"]
[null,"Actividad de la Empresa"]
[{"$f":"fecha_publi","v":"ENERO JUNIO 2020"},"Total","Agricultura y ganadería","Industria, energía y minería","Construcción","Servicios","No consta"]
["Total",502,0,111,28,363,0]
["Grupo1_Agentes químicos",28,0,9,0,19,0]
["A Metales",2,0,0,0,2,0]
["B Metaloides",1,0,1,0,0,0]
["E Ácidos Orgánicos",1,0,0,0,1,0]
["F Alcoholes y Fenoles",6,0,1,0,5,0]
["G Aldehídos",2,0,2,0,0,0]
["H Alifáticos",4,0,2,0,2,0]
["I Aminas e hidracinas",2,0,0,0,2,0]
["J Amoníaco",1,0,0,0,1,0]
["L Cetonas",1,0,0,0,1,0]
["N Ésteres",3,0,1,0,2,0]
["Q Isocianatos",3,0,1,0,2,0]
["R Nitroderivados",1,0,1,0,0,0]
["S Organoclorados y organofosforados",1,0,0,0,1,0]
["Grupo2_Agentes físicos",324,0,76,20,228,0]
["A Hipoacusia o sordera provocada por el ruido:",4,0,3,0,1,0]
["B Enfermedades osteoarticulares o angioneuróticas provocadas por las vibraciones mecánicas:",6,0,3,0,3,0]
["D Enf. provocadas posturas forzadas y mov. repet.; enf. por fatiga e inflamación de las vainas tendinosas, de tejidos pe",209,0,46,15,148,0]
["F Enf. provocadas posturas forzadas y mov. repet.; Parálisis de los nervios debido a la presión",90,0,23,3,64,0]
["G Enf. provocadas posturas forzadas y mov. repet.; Lesiones del menisco por mecanismos de arrancamiento y compresión aso",4,0,1,2,1,1]
["L Nódulos de las cuerdas vocales a causa de los esfuerzos sostenidos de la voz por motivos profesionales",11,0,0,0,11,0]
["Grupo3_Agentes biológicos",84,0,1,0,83,0]
["A Enf. infecciosas de las pers. que se ocupan de la prevención, asistencia médica y actividades en las que se ha probado",73,0,0,0,73,0]
["B Enfermedades infecciosas o parasitarias transmitidas al hombre por los animales o por sus productos y cadáveres",9,0,1,0,8,0]
["C Paludismo, amebiasis, tripanosomiasis, dengue, fiebre amarilla, fiebre papataci, fiebre recurrente, peste, lesishmanio",1,0,0,0,1,0]
["D Enfermedades infecciosas y parasitarias no contempladas en otros apartados: micosis, legionella y helmintiasis.",1,0,0,0,1,0]
["Grupo4_Inhalación",23,0,12,5,6,0]
["A Polvo de silice libre",4,0,2,2,0,0]
["C Polvos de amianto (asbesto)",2,0,0,2,0,0]
["E Metales sintetizados, compuestos de carburos metálicos de alto punto de fusión y metales de ligazón de bajo punto de f",4,0,4,0,0,0]
["H Sust. de alto peso molecular (sustancias de origen vegetal, animal, microorganismos,..)",7,0,5,1,1,0]
["I Sust. de bajo peso molecular (metales y sus sales, polvos de maderas, productos farmacéuticos, sustancias químico plás",6,0,1,0,5,0]
["Grupo5_Enfermedades de la piel",41,0,12,3,26,0]
["A Sustancias de bajo peso molecular por debajo de los 1.000 daltons",26,0,8,1,17,0]
["B Agentes y sustancias de alto peso molecular, por encima de los 1.000 daltons",13,0,3,2,8,0]
["C Sustancias fotosensibles exógenas",1,0,0,0,1,0]
["D Agentes infecciosos",1,0,1,0,0,0]
["Grupo6_Agentes carcinógenos",2,0,1,0,1,0]
["A Amianto",2,0,1,0,1,0]
["Fuente: CEPROSS"]

{"sheet":"Hoja11","index":14,"n_rows":45,"n_cols":12,"rows_kept":45,"cut":false,"hidden":true,"merged":[[1,0,1,6]]}
[]
["T2.6 Partes de enfermedad comunicados por ocupación  según grupo de enfermedad Comunidad de Madrid"]
[]
[{"$f":"fecha_publi","v":"ENERO JUNIO 2020"},"Total","1_Directores y gerentes","2_Técnicos y profesionales científicos e intelectuales","3_Técnicos y profesionales de apoyo","4_Empleados contables, administrativos y otros empleados de oficina","5_Trabajadores de los servicios de restauración, personales, protección y vendedores","6_Tabajadores cualificados en el sector agrícola, ganadero, forestal y pesquero","7_Artesanos y trabajadores cualificados de las industrias manufactureras y la construcción ","8_Operadores de instalaciones y maquinaria, y montadores","9_Ocupaciones elementales","10_No consta"]
["Total",502,0,111,28,363,0,{"$f":"+H6+H20+H27+H32+H38+H43","v":8},85,39,75,58]
["Grupo1_Agentes químicos",28,0,9,0,19,0,0,5,5,6,3]
["A Metales",2,0,0,0,2,0,0,0,1,0,1]
["B Metaloides",1,0,1,0,0,0,0,0,1,0,0]
["E Ácidos Orgánicos",1,0,0,0,1,0,0,0,0,0,0]
["F Alcoholes y Fenoles",6,0,1,0,5,0,0,1,0,1,0]
["G Aldehídos",2,0,2,0,0,0,0,1,0,1,0]
["H Alifáticos",4,0,2,0,2,0,0,1,2,0,0]
["I Aminas e hidracinas",2,0,0,0,2,0,0,0,0,0,1]
["J Amoníaco",1,0,0,0,1,0,0,0,0,0,0]
["L Cetonas",1,0,0,0,1,0,0,0,0,1,0]
["N Ésteres",3,0,1,0,2,0,0,1,0,2,0]
["Q Isocianatos",3,0,1,0,2,0,0,1,0,0,1]
["R Nitroderivados",1,0,1,0,0,0,0,0,1,0,0]
["S Organoclorados y organofosforados",1,0,0,0,1,0,0,0,0,1,0]
["Grupo2_Agentes físicos",324,0,76,20,228,0,7,55,25,58,42]
["A Hipoacusia o sordera provocada por el ruido:",4,0,3,0,1,0,0,3,0,0,0]
["B Enfermedades osteoarticulares o angioneuróticas provocadas por las vibraciones mecánicas:",6,0,3,0,3,0,0,1,0,1,1]
["D Enf. provocadas posturas forzadas y mov. repet.; enf. por fatiga e inflamación de las vainas tendinosas, de tejidos pe",209,0,46,15,148,0,6,40,17,42,25]
["F Enf. provocadas posturas forzadas y mov. repet.; Parálisis de los nervios debido a la presión",90,0,23,3,64,0,1,9,8,15,15]
["G Enf. provocadas posturas forzadas y mov. repet.; Lesiones del menisco por mecanismos de arrancamiento y compresión aso",4,0,1,2,1,1,0,2,0,0,1]
["L Nódulos de las cuerdas vocales a causa de los esfuerzos sostenidos de la voz por motivos profesionales",11,0,0,0,11,0,0,0,0,0,0]
["Grupo3_Agentes biológicos",84,0,1,0,83,0,1,0,0,6,4]
["A Enf. infecciosas de las pers. que se ocupan de la prevención, asistencia médica y actividades en las que se ha probado",73,0,0,0,73,0,0,0,0,6,3]
["B Enfermedades infecciosas o parasitarias transmitidas al hombre por los animales o por sus productos y cadáveres",9,0,1,0,8,0,1,0,0,0,1]
["C Paludismo, amebiasis, tripanosomiasis, dengue, fiebre amarilla, fiebre papataci, fiebre recurrente, peste, lesishmanio",1,0,0,0,1,0,0,0,0,0,0]
["D Enfermedades infecciosas y parasitarias no contempladas en otros apartados: micosis, legionella y helmintiasis.",1,0,0,0,1,0,0,0,0,0,0]
["Grupo4_Inhalación",23,0,12,5,6,0,0,12,4,2,2]
["A Polvo de silice libre",4,0,2,2,0,0,0,1,3,0,0]
["C Polvos de amianto (asbesto)",2,0,0,2,0,0,0,1,0,1,0]
["E Metales sintetizados, compuestos de carburos metálicos de alto punto de fusión y metales de ligazón de bajo punto de f",4,0,4,0,0,0,0,4,0,0,0]
["H Sust. de alto peso molecular (sustancias de origen vegetal, animal, microorganismos,..)",7,0,5,1,1,0,0,4,1,1,1]
["I Sust. de bajo peso molecular (metales y sus sales, polvos de maderas, productos farmacéuticos, sustancias químico plás",6,0,1,0,5,0,0,2,0,0,1]
["Grupo5_Enfermedades de la piel",41,0,12,3,26,0,0,12,5,2,7]
["A Sustancias de bajo peso molecular por debajo de los 1.000 daltons",26,0,8,1,17,0,0,7,3,1,4]
["B Agentes y sustancias de alto peso molecular, por encima de los 1.000 daltons",13,0,3,2,8,0,0,5,1,1,2]
["C Sustancias fotosensibles exógenas",1,0,0,0,1,0,0,0,0,0,1]
["D Agentes infecciosos",1,0,1,0,0,0,0,0,1,0,0]
["Grupo6_Agentes carcinógenos",2,0,1,0,1,0,0,1,0,1,0]
["A Amianto",2,0,1,0,1,0,0,1,0,1,0]
["Fuente: CEPROSS"]

{"sheet":"Hoja12","index":15,"n_rows":17,"n_cols":4,"rows_kept":17,"cut":false,"hidden":true,"merged":[[7,0,8,0],[16,0,16,3]]}
[]
[]
[]
[]
[]
[]
["T3.1 Partes de enfermedad cerrados por  grupo de enfermedad según género"]
[{"$f":"fecha_publi","v":"ENERO JUNIO 2020"},"Total","Hombre","Mujer"]
[]
["Total",344,129,215]
["Grupo1_Agentes químicos",17,7,10]
["Grupo2_Agentes físicos",220,89,131]
["Grupo3_Agentes biológicos",85,19,66]
["Grupo4_Inhalación",6,6,0]
["Grupo5_Enfermedades de la piel",14,6,8]
["Grupo6_Agentes carcinógenos",2,2,0]
["Fuente: CEPROSS"]

{"sheet":"Hoja13","index":16,"n_rows":15,"n_cols":7,"rows_kept":15,"cut":false,"hidden":true,"merged":[[14,0,14,6],[4,0,4,6],[5,0,6,0],[5,1,5,2],[5,3,5,4],[5,5,5,6],[6,1,6,2],[6,3,6,4],[6,5,6,6]]}
[]
[]
[]
[]
["T3.2 Partes de enfermedad cerrados por grupo de enfermedad según sexo y duración media de días de la baja"]
[{"$f":"fecha_publi","v":"ENERO JUNIO 2020"},"Total",null,"Hombre",null,"Mujer"]
[null," ",null," ",null," "]
["Total",344,74.45,129,69.77,215,77.260000000000005]
["Grupo1_Agentes químicos",17,100.29,7,75.290000000000006,10,117.8]
["Grupo2_Agentes físicos",220,96.08,89,84.28,131,104.1]
["Grupo3_Agentes biológicos",85,20.94,19,12.47,66,23.38]
["Grupo4_Inhalación",6,41.67,6,41.67,0,"."]
["Grupo5_Enfermedades de la piel",14,43.64,6,59.67,8,31.63]
["Grupo6_Agentes carcinógenos",2,63.5,2,63.5,0,"."]
["Fuente: CEPROSS"]

{"sheet":"Hoja14","index":17,"n_rows":31,"n_cols":4,"rows_kept":31,"cut":false,"hidden":true,"merged":[[6,0,6,3],[30,0,30,3]]}
[]
[]
[]
[]
[]
[]
["T3.3 Partes de enfermedad cerrados por  Actividad económica según sexo"]
[{"$f":"fecha_publi","v":"ENERO JUNIO 2020"},"Total","Hombre","Mujer"]
["Total",344,129,215]
["A_Agricultura, ganadería, silvicultura y pesca ",0,0,0]
["B_Industrias extractivas ",0,0,0]
["C_Industria manufacturera ",55,38,17]
["D_Suministro de energía eléctrica, gas, vapor y aire acondicionado ",0,0,0]
["E_Suministro de agua, actividades de saneamiento, gestión de residuos y descontaminación ",3,3,0]
["F_Construcción ",22,20,2]
["G_Comercio al por mayor y al por menor; reparación de vehículos de motor y motocicletas ",68,26,42]
["H_Transporte y almacenamiento ",5,2,3]
["I_Hostelería ",21,2,19]
["J_Información y comunicaciones ",4,1,3]
["K_Actividades financieras y de seguros",1,0,1]
["L_Actividades inmobiliarias ",0,0,0]
["M_Actividades profesionales, científicas y técnicas ",4,0,4]
["N_Actividades administrativas y servicios auxiliares",31,9,22]
["O_Administración Pública y defensa; Seguiridad Social obligatoria",7,4,3]
["P_Educación ",6,2,4]
["Q_Actividades sanitarias y de servicios sociales",94,19,75]
["R_Actividades artísticas, recreativas y de entretenimiento ",0,0,0]
["S_Otros servicios",20,3,17]
["T_Actividades de los hogares como empleadores de personal doméstico; act.hogares como product bienes y servicio ",3,0,3]
["U_Actividades de organizaciones y organismos extraterritoriales ",0,0,0]
["Fuente: CEPROSS"]

{"sheet":"Hoja15","index":18,"n_rows":29,"n_cols":7,"rows_kept":29,"cut":false,"hidden":true,"merged":[[28,0,28,6],[3,0,3,6],[4,0,5,0],[4,1,4,2],[4,3,4,4],[4,5,4,6],[5,1,5,2],[5,3,5,4],[5,5,5,6]]}
[]
[]
[]
["T3.4 Partes de enfermedad cerrados por Actividad económica según sexo y duración media de la baja en días"]
[{"$f":"fecha_publi","v":"ENERO JUNIO 2020"},"Total",null,"Hombre",null,"Mujer"]
[null," ",null," ",null," "]
["Total",344,74.45,129,69.77,215,77.260000000000005]
["A_Agricultura, ganadería, silvicultura y pesca ",0,".",0,".",0,"."]
["B_Industrias extractivas ",0,".",0,".",0,"."]
["C_Industria manufacturera ",55,70.040000000000006,38,56.74,17,99.76]
["D_Suministro de energía eléctrica, gas, vapor y aire acondicionado ",0,".",0,".",0,"."]
["E_Suministro de agua, actividades de saneamiento, gestión de residuos y descontaminación ",3,39.67,3,39.67,0,"."]
["F_Construcción ",22,108.41,20,84.8,2,344.5]
["G_Comercio al por mayor y al por menor; reparación de vehículos de motor y motocicletas ",68,88.81,26,69.040000000000006,42,101.05]
["H_Transporte y almacenamiento ",5,85.2,2,161,3,34.67]
["I_Hostelería ",21,69.67,2,228,19,53]
["J_Información y comunicaciones ",4,80.5,1,7,3,105]
["K_Actividades financieras y de seguros",1,329,0,".",1,329]
["L_Actividades inmobiliarias ",0,".",0,".",0,"."]
["M_Actividades profesionales, científicas y técnicas ",4,41.5,0,".",4,41.5]
["N_Actividades administrativas y servicios auxiliares",31,123.23,9,75.89,22,142.59]
["O_Administración Pública y defensa; Seguiridad Social obligatoria",7,104.57,4,130.75,3,69.67]
["P_Educación ",6,108.17,2,41.5,4,141.5]
["Q_Actividades sanitarias y de servicios sociales",94,29.6,19,25.32,75,30.68]
["R_Actividades artísticas, recreativas y de entretenimiento ",0,".",0,".",0,"."]
["S_Otros servicios",20,123.05,3,226.33,17,104.82]
["T_Actividades de los hogares como empleadores de personal doméstico; act.hogares como product bienes y servicio ",3,22,0,".",3,22]
["U_Actividades de organizaciones y organismos extraterritoriales ",0,".",0,".",0,"."]
["Fuente: CEPROSS"]

{"sheet":"Hoja16","index":19,"n_rows":22,"n_cols":4,"rows_kept":22,"cut":false,"hidden":true,"merged":[[5,0,5,3],[21,0,21,3]]}
[]
[]
[]
[]
[]
["T3.5 Partes de enfermedad cerrados según sexo y grupos de edad"]
[{"$f":"fecha_publi","v":"ENERO JUNIO 2020"},"Total","Hombre","Mujer"]
["Total",344,129,215]
["1_Menos de 16 ",0,0,0]
["2_De 16 - 19 ",2,1,1]
["3_De 20 - 24 ",5,3,2]
["4_De 25 - 29 ",27,12,15]
["5_De 30 - 34 ",30,10,20]
["6_De 35 - 39 ",51,17,34]
["7_De 40 - 44 ",56,18,38]
["8_De 45 - 49 ",67,27,40]
["9_De 50 - 54  ",47,20,27]
["10_De 55 - 59  ",33,12,21]
["11_De 60 - 64  ",25,8,17]
["12_ De 65 o más ",1,1,0]
["13_No consta ",0,0,0]
["Fuente: CEPROSS"]

{"sheet":"Hoja17","index":20,"n_rows":25,"n_cols":8,"rows_kept":25,"cut":false,"hidden":true,"merged":[[8,0,8,7],[24,0,24,7]]}
[]
[]
[]
[]
[]
[]
[]
[]
["T3.6 Partes de enfermedad cerrados según grupos de edad y enfermedades profesionales"]
[{"$f":"fecha_publi","v":"ENERO JUNIO 2020"},"Total","Grupo1_Agentes químicos","Grupo2_Agentes físicos","Grupo3_Agentes biológicos","Grupo4_Inhalación","Grupo5_Enfermedades de la piel","Grupo6_Agentes carcinógenos"]
["Total",344,17,220,85,6,14,2]
["1_Menos de 16 ",0,0,0,0,0,0,0]
["2_De 16 - 19 ",2,1,1,0,0,0,0]
["3_De 20 - 24 ",5,0,0,2,0,3,0]
["4_De 25 - 29 ",27,2,7,15,3,0,0]
["5_De 30 - 34 ",30,1,11,12,0,6,0]
["6_De 35 - 39 ",51,8,26,15,0,2,0]
["7_De 40 - 44 ",56,0,50,6,0,0,0]
["8_De 45 - 49 ",67,1,55,7,1,3,0]
["9_De 50 - 54  ",47,3,35,8,1,0,0]
["10_De 55 - 59  ",33,0,21,11,0,0,1]
["11_De 60 - 64  ",25,1,14,9,1,0,0]
["12_ De 65 o más ",1,0,0,0,0,0,1]
["13_No consta ",0,0,0,0,0,0,0]
["Fuente: CEPROSS"]

{"sheet":"Hoja18","index":21,"n_rows":19,"n_cols":4,"rows_kept":19,"cut":false,"hidden":true,"merged":[[4,0,4,3],[18,0,18,3]]}
[]
[]
[]
[]
["T3.7 Partes de enfermedad cerrados según sexo y ocupación"]
[{"$f":"Índice!A4","v":"ENERO JUNIO 2020"},"Total","Hombre","Mujer"]
["Total",344,129,215]
["0_Ocupaciones militares",0,0,0]
["1_Directores y gerentes",2,0,2]
["2_Técnicos y profesionales científicos e intelectuales",47,14,33]
["3_Técnicos y profesionales de apoyo",30,9,21]
["4_Empleados contables, administrativos y otros empleados de oficina",12,2,10]
["5_Trabajadores de los servicios de restauración, personales, protección y vendedores",101,15,86]
["6_Tabajadores cualificados en el sector agrícola, ganadero, forestal y pesquero",2,2,0]
["7_Artesanos y trabajadores cualificados de las industrias manufactureras y la construccion (excepto los operadores de ma",55,46,9]
["8_Operadores de instalaciones y maquinaria, y montadores",29,21,8]
["9_Ocupaciones elementales",62,19,43]
["10_Sin asignar código",4,1,3]
["Fuente: CEPROSS"]

{"sheet":"Hoja19","index":22,"n_rows":20,"n_cols":8,"rows_kept":20,"cut":false,"hidden":true,"merged":[[5,0,5,7]]}
[]
[]
[]
[]
[]
["T3.8 Partes de enfermedad cerrados según grupo de enfermedad y ocupación"]
[{"$f":"Índice!A4","v":"ENERO JUNIO 2020"},"Total","Grupo1_Agentes químicos","Grupo2_Agentes físicos","Grupo3_Agentes biológicos","Grupo4_Inhalación","Grupo5_Enfermedades de la piel","Grupo6_Agentes carcinógenos"]
["Total",344,17,220,85,6,14,2]
["0_Ocupaciones militares",0,0,0,0,0,0,0]
["1_Directores y gerentes",2,0,2,0,0,0,0]
["2_Técnicos y profesionales científicos e intelectuales",47,1,6,39,0,1,0]
["3_Técnicos y profesionales de apoyo",30,0,10,20,0,0,0]
["4_Empleados contables, administrativos y otros empleados de oficina",12,0,11,1,0,0,0]
["5_Trabajadores de los servicios de restauración, personales, protección y vendedores",101,8,67,19,0,7,0]
["6_Tabajadores cualificados en el sector agrícola, ganadero, forestal y pesquero",2,0,2,0,0,0,0]
["7_Artesanos y trabajadores cualificados de las industrias manufactureras y la construccion (excepto los operadores de ma",55,2,45,0,5,2,1]
["8_Operadores de instalaciones y maquinaria, y montadores",29,4,22,0,0,3,0]
["9_Ocupaciones elementales",62,2,53,4,1,1,1]
["10_Sin asignar código",4,0,2,2,0,0,0]
["Fuente: CEPROSS"]

{"sheet":"Hoja20","index":23,"n_rows":13,"n_cols":8,"rows_kept":13,"cut":false,"hidden":true,"merged":[[4,0,4,7]]}
[]
[]
[]
[]
["T3.9 Partes de enfermedad cerrados según grupo de enfermedad y causa de cierre"]
[{"$f":"Índice!A4","v":"ENERO JUNIO 2020"},"Total","Grupo1_Agentes químicos","Grupo2_Agentes físicos","Grupo3_Agentes biológicos","Grupo4_Inhalación","Grupo5_Enfermedades de la piel","Grupo6_Agentes carcinógenos"]
["Total",344,17,220,85,6,14,2]
["1. Alta por curación en todos los casos y/o alta laboral",264,13,193,42,5,11,0]
["2. Alta con propuesta de IP",6,3,1,0,0,1,1]
["3. Alta con propuesta de cambio de trabajo",2,1,0,0,0,1,0]
["5. Otras causas",71,0,26,42,1,1,1]
["7. Sin baja laboral en último parte",1,0,0,1,0,0,0]
["Fuente: CEPROSS"]

{"sheet":"Hoja21","index":24,"n_rows":17,"n_cols":8,"rows_kept":17,"cut":false,"hidden":true,"merged":[[6,0,6,7]]}
[]
[]
[]
[]
[]
[]
["T3.10 Partes de enfermedad cerrados según grupo de enfermedad y recaídas"]
[{"$f":"Índice!A4","v":"ENERO JUNIO 2020"},"Total","Grupo1_Agentes químicos","Grupo2_Agentes físicos","Grupo3_Agentes biológicos","Grupo4_Inhalación","Grupo5_Enfermedades de la piel","Grupo6_Agentes carcinógenos"]
["Total",344,17,220,85,6,14,2]
["Ninguna recaída",195,12,97,72,4,8,2]
["1",99,3,82,10,2,2,0]
["2",27,0,24,2,0,1,0]
["3",13,2,9,1,0,1,0]
["4",6,0,5,0,0,1,0]
["5",1,0,1,0,0,0,0]
["6",3,0,2,0,0,1,0]
["Fuente: CEPROSS"]

{"sheet":"Hoja22","index":25,"n_rows":11,"n_cols":10,"rows_kept":11,"cut":false,"hidden":true,"merged":[[10,0,10,9],[4,0,4,9],[5,0,6,0],[5,1,5,3],[5,4,5,6],[5,7,5,9]]}
[]
[]
[]
[]
["T4.1 Partes de enfermedades causadas o agravadas por el trabajo comunicados por sexo  Comunidad de Madrid"]
[{"$f":"Índice!A4","v":"ENERO JUNIO 2020"},"Total",null,null,"Hombres",null,null," Mujeres"]
[null,"Total","Enfermedad causada por el trabajo","Enfermedad o defecto agravado por el trabajo","Total","Enfermedad causada por el trabajo","Enfermedad o defecto agravado por el trabajo","Total","Enfermedad causada por el trabajo","Enfermedad o defecto agravado por el trabajo"]
["Total",143,100,43,93,64,29,50,36,14]
["Con baja",91,57,34,65,44,21,26,13,13]
["Sin baja",52,43,9,28,20,8,24,23,1]
["Fuente: PANOTRATSS"]

{"sheet":"Hoja23","index":26,"n_rows":31,"n_cols":254,"rows_kept":31,"cut":false,"hidden":true,"merged":[]}
[null,null,null,null,null,null,null,null,null,null,null,null,null,null,null,null,null,null,null,null,null,null,null,null,null,null,null,null,null,null,null,null,null,null,null,null,null,null,null,null,null,null,null,null,null,null,null,null,null,null,null,null,null,null,null,null,null,null,null,null,null,null,null,null,null,null,null,null,null,null,null,null,null,null,null,null,null,null,null,null,null,null,null,null,null,null,null,null,null,null,null,null,null,null,null,null,null,null,null,null,null,null,null,null,null,null,null,null,null,null,null,null,null,null,null,null,null,null,null,null,null,null,null,null,null,null,null,null,null,null,null,null,null,null,null,null,null,null,null,null,null,null,null,null,null,null,null,null,null,null,null,null,null,null,null,null,null,null,null,null,null,null,null,null,null,null,null,null,null,null,null,null,null,null,null,null,null,null,null,null,null,null,null,null,null,null,null,null,null,null,null,null,null,null,null,null,null,null,null,null,null,null,null,null,null,null,null,null,null,null,null,null,null,null,null,null,null,null,null,null,null,null,null,null,null,null,null,null,null,null,null,null,null,null,null,null,null,null,null,null,null,null,null,null,null,null,null,null,null,null,null,null," 01. Enfermedades infecciosas y parasitarias",2]
[null,null,null,null,null,null,null,null,null,null,null,null,null,null,null,null,null,null,null,null,null,null,null,null,null,null,null,null,null,null,null,null,null,null,null,null,null,null,null,null,null,null,null,null,null,null,null,null,null,null,null,null,null,null,null,null,null,null,null,null,null,null,null,null,null,null,null,null,null,null,null,null,null,null,null,null,null,null,null,null,null,null,null,null,null,null,null,null,null,null,null,null,null,null,null,null,null,null,null,null,null,null,null,null,null,null,null,null,null,null,null,null,null,null,null,null,null,null,null,null,null,null,null,null,null,null,null,null,null,null,null,null,null,null,null,null,null,null,null,null,null,null,null,null,null,null,null,null,null,null,null,null,null,null,null,null,null,null,null,null,null,null,null,null,null,null,null,null,null,null,null,null,null,null,null,null,null,null,null,null,null,null,null,null,null,null,null,null,null,null,null,null,null,null,null,null,null,null,null,null,null,null,null,null,null,null,null,null,null,null,null,null,null,null,null,null,null,null,null,null,null,null,null,null,null,null,null,null,null,null,null,null,null,null,null,null,null,null,null,null,null,null,null,null,null,null,null,null,null,null,null,null," 04. Enfermedades endocrinas",16]
[null,null,null,null,null,null,null,null,null,null,null,null,null,null,null,null,null,null,null,null,null,null,null,null,null,null,null,null,null,null,null,null,null,null,null,null,null,null,null,null,null,null,null,null,null,null,null,null,null,null,null,null,null,null,null,null,null,null,null,null,null,null,null,null,null,null,null,null,null,null,null,null,null,null,null,null,null,null,null,null,null,null,null,null,null,null,null,null,null,null,null,null,null,null,null,null,null,null,null,null,null,null,null,null,null,null,null,null,null,null,null,null,null,null,null,null,null,null,null,null,null,null,null,null,null,null,null,null,null,null,null,null,null,null,null,null,null,null,null,null,null,null,null,null,null,null,null,null,null,null,null,null,null,null,null,null,null,null,null,null,null,null,null,null,null,null,null,null,null,null,null,null,null,null,null,null,null,null,null,null,null,null,null,null,null,null,null,null,null,null,null,null,null,null,null,null,null,null,null,null,null,null,null,null,null,null,null,null,null,null,null,null,null,null,null,null,null,null,null,null,null,null,null,null,null,null,null,null,null,null,null,null,null,null,null,null,null,null,null,null,null,null,null,null,null,null,null,null,null,null,null,null," 05. Desórdenes mentales",5]
["T4.2 Partes de enfermedades causadas o agravadas por el trabajo comunicados por género, situación y enfermedad. Comunidad de Madrid",null,null,null,null,null,null,null,null,null,null,null,null,null,null,null,null,null,null,null,null,null,null,null,null,null,null,null,null,null,null,null,null,null,null,null,null,null,null,null,null,null,null,null,null,null,null,null,null,null,null,null,null,null,null,null,null,null,null,null,null,null,null,null,null,null,null,null,null,null,null,null,null,null,null,null,null,null,null,null,null,null,null,null,null,null,null,null,null,null,null,null,null,null,null,null,null,null,null,null,null,null,null,null,null,null,null,null,null,null,null,null,null,null,null,null,null,null,null,null,null,null,null,null,null,null,null,null,null,null,null,null,null,null,null,null,null,null,null,null,null,null,null,null,null,null,null,null,null,null,null,null,null,null,null,null,null,null,null,null,null,null,null,null,null,null,null,null,null,null,null,null,null,null,null,null,null,null,null,null,null,null,null,null,null,null,null,null,null,null,null,null,null,null,null,null,null,null,null,null,null,null,null,null,null,null,null,null,null,null,null,null,null,null,null,null,null,null,null,null,null,null,null,null,null,null,null,null,null,null,null,null,null,null,null,null,null,null,null,null,null,null,null,null,null,null,null,null,null,null,null,null," 06. Enfermedades del sistema nervioso central y periférico",5]
[{"$f":"Hoja22!A6","v":"ENERO JUNIO 2020"},null,"Total",null,null,"Hombres",null,null," Mujeres",null,null,null,null,null,null,null,null,null,null,null,null,null,null,null,null,null,null,null,null,null,null,null,null,null,null,null,null,null,null,null,null,null,null,null,null,null,null,null,null,null,null,null,null,null,null,null,null,null,null,null,null,null,null,null,null,null,null,null,null,null,null,null,null,null,null,null,null,null,null,null,null,null,null,null,null,null,null,null,null,null,null,null,null,null,null,null,null,null,null,null,null,null,null,null,null,null,null,null,null,null,null,null,null,null,null,null,null,null,null,null,null,null,null,null,null,null,null,null,null,null,null,null,null,null,null,null,null,null,null,null,null,null,null,null,null,null,null,null,null,null,null,null,null,null,null,null,null,null,null,null,null,null,null,null,null,null,null,null,null,null,null,null,null,null,null,null,null,null,null,null,null,null,null,null,null,null,null,null,null,null,null,null,null,null,null,null,null,null,null,null,null,null,null,null,null,null,null,null,null,null,null,null,null,null,null,null,null,null,null,null,null,null,null,null,null,null,null,null,null,null,null,null,null,null,null,null,null,null,null,null,null,null,null,null,null,null,null,null,null,null,null,null," 07. Enfermedades de los sentidos",17]
[null,null,"Total","Con baja","Sin baja","Total","Con baja","Sin baja","Total","Con baja","Sin baja",null,null,null,null,null,null,null,null,null,null,null,null,null,null,null,null,null,null,null,null,null,null,null,null,null,null,null,null,null,null,null,null,null,null,null,null,null,null,null,null,null,null,null,null,null,null,null,null,null,null,null,null,null,null,null,null,null,null,null,null,null,null,null,null,null,null,null,null,null,null,null,null,null,null,null,null,null,null,null,null,null,null,null,null,null,null,null,null,null,null,null,null,null,null,null,null,null,null,null,null,null,null,null,null,null,null,null,null,null,null,null,null,null,null,null,null,null,null,null,null,null,null,null,null,null,null,null,null,null,null,null,null,null,null,null,null,null,null,null,null,null,null,null,null,null,null,null,null,null,null,null,null,null,null,null,null,null,null,null,null,null,null,null,null,null,null,null,null,null,null,null,null,null,null,null,null,null,null,null,null,null,null,null,null,null,null,null,null,null,null,null,null,null,null,null,null,null,null,null,null,null,null,null,null,null,null,null,null,null,null,null,null,null,null,null,null,null,null,null,null,null,null,null,null,null,null,null,null,null,null,null,null,null,null,null,null,null,null,null,null,null," 09. Enfermedades del sistema cardiocirculatorio",7]
["Total",null,143,91,52,93,65,28,50,26,24,null,null,null,null,null,null,null,null,null,null,null,null,null,null,null,null,null,null,null,null,null,null,null,null,null,null,null,null,null,null,null,null,null,null,null,null,null,null,null,null,null,null,null,null,null,null,null,null,null,null,null,null,null,null,null,null,null,null,null,null,null,null,null,null,null,null,null,null,null,null,null,null,null,null,null,null,null,null,null,null,null,null,null,null,null,null,null,null,null,null,null,null,null,null,null,null,null,null,null,null,null,null,null,null,null,null,null,null,null,null,null,null,null,null,null,null,null,null,null,null,null,null,null,null,null,null,null,null,null,null,null,null,null,null,null,null,null,null,null,null,null,null,null,null,null,null,null,null,null,null,null,null,null,null,null,null,null,null,null,null,null,null,null,null,null,null,null,null,null,null,null,null,null,null,null,null,null,null,null,null,null,null,null,null,null,null,null,null,null,null,null,null,null,null,null,null,null,null,null,null,null,null,null,null,null,null,null,null,null,null,null,null,null,null,null,null,null,null,null,null,null,null,null,null,null,null,null,null,null,null,null,null,null,null,null,null,null,null,null,null,null," 11. Enfermedades del sistema digestivo",2]
[" 01. Enfermedades infecciosas y parasitarias"," 1 b Otras enfermedades víricas",1,1,0,1,1,0,0,0,0,null,null,null,null,null,null,null,null,null,null,null,null,null,null,null,null,null,null,null,null,null,null,null,null,null,null,null,null,null,null,null,null,null,null,null,null,null,null,null,null,null,null,null,null,null,null,null,null,null,null,null,null,null,null,null,null,null,null,null,null,null,null,null,null,null,null,null,null,null,null,null,null,null,null,null,null,null,null,null,null,null,null,null,null,null,null,null,null,null,null,null,null,null,null,null,null,null,null,null,null,null,null,null,null,null,null,null,null,null,null,null,null,null,null,null,null,null,null,null,null,null,null,null,null,null,null,null,null,null,null,null,null,null,null,null,null,null,null,null,null,null,null,null,null,null,null,null,null,null,null,null,null,null,null,null,null,null,null,null,null,null,null,null,null,null,null,null,null,null,null,null,null,null,null,null,null,null,null,null,null,null,null,null,null,null,null,null,null,null,null,null,null,null,null,null,null,null,null,null,null,null,null,null,null,null,null,null,null,null,null,null,null,null,null,null,null,null,null,null,null,null,null,null,null,null,null,null,null,null,null,null,null,null,null,null,null,null,null,null,null,null," 12. Enfermedades de la piel",11]
[" 04. Enfermedades endocrinas"," 4 a Trastornos del metabolismo",13,0,13,0,0,0,13,0,13,null,null,null,null,null,null,null,null,null,null,null,null,null,null,null,null,null,null,null,null,null,null,null,null,null,null,null,null,null,null,null,null,null,null,null,null,null,null,null,null,null,null,null,null,null,null,null,null,null,null,null,null,null,null,null,null,null,null,null,null,null,null,null,null,null,null,null,null,null,null,null,null,null,null,null,null,null,null,null,null,null,null,null,null,null,null,null,null,null,null,null,null,null,null,null,null,null,null,null,null,null,null,null,null,null,null,null,null,null,null,null,null,null,null,null,null,null,null,null,null,null,null,null,null,null,null,null,null,null,null,null,null,null,null,null,null,null,null,null,null,null,null,null,null,null,null,null,null,null,null,null,null,null,null,null,null,null,null,null,null,null,null,null,null,null,null,null,null,null,null,null,null,null,null,null,null,null,null,null,null,null,null,null,null,null,null,null,null,null,null,null,null,null,null,null,null,null,null,null,null,null,null,null,null,null,null,null,null,null,null,null,null,null,null,null,null,null,null,null,null,null,null,null,null,null,null,null,null,null,null,null,null,null,null,null,null,null,null,null,null,null," 13. Enfermedades del aparato locomotor",111]
[" 05. Desórdenes mentales"," 5 n Otros desórdenes mentales",2,2,0,1,1,0,1,1,0,null,null,null,null,null,null,null,null,null,null,null,null,null,null,null,null,null,null,null,null,null,null,null,null,null,null,null,null,null,null,null,null,null,null,null,null,null,null,null,null,null,null,null,null,null,null,null,null,null,null,null,null,null,null,null,null,null,null,null,null,null,null,null,null,null,null,null,null,null,null,null,null,null,null,null,null,null,null,null,null,null,null,null,null,null,null,null,null,null,null,null,null,null,null,null,null,null,null,null,null,null,null,null,null,null,null,null,null,null,null,null,null,null,null,null,null,null,null,null,null,null,null,null,null,null,null,null,null,null,null,null,null,null,null,null,null,null,null,null,null,null,null,null,null,null,null,null,null,null,null,null,null,null,null,null,null,null,null,null,null,null,null,null,null,null,null,null,null,null,null,null,null,null,null,null,null,null,null,null,null,null,null,null,null,null,null,null,null,null,null,null,null,null,null,null,null,null,null,null,null,null,null,null,null,null,null,null,null,null,null,null,null,null,null,null,null,null,null,null,null,null,null,null,null,null,null,null,null,null,null,null,null,null,null,null,null,null,null,null,null,null," 18.  Otros síntomas y observaciones clínicas o de laboratorio anormales no clasificados en otras parte",2]
[" 06. Enfermedades del sistema nervioso central y periférico"," 6 a Enfermedades agudas del sistema nervioso central",3,3,0,2,2,0,1,1,0,null,null,null,null,null,null,null,null,null,null,null,null,null,null,null,null,null,null,null,null,null,null,null,null,null,null,null,null,null,null,null,null,null,null,null,null,null,null,null,null,null,null,null,null,null,null,null,null,null,null,null,null,null,null,null,null,null,null,null,null,null,null,null,null,null,null,null,null,null,null,null,null,null,null,null,null,null,null,null,null,null,null,null,null,null,null,null,null,null,null,null,null,null,null,null,null,null,null,null,null,null,null,null,null,null,null,null,null,null,null,null,null,null,null,null,null,null,null,null,null,null,null,null,null,null,null,null,null,null,null,null,null,null,null,null,null,null,null,null,null,null,null,null,null,null,null,null,null,null,null,null,null,null,null,null,null,null,null,null,null,null,null,null,null,null,null,null,null,null,null,null,null,null,null,null,null,null,null,null,null,null,null,null,null,null,null,null,null,null,null,null,null,null,null,null,null,null,null,null,null,null,null,null,null,null,null,null,null,null,null,null,null,null,null,null,null,null,null,null,null,null,null,null,null,null,null,null,null,null,null,null,null,null,null,null,null,null,null,null,null,null," 19. Lesiones, heridas, intoxicaciones y otros factores externos",5]
[null," 6 e Trastornos localizados de los nervios",1,0,1,0,0,0,1,0,1,null,null,null,null,null,null,null,null,null,null,null,null,null,null,null,null,null,null,null,null,null,null,null,null,null,null,null,null,null,null,null,null,null,null,null,null,null,null,null,null,null,null,null,null,null,null,null,null,null,null,null,null,null,null,null,null,null,null,null,null,null,null,null,null,null,null,null,null,null,null,null,null,null,null,null,null,null,null,null,null,null,null,null,null,null,null,null,null,null,null,null,null,null,null,null,null,null,null,null,null,null,null,null,null,null,null,null,null,null,null,null,null,null,null,null,null,null,null,null,null,null,null,null,null,null,null,null,null,null,null,null,null,null,null,null,null,null,null,null,null,null,null,null,null,null,null,null,null,null,null,null,null,null,null,null,null,null,null,null,null,null,null,null,null,null,null,null,null,null,null,null,null,null,null,null,null,null,null,null,null,null,null,null,null,null,null,null,null,null,null,null,null,null,null,null,null,null,null,null,null,null,null,null,null,null,null,null,null,null,null,null,null,null,null,null,null,null,null,null,null,null,null,null,null,null,null,null,null,null,null,null,null,null,null,null,null,null,null,null,null,null," 23. Factores que afectan el estado sanitario",2]
[" 07. Enfermedades de los sentidos"," 7 a Alteraciones de la visión y ceguera",1,0,1,1,0,1,0,0,0]
[null," 7 b Afecciones de la conjuntiva",1,0,1,1,0,1,0,0,0]
[null," 7 j Enfermedades del odio interno",1,0,1,1,0,1,0,0,0]
[null," 7 k Otras enfermedades del oido",1,1,0,1,1,0,0,0,0]
[null," 7 n Otras enfermedades de los sentidos",7,4,3,6,4,2,1,0,1]
[" 09. Enfermedades del sistema cardiocirculatorio"," 9 a Enfermedad cardíaca isquémica",4,3,1,4,3,1,0,0,0]
[null," 9 f Otras enfermedades del sistema circulatorio",2,2,0,2,2,0,0,0,0]
[" 10. Enfermedades del sistema respiratorio"," 10 a Enfermedades infecciosas del tracto respiratorio superior",1,0,1,0,0,0,1,0,1]
[" 12. Enfermedades de la piel"," 12 a Infecciones de la piel y subcutáneas",2,2,0,2,2,0,0,0,0]
[null," 12 e Urticaria y eritema",3,1,2,1,1,0,2,0,2]
[null," 12 f Enfermedades de la piel y subcutáneas debidas a agentes externos",1,0,1,1,0,1,0,0,0]
[null," 12 h Otras enfermedades de la piel",1,1,0,1,1,0,0,0,0]
[" 13. Enfermedades del aparato locomotor"," 13 c Enfermedades de la columna vertebral y de la espalda",55,42,13,37,26,11,18,16,2]
[null," 13 e Osteopatías y condropatías",2,2,0,1,1,0,1,1,0]
[null," 13 n Otras enfermedades del aparato locomotor",36,24,12,27,18,9,9,6,3]
[" 18.  Otros síntomas y observaciones clínicas o de laboratorio anormales no clasificados en otras parte"," 18 n Otros sintomas y observaciones clínicas o de laboratorio anormales n.c.e.o.p.",1,1,0,0,0,0,1,1,0]
[" 19. Lesiones, heridas, intoxicaciones y otros factores externos"," 19 c Lesiones por otras causas externas",3,2,1,3,2,1,0,0,0]
[" 23. Factores que afectan el estado sanitario"," 23 a Exámenes en personas potencialmente expuestas a enfermedades infecciosas o parasitarias",1,0,1,0,0,0,1,0,1]
["Fuente: PANOTRATSS"]

{"sheet":"Hoja24","index":27,"n_rows":25,"n_cols":5,"rows_kept":25,"cut":false,"hidden":true,"merged":[[6,0,6,1]]}
[]
[]
[]
[]
[]
["T4.3 Partes de enfermedades causadas o agravadas por el trabajo comunicados por tipo patología, situación y categoria"]
[{"$f":"Índice!A4","v":"ENERO JUNIO 2020"},null,"Con baja","Sin baja","Total"]
["Total",null,91,52,{"$f":"+C8+D8","v":143}]
["Enfermedad causada por el trabajo"," 01. Enfermedades infecciosas y parasitarias",1,0,{"$f":"+C9+D9","v":1}]
[null," 04. Enfermedades endocrinas",0,13,13]
[null," 05. Desórdenes mentales",2,0,2]
[null," 06. Enfermedades del sistema nervioso central y periférico",1,1,2]
[null," 07. Enfermedades de los sentidos",5,5,10]
[null," 09. Enfermedades del sistema cardiocirculatorio",2,1,3]
[null," 12. Enfermedades de la piel",4,3,7]
[null," 13. Enfermedades del aparato locomotor",40,18,58]
[null," 19. Lesiones, heridas, intoxicaciones y otros factores externos",2,1,3]
[null," 23. Factores que afectan el estado sanitario",0,1,1]
["Enfermedad o defecto agravado por el trabajo"," 06. Enfermedades del sistema nervioso central y periférico",2,0,2]
[null," 07. Enfermedades de los sentidos",0,1,1]
[null," 09. Enfermedades del sistema cardiocirculatorio",3,0,3]
[null," 10. Enfermedades del sistema respiratorio",0,1,1]
[null," 13. Enfermedades del aparato locomotor",28,7,35]
[null," 18.  Otros síntomas y observaciones clínicas o de laboratorio anormales no clasificados en otras parte",1,0,1]
["Fuente: PANOTRATSS"]

{"sheet":"Hoja25","index":28,"n_rows":31,"n_cols":7,"rows_kept":31,"cut":false,"hidden":true,"merged":[[3,0,3,6],[4,0,6,0],[4,1,4,3],[4,4,4,6]]}
[]
[]
[]
["T4.4 Partes de enfermedades causadas o agravadas por el trabajo comunicados por sección de actividad y género"]
[{"$f":"Hoja24!A7","v":"ENERO JUNIO 2020"},"Con baja",null,null,"Sin baja"]
[null,"Total","Hombres"," Mujeres","Total","Hombres"," Mujeres"]
[null,"Recuento","Recuento","Recuento","Recuento","Recuento","Recuento"]
["Total",91,65,26,52,28,24]
["A_Agricultura, ganadería, silvicultura y pesca",0,0,0,0,0,0]
["B_Industrias extractivas",0,0,0,0,0,0]
["C_Industria manufacturera",10,9,1,4,4,0]
["D_Suministro de energía eléctrica, gas, vapor y aire acondicionado",0,0,0,0,0,0]
["E_Suministro de agua, actividades de saneamiento, gestión de residuos y descontaminación",0,0,0,0,0,0]
["F_Construcción",11,11,0,7,7,0]
["G_Comercio al por mayor y al por menor; reparación de vehículos de motor y motocicletas",23,18,5,6,5,1]
["H_Transporte y almacenamiento",3,3,0,1,1,0]
["I_Hostelería",7,5,2,2,2,0]
["J_Información y comunicaciones",2,1,1,0,0,0]
["K_Actividades financieras y de seguros",0,0,0,13,0,13]
["L_Actividades inmobiliarias",0,0,0,0,0,0]
["M_Actividades profesionales, científicas y técnicas",2,2,0,0,0,0]
["N_Actividades administrativas y servicios auxiliares",15,12,3,13,6,7]
["O_Administración Pública y defensa; Seguridad Social obligatoria",3,0,3,0,0,0]
["P_Educación",0,0,0,0,0,0]
["Q_Actividades sanitarias y de servicios sociales",11,2,9,5,2,3]
["R_Actividades artísticas, recreativas y de entretenimiento",1,0,1,0,0,0]
["S_Otros servicios",2,2,0,1,1,0]
["T_Actividades de los hogares como empleadores de personal doméstico; act.hogares como product bienes y servicio",1,0,1,0,0,0]
["U_Actividades de organizaciones y organismos extraterritoriales",0,0,0,0,0,0]
["No Consta",0,0,0,0,0,0]
["Fuente: PANOTRATSS"]

{"sheet":"Hoja26","index":29,"n_rows":24,"n_cols":7,"rows_kept":24,"cut":false,"hidden":true,"merged":[[6,0,8,0],[6,1,6,3],[6,4,6,6]]}
[]
[]
[]
[]
[]
["T4.5 Partes de enfermedades causadas o agravadas por el trabajo comunicados por edad y sexo según situación"]
[{"$f":"Hoja25!A5","v":"ENERO JUNIO 2020"},"Con baja",null,null,"Sin baja"]
[null,"Total","Hombres"," Mujeres","Total","Hombres"," Mujeres"]
[null,"Recuento","Recuento","Recuento","Recuento","Recuento","Recuento"]
["Total",91,65,26,52,28,24]
["1_Menos de 16",0,0,0,0,0,0]
["2_De 16 - 19",0,0,0,0,0,0]
["3_De 20 - 24",7,4,3,3,2,1]
["4_De 25 - 29",7,5,2,2,1,1]
["5_De 30 - 34",9,9,0,6,4,2]
["6_De 35 - 39",16,15,1,4,2,2]
["7_De 40 - 44",11,7,4,13,9,4]
["8_De 45 - 49",14,10,4,9,2,7]
["9_De 50 - 54",4,3,1,10,5,5]
["10_De 55 - 59",15,6,9,5,3,2]
["11_De 60 - 64",6,4,2,0,0,0]
["12_ De 65 o más",2,2,0,0,0,0]
["13_No consta",0,0,0,0,0,0]
["Fuente: PANOTRATSS"]

{"sheet":"Hoja27","index":30,"n_rows":17,"n_cols":72,"rows_kept":17,"cut":false,"hidden":true,"merged":[[4,0,5,0],[4,1,4,3],[4,4,4,6]]}
[]
[]
[]
["T4.6 Partes de enfermedades causadas o agravadas por el trabajo comunicados por nacionalidad y sexo según situación ordenados por frecuencia"]
[{"$f":"Hoja26!A7","v":"ENERO JUNIO 2020"},"Con baja",null,null,"Sin baja"]
[null,"Total","Hombres"," Mujeres","Total","Hombres"," Mujeres"]
["Total",91,65,26,52,28,24]
["ESPAÑA",79,55,24,48,24,24]
["COLOMBIA",4,4,0,0,0,0]
["RUMANIA",2,1,1,1,1,0]
["MARRUECOS",2,2,0,1,1,0]
["ECUADOR",1,1,0,1,1,0]
["UCRANIA",1,1,0,0,0,0,null,null,null,null,null,null,null,null,null,null,null,null,null,null,null,null,null,null,null,null,null,null,null,null,null,null,null,null,null,null,null,null,null,null,null,null,null,null,null,null,null,null,null,null,null,null,null,null,null,null,null,null,null,null,null,null,null,null,null,null,null,"ESPAÑA",{"$f":"+B8+E8","v":127},null,{"$f":"+B8+E8","v":127}]
["PARAGUAY",1,0,1,0,0,0,null,null,null,null,null,null,null,null,null,null,null,null,null,null,null,null,null,null,null,null,null,null,null,null,null,null,null,null,null,null,null,null,null,null,null,null,null,null,null,null,null,null,null,null,null,null,null,null,null,null,null,null,null,null,null,null,null,null,null,null,null,{"$f":"A9","v":"COLOMBIA"},{"$f":"+B9+E9","v":4},null,4]
["HONDURAS",0,0,0,1,1,0,null,null,null,null,null,null,null,null,null,null,null,null,null,null,null,null,null,null,null,null,null,null,null,null,null,null,null,null,null,null,null,null,null,null,null,null,null,null,null,null,null,null,null,null,null,null,null,null,null,null,null,null,null,null,null,null,null,null,null,null,null,"RUMANIA",3,null,3]
["BULGARIA",1,1,0,0,0,0,null,null,null,null,null,null,null,null,null,null,null,null,null,null,null,null,null,null,null,null,null,null,null,null,null,null,null,null,null,null,null,null,null,null,null,null,null,null,null,null,null,null,null,null,null,null,null,null,null,null,null,null,null,null,null,null,null,null,null,null,null,"resto",{"$f":"+B7+E7-B8-E8-B9-E9-B10-E10","v":9}]
["Fuente: PANOTRATSS"]

{"sheet":"Hoja28","index":31,"n_rows":22,"n_cols":7,"rows_kept":22,"cut":false,"hidden":true,"merged":[[21,0,21,6],[7,0,8,0],[7,1,7,3],[7,4,7,6]]}
[]
[]
[]
[]
[]
[]
["T4.7 Partes de enfermedades causadas o agravadas por el trabajo comunicados por ocupación y género según situación "]
[{"$f":"Hoja27!$A$5","v":"ENERO JUNIO 2020"},"Con baja",null,null,"Sin baja"]
[null,"Total","Hombres"," Mujeres","Total","Hombres"," Mujeres"]
["Total",91,65,26,52,28,24]
["1_Directores y gerentes",0,0,0,1,1,0]
["2_Técnicos y profesionales científicos e intelectuales",0,0,0,8,0,8]
["3_Técnicos y profesionales de apoyo",5,4,1,6,1,5]
["4_Empleados contables, administrativos y otros empleados de oficina",5,2,3,1,0,1]
["5_Trabajadores de los servicios de restauración, personales, protección y vendedores",27,12,15,2,2,0]
["6_Tabajadores cualificados en el sector agrícola, ganadero, forestal y pesquero",2,2,0,0,0,0]
["7_Artesanos y trabajadores cualificados de las industrias manufactureras y la construccion (excepto los operadores de ma",16,16,0,8,7,1]
["8_Operadores de instalaciones y maquinaria, y montadores",12,12,0,0,0,0]
["9_Ocupaciones elementales",22,15,7,5,3,2]
["10_Sin asignar código",2,2,0,21,14,7]
[]
["Fuente: PANOTRATSS"]

{"sheet":"Hoja29","index":32,"n_rows":20,"n_cols":16,"rows_kept":20,"cut":false,"hidden":true,"merged":[[6,0,6,14],[19,0,19,14]]}
[]
[]
[]
[]
[]
[]
["T4.8 Partes de enfermedades causadas o agravadas por el trabajo comunicados por ocupación según categoria"]
[{"$f":"Hoja27!$A$5","v":"ENERO JUNIO 2020"},"Total"," 01. Enfermedades infecciosas y parasitarias"," 04. Enfermedades endocrinas"," 05. Desórdenes mentales"," 06. Enfermedades del sistema nervioso central y periférico"," 07. Enfermedades de los sentidos"," 09. Enfermedades del sistema cardiocirculatorio"," 10. Enfermedades del sistema respiratorio"," 11. Enfermedades del sistema digestivo"," 12. Enfermedades de la piel"," 13. Enfermedades del aparato locomotor"," 18.  Otros síntomas y observaciones clínicas o de laboratorio anormales no clasificados en otras parte"," 19. Lesiones, heridas, intoxicaciones y otros factores externos"," 23. Factores que afectan el estado sanitario"," 23. Factores que afectan el estado sanitario"]
["Total",143,1,13,2,4,11,6,1,7,93,1,3,1,3,1]
["1_Directores y gerentes",1,0,0,0,0,1,0,0,0,0,0,0,0,0,0]
["2_Técnicos y profesionales científicos e intelectuales",8,0,7,0,0,1,0,0,0,0,0,0,0,0,1]
["3_Técnicos y profesionales de apoyo",11,0,4,0,0,0,0,0,0,7,0,0,0,0,0]
["4_Empleados contables, administrativos y otros empleados de oficina",6,0,1,0,3,0,0,0,0,1,1,0,0,0,0]
["5_Trabajadores de los servicios de restauración, personales, protección y vendedores",29,0,0,1,0,2,3,0,0,23,0,0,0,0,0]
["6_Tabajadores cualificados en el sector agrícola, ganadero, forestal y pesquero",2,0,0,0,0,0,0,0,0,2,0,0,0,0,0]
["7_Artesanos y trabajadores cualificados de las industrias manufactureras y la construccion (excepto los operadores de ma",24,1,0,0,0,3,3,1,3,12,0,1,0,0,0]
["8_Operadores de instalaciones y maquinaria, y montadores",12,0,0,1,0,0,0,0,1,10,0,0,0,0,0]
["9_Ocupaciones elementales",27,0,0,0,1,2,0,0,1,23,0,0,0,0,0]
["10_Sin asignar código",23,0,1,0,0,2,0,0,2,15,0,2,1,3,0]
["Fuente: PANOTRATSS"]

{"sheet":"Hoja30","index":33,"n_rows":26,"n_cols":12,"rows_kept":26,"cut":false,"hidden":true,"merged":[[6,0,7,0],[6,1,6,3],[6,4,6,6],[6,7,6,8],[6,9,6,11]]}
[]
[]
[]
[]
[]
["T 4.9 Partes de enfermedad comunicados por  grupo de enfermedad, sexo según sector de actividad "]
[{"$f":"Hoja27!$A$5","v":"ENERO JUNIO 2020"},"Total",null,null,"Industria, energía y minería",null,null,"Construcción",null,"Servicios"]
[null,"Total","Hombres"," Mujeres","Total","Hombres"," Mujeres","Total","Hombres","Total","Hombres"," Mujeres"]
["Total",143,93,50,14,13,1,18,18,111,62,49]
[" 01. Enfermedades infecciosas y parasitarias",1,1,0,0,0,0,1,1,0,0,0]
[" 02. Neoplasias",0,0,0,0,0,0,0,0,0,0,0]
[" 03. Enfermedades de la sangre y del sistema inmunológico",0,0,0,0,0,0,0,0,0,0,0]
[" 04. Enfermedades endocrinas",13,0,13,0,0,0,0,0,13,0,13]
[" 05. Desórdenes mentales",2,1,1,0,0,0,0,0,2,1,1]
[" 06. Enfermedades del sistema nervioso central y periférico",4,2,2,0,0,0,0,0,4,2,2]
[" 07. Enfermedades de los sentidos",11,10,1,1,1,0,0,0,10,9,1]
[" 09. Enfermedades del sistema cardiocirculatorio",6,6,0,1,1,0,2,2,3,3,0]
[" 10. Enfermedades del sistema respiratorio",1,0,1,0,0,0,0,0,1,0,1]
[" 11. Enfermedades del sistema digestivo",0,0,0,0,0,0,0,0,0,0,0]
[" 12. Enfermedades de la piel",7,5,2,1,1,0,1,1,5,3,2]
[" 13. Enfermedades del aparato locomotor",93,65,28,11,10,1,13,13,69,42,27]
[" 14. Enfermedades del sistema genitourinario",0,0,0,0,0,0,0,0,0,0,0]
[" 18.  Otros síntomas y observaciones clínicas o de laboratorio anormales no clasificados en otras parte",1,0,1,0,0,0,0,0,1,0,1]
[" 19. Lesiones, heridas, intoxicaciones y otros factores externos",3,3,0,0,0,0,1,1,2,2,0]
[" 23. Factores que afectan el estado sanitario",1,0,1,0,0,0,0,0,1,0,1]
["Fuente: PANOTRATSS"]

{"sheet":"Anexo EP","index":34,"n_rows":1947,"n_cols":6,"rows_kept":1947,"cut":false,"hidden":false,"merged":[[4,0,5,0],[4,1,5,1],[4,4,5,4],[4,5,5,5]]}
["Volver índice"]
[]
["ANEXO"]
["Cuadro de enfermedades profesionales (codificación)"]
["Grupo","Agente","Sub-","Acti-","Código","Enfermedades profesionales con la relación de las principales actividades capaces de producirlas"]
[null,null,"agente","vidad"]
[1,null,null,null,null,"Enfermedades profesionales causadas por agentes químicos"]
[null,"A",null,null,null,"METALES"]
[null,null,1,null,null,"Arsénico y sus compuestos"]
[null,null,null,null,null,"Preparación, empleo y manipulación del arsénico y sus compuestos, y especialmente:"]
[null,null,null,1,"1A0101","Minería del arsénico, fundición de cobre, producción y uso de pesticidas arsenicales, herbicidas e insecticidas, producción de vidrio."]
[null,null,null,2,"1A0102","Calcinación, fundición y refino de minerales arseníferos."]
[null,null,null,3,"1A0103","Fabricación y empleo de insecticidas y anticriptográmicos que contengan compuestos de arsénico."]
[null,null,null,4,"1A0104","Fabricación y empleo de colorantes y pinturas que contengan compuestos de arsénico."]
[null,null,null,5,"1A0105","Tratamiento de cueros y maderas con agentes de conservación a base de compuestos arsenicales."]
[null,null,null,6,"1A0106","Conservación de pieles."]
[null,null,null,7,"1A0107","Pirotecnia."]
[null,null,null,8,"1A0108","Procesos o procedimientos que impliquen el uso y/o desprendimiento de trihidruro de arsénico (hidrógeno arseniado/arsina/arsenamina)."]
[null,null,null,9,"1A0109","Industria farmacéutica."]
[null,null,null,10,"1A0110","Preparación del ácido sulfúrico partiendo de piritas arseníferas."]
[null,null,null,11,"1A0111","Empleo del anhídrido arsenioso en la fabricación del vidrio."]
[null,null,null,12,"1A0112","Fabricación de acero al silicio."]
[null,null,null,13,"1A0113","Desincrustado de calderas."]
[null,null,null,14,"1A0114","Decapado de metales."]
[null,null,null,15,"1A0115","Limpieza de metales."]
[null,null,null,16,"1A0116","Revestimiento electrolítico de metales."]
[null,null,null,17,"1A0117","Industria de caucho."]
[null,null,null,18,"1A0118","Fabricación y utilización de insecticidas, herbicidas y fungicidas."]
[null,null,null,19,"1A0119","Industria de colorantes arsenicales."]
[null,null,null,20,"1A0120","Aleación con otros metales (Pb). Refino de Cu, Pb, Zn, Co (presente como impureza)."]
[null,null,null,21,"1A0121","Producción de cobre."]
[null,null,null,22,"1A0122","Industria de la madera: imprimación de madera con sales de arsénico, mecanización de maderas imprimadas con compuestos de arsénico."]
[null,null,null,23,"1A0123","Fabricación de vidrio: preparación y mezcla de la pasta, fusión y colada, manipulación de aditivos."]
[null,null,null,24,"1A0124","Taxidermia."]
[null,null,null,25,"1A0125","Restauradores de arte."]
[null,null,null,26,"1A0126","Utilización de compuestos arsenicales en electrónica."]
[null,null,null,27,"1A0127","Fabricación de municiones y baterías de polarización."]
[null,null,2,null,null,"Berilio (glucinio) y sus compuestos"]
[null,null,null,null,null,"Manipulación y empleo del berilio y sus compuestos (fluoruro doble de glucinio y sodio), y especialmente:"]
[null,null,null,1,"1A0201","Extracción y metalurgia de berilio, industria aeroespacial, industria nuclear."]
[null,null,null,2,"1A0202","Extracción del berilio de los minerales."]
[null,null,null,3,"1A0203","Preparación de aleaciones y compuestos de berilio."]
[null,null,null,4,"1A0204","Fabricación de cristales, cerámicas, porcelanas y productos altamente refractarios."]
[null,null,null,5,"1A0205","Fabricación de barras de control de reactores nucleares."]
[null,null,3,null,null,"Cadmio y sus compuestos:"]
[null,null,null,null,null,"Preparación y empleo industrial de cadmio, y especialmente:"]
[null,null,null,1,"1A0301","Preparación del cadmio por procesado del zinc, cobre o plomo."]
[null,null,null,2,"1A0302","Fabricación de acumuladores de níquel-cadmio."]
[null,null,null,3,"1A0303","Fabricación de pigmentos cadmíferos para pinturas, esmaltes, materias plásticas, papel, caucho, pirotecnia."]
[null,null,null,4,"1A0304","Fabricación de lámparas fluorescentes."]
[null,null,null,5,"1A0305","Cadmiado electrolítico."]
[null,null,null,6,"1A0306","Soldadura y oxicorte de piezas con cadmio."]
[null,null,null,7,"1A0307","Procesado de residuos que contengan cadmio."]
[null,null,null,8,"1A0308","Fabricación de barras de control de reactores nucleares."]
[null,null,null,9,"1A0309","Fabricación de células fotoeléctricas."]
[null,null,null,10,"1A0310","Fabricación de varillas de soldadura."]
[null,null,null,11,"1A0311","Trabajos en horno de fundición de hierro o acero."]
[null,null,null,12,"1A0312","Fusión y colada de vidrio."]
[null,null,null,13,"1A0313","Aplicación por proyección de pinturas y barnices que contengan cadmio."]
[null,null,null,14,"1A0314","Barnizado y esmaltado de cerámica."]
[null,null,null,15,"1A0315","Tratamiento de residuos peligrosos en actividades de saneamiento público."]
[null,null,null,16,"1A0316","Fabricación de pesticidas."]
[null,null,null,17,"1A0317","Fabricación de amalgamas dentales."]
[null,null,null,18,"1A0318","Fabricación de joyas."]
[null,null,4,null,null,"Cromo trivalente y sus compuestos"]
[null,null,null,null,null,"Preparación, empleo y manipulación de los compuestos de cromo, en especial los cromatos, dicromatos alcalinos y el ácido crómico, principalmente:"]
[null,null,null,1,"1A0401","Fabricación de catalizadores, productos químicos para la curtición, y productos de tratamiento de la madera que contengan compuestos de cromo."]
[null,null,null,2,"1A0402","Fabricación y empleo de pigmentos, colorantes y pinturas a base de compuestos de cromo."]
[null,null,null,3,"1A0403","Aserrado y mecanizado de madera tratada con compuestos de cromo."]
[null,null,null,4,"1A0404","Aplicación por proyección de pinturas y barnices que contengan cromo."]
[null,null,null,5,"1A0405","Curtido al cromo de pieles."]
[null,null,null,6,"1A0406","Preparación de clichés de fotograbado por coloides bicromados."]
[null,null,null,7,"1A0407","Fabricación de cerillas o fósforos."]
[null,null,null,8,"1A0408","Galvanoplastia y tratamiento de superficies de metales con cromo."]
[null,null,null,9,"1A0409","Decapado y limpieza de metales y vidrios (ácido sulfocrómico o ácido crómico)."]
[null,null,null,10,"1A0410","Fabricación de cromatos alcalinos."]
[null,null,null,11,"1A0411","Litograbados."]
[null,null,null,12,"1A0412","Fabricación de aceros inoxidables."]
[null,null,null,13,"1A0413","Trabajos que implican soldadura y oxicorte de aceros inoxidables."]
[null,null,null,14,"1A0414","Fabricación de cemento y sus derivados."]
[null,null,null,15,"1A0415","Procesado de residuos que contengan cromo."]
[null,null,5,null,null,"Fósforo y sus compuestos"]
[null,null,null,null,null,"Preparación, empleo y manipulación del fósforo, y especialmente:"]
[null,null,null,1,"1A0501","Fabricación, empleo y manipulación del fósforo blanco."]
[null,null,null,2,"1A0502","Fabricación del fósforo rojo."]
[null,null,null,3,"1A0503","Procesos en que puede producirse fosfina, tales como la generación de acetileno, la limpieza de metales con ácido fosfórico, etc."]
[null,null,null,4,"1A0504","Fabricación de cerillas."]
[null,null,null,5,"1A0505","Fabricación y utilización de insecticidas o rodenticidas."]
[null,null,null,6,"1A0506","Utilización del fósforo, del ácido fosfórico y de compuestos inorgánicos de fósforo en las industrias química, farmacéutica, gráfica y en la producción de productos agrícolas."]
[null,null,null,7,"1A0507","Extracción del fósforo de los minerales que lo contienen y de los huesos."]
[null,null,null,8,"1A0508","Fabricación y utilización de ferrosilicio, manganosiliceo, carburos de calcio y de cianamida cálcica cuando contienen residuos de fósforo y cuando esas operaciones se hacen en presencia de humedad."]
[null,null,null,9,"1A0509","Fabricación de explosivos y detonadores."]
[null,null,6,null,null,"Manganeso y sus compuestos"]
[null,null,null,null,null,"Extracción, preparación, transporte, manipulación y empleo del manganeso y sus compuestos, y especialmente:"]
[null,null,null,1,"1A0601","Extracción, manipulación, transporte y tratamiento de la pirolusita, la manganita, el silomelano y la rodoprosita."]
[null,null,null,2,"1A0602","Fabricación de aleaciones ferrosas y no ferrosas con bióxido de manganeso, especialmente ferromanganeso (acero Martin-Siemens)."]
[null,null,null,3,"1A0603","Fabricación de pilas secas."]
[null,null,null,4,"1A0604","Fabricación de vidrio al manganeso."]
[null,null,null,5,"1A0605","Fabricación de briquetes de manganeso."]
[null,null,null,6,"1A0606","Soldadura con compuestos del manganeso."]
[null,null,null,7,"1A0607","Preparación de esmaltes."]
[null,null,null,8,"1A0608","Preparación de permanganato potásico."]
[null,null,null,9,"1A0609","Fabricación de colorantes y secantes que contengan compuestos de manganeso."]
[null,null,null,10,"1A0610","Envejecimiento de tejas."]
[null,null,null,11,"1A0611","Manipulación y transporte de escorias Thomas."]
[null,null,null,12,"1A0612","Preparación, utilización, manutención y transportes de abonos con sulfato de manganeso."]
[null,null,null,13,"1A0613","Fabricación de baterías."]
[null,null,null,14,"1A0614","Industria química como agente oxidante, preparación de oxígeno, cloro, fabricación de aditivos alimentarios; utilización como agente antidetonante."]
[null,null,null,15,"1A0615","Soldadura con electrodos de manganeso."]
[null,null,null,16,"1A0616","Curtido de pieles."]
[null,null,null,17,"1A0617","Uso de compuestos órgano mangánicos como aditivos de fuel oil y algunas naftas sin plomo."]
[null,null,7,null,null,"Mercurio y sus compuestos"]
[null,null,null,null,null,"Extracción, tratamiento, preparación, empleo y manipulación del mercurio, de sus amalgamas, de sus combinaciones y de todo producto que lo contenga, y especialmente:"]
[null,null,null,1,"1A0701","Extracción y recuperación del metal en las minas y en los residuos industriales."]
[null,null,null,2,"1A0702","Tratamiento de minerales auríferos y argentíferos."]
[null,null,null,3,"1A0703","Dorado, plateado, estañado, bronceado y damasquinado con ayuda del mercurio o sus sales."]
[null,null,null,4,"1A0704","Electrólisis con mercurio."]
[null,null,null,5,"1A0705","Producción electrolítica de clorina."]
[null,null,null,6,"1A0706","Preparación de zinc amalgamado para pilas eléctricas."]
[null,null,null,7,"1A0707","Fabricación y reparación de acumuladores eléctricos de mercurio."]
[null,null,null,8,"1A0708","Fabricación de baterías."]
[null,null,null,9,"1A0709","Fabricación y reparación de termómetros, barómetros, bombas de mercurio, lámparas de incandescencia, lámparas radiofólicas, tubos radiográficos, rectificadores de corriente y otros aparatos que lo contengan."]
[null,null,null,10,"1A0710","Trabajos en laboratorios de fotografía."]
[null,null,null,11,"1A0711","Empleo del mercurio o de sus compuestos como catalizadores."]
[null,null,null,12,"1A0712","Preparación y utilización de amalgamas y compuestos del mercurio."]
[null,null,null,13,"1A0713","Fabricación y empleo de pigmentos y pinturas anticorrosivas a base de cinabrio."]
[null,null,null,14,"1A0714","Preparación y tratamiento del pelo en pieles y materias análogas."]
[null,null,null,15,"1A0715","Preparación y empleo de fungicidas para la conservación de los granos."]
[null,null,null,16,"1A0716","Fabricación y empleo de cebos de fulminatos de mercurio."]
[null,null,null,17,"1A0717","Preparación de especialidades farmacéuticas que lo contengan."]
[null,null,8,null,null,"Níquel y sus compuestos"]
[null,null,null,1,"1A0801","Fundición y refino de níquel, producción de acero inoxidable, fabricación de baterías."]
[null,null,null,2,"1A0802","Producción de níquel por el proceso Mond."]
[null,null,null,3,"1A0803","Niquelado electrolítico de los metales."]
[null,null,null,4,"1A0804","Trabajos de bisutería."]
[null,null,null,5,"1A0805","Fabricación de aleaciones con níquel (cobre, manganeso, zinc, cromo, hierro, molibdeno)."]
[null,null,null,6,"1A0806","Fabricación de aceros especiales al níquel (ferroniquel)."]
[null,null,null,7,"1A0807","Fabricación de acumuladores al níquel-cadmio."]
[null,null,null,8,"1A0808","Empleo como catalizador en la industria química."]
[null,null,null,9,"1A0809","Trabajos que implican soldadura y oxicorte de acero inoxidable."]
[null,null,null,10,"1A0810","Trabajos en horno de fundición de hierro y de acero inoxidable."]
[null,null,null,11,"1A0811","Desbarbado y limpieza de piezas de fundición."]
[null,null,null,12,"1A0812","Industria de cerámica y vidrio."]
[null,null,null,13,"1A0813","Aplicación por proyección de pinturas y barnices que contengan níquel."]
[null,null,null,14,"1A0814","Procesado de residuos que contengan níquel."]
[null,null,9,null,null,"Plomo y sus compuestos"]
[null,null,null,null,null,"Extracción, tratamiento, preparación y empleo del plomo, sus minerales, sus aleaciones, sus combinaciones y de todos los productos que lo contengan, y especialmente:"]
[null,null,null,1,"1A0901","Extracción, tratamiento, metalurgia, refinado, fundición, laminado y vaciado del plomo, de sus aleaciones y de metales plumbíferos."]
[null,null,null,2,"1A0902","Fabricación, soldadura, rebabado y pulido de objetos de plomo o sus aleaciones."]
[null,null,null,3,"1A0903","Estañado con ayuda de aleaciones de plomo."]
[null,null,null,4,"1A0904","Recuperación de plomo viejo y de metales plumbíferos."]
[null,null,null,5,"1A0905","Fabricación de zinc; fusión de zinc viejo y de plomo en lingotes."]
[null,null,null,6,"1A0906","Temple en baño de plomo y trefilado de los aceros templados en el baño de plomo."]
[null,null,null,7,"1A0907","Revestimiento de metales por pulverización de plomo o el llenado de vacíos."]
[null,null,null,8,"1A0908","Fabricación y reparación de acumuladores de plomo."]
[null,null,null,9,"1A0909","Fabricación de municiones y artículos pirotécnicos."]
[null,null,null,10,"1A0910","Fabricación y aplicación de pinturas, lacas, barnices o tintas a base de compuestos de plomo."]
[null,null,null,11,"1A0911","Trabajos con soplete de materias recubiertas con pinturas plumbíferas."]
[null,null,null,12,"1A0912","Trabajos de fontanería."]
[null,null,null,13,"1A0913","Trabajos de imprenta."]
[null,null,null,14,"1A0914","Cromolitografía efectuada con polvos plumbíferos."]
[null,null,null,15,"1A0915","Talla de diamantes donde se usen «gotas» de plomo."]
[null,null,null,16,"1A0916","Industria del vidrio."]
[null,null,null,17,"1A0917","Industria de la cerámica y alfarería."]
[null,null,null,18,"1A0918","Industria de la construcción."]
[null,null,null,19,"1A0919","Fabricación y manipulación de los óxidos y sales de plomo."]
[null,null,null,20,"1A0920","Utilización de compuestos orgánicos de plomo en la fabricación de materias plásticas."]
[null,null,null,21,"1A0921","Fabricación y manipulación de derivados alcoilados del plomo (plomo tetrametilo, plomo tetraetilo): preparación y manipulación de las gasolinas que los contengan y limpieza de los tanques."]
[null,null,null,22,"1A0922","Preparación y empleo de insecticidas con compuestos de plomo."]
[null,null,10,null,null,"Talio y sus compuestos"]
[null,null,null,1,"1A1001","Extracción del talio de minerales de pirita."]
[null,null,null,2,"1A1002","Preparación, manipulación y empleo de rodenticidas."]
[null,null,null,3,"1A1003","Producción y empleo de sales de talio."]
[null,null,null,4,"1A1004","Utilización del talio y sus compuestos en la industria farmacéutica, industria del vidrio, en la fabricación de colorantes y pigmentos y en la pirotecnia."]
[null,null,null,5,"1A1005","Fabricación de células fotoeléctricas sensibles al infrarrojo."]
[null,null,11,null,null,"Vanadio y sus compuestos"]
[null,null,null,null,null,"Obtención y empleo del vanadio y sus compuestos o de productos que lo contengan, y especialmente:"]
[null,null,null,1,"1A1101","Producción de vanadio metálico."]
[null,null,null,2,"1A1102","Empleo de óxidos de vanadio como catalizadores en procesos de oxidación de la industria química y como reveladores y sensibilizadores fotográficos."]
[null,null,null,3,"1A1103","Limpiezas de calderas y tanques, hornos de fuel-oil."]
[null,null,null,4,"1A1104","Preparación de pentóxidos de vanadio usado, entre otros fines, en la producción de minerales de aluminio."]
[null,null,null,5,"1A1105","Fabricación de ferrovanadio."]
[null,"B",null,null,null,"METALOIDES"]
[null,null,1,null,null,"Antimonio y derivados"]
[null,null,null,null,null,"Trabajos que exponen a la inhalación de polvos, humos y vapores de antimonio, en especial:"]
[null,null,null,1,"1B0101","Extracción de minerales que contienen antimonio y sus procesos de molienda, tamizado y concentrado."]
[null,null,null,2,"1B0102","Envasado del óxido de antimonio."]
[null,null,null,3,"1B0103","Soldadura con antimonio."]
[null,null,null,4,"1B0104","Fabricación de semiconductores."]
[null,null,null,5,"1B0105","Fabricación de placas para baterías y material para forrado de cables."]
[null,null,null,6,"1B0106","Fabricación de pinturas, barnices, cristal, cerámica (pentóxido de antimonio)."]
[null,null,null,7,"1B0107","Fabricación de explosivos y de pigmentos para la industria del caucho (trisulfuro de antimonio)."]
[null,null,null,8,"1B0108","Uso en la industria del caucho y farmacéutica (pentacloruro de antimonio)."]
[null,null,null,9,"1B0109","Fabricación de colorantes y uso en cerámica (trifluoruro de antimonio)."]
[null,"C",null,null,null,"HALÓGENOS"]
[null,null,1,null,null,"Bromo y sus compuestos inorgánicos"]
[null,null,null,null,null,"Producción, empleo y manipulación del bromo y de sus compuestos inorgánicos, y principalmente:"]
[null,null,null,1,"1C0101","Producción del bromo por desplazamiento del cloro."]
[null,null,null,2,"1C0102","Producción de compuestos inorgánicos del bromo."]
[null,null,null,3,"1C0103","Fabricación de aditivos combustibles."]
[null,null,null,4,"1C0104","Utilización de bromuros inorgánicos como agentes reductores y catalizadores."]
[null,null,null,5,"1C0105","Industria fotográfica."]
[null,null,null,6,"1C0106","Agente de blanqueo."]
[null,null,null,7,"1C0107","Desinfección del agua."]
[null,null,null,8,"1C0108","Compuesto antidetonante de la gasolina."]
[null,null,null,9,"1C0109","Extracción de oro."]
[null,null,null,10,"1C0110","Industria química y farmacéutica."]
[null,null,2,null,null,"Cloro y sus compuestos inorgánicos"]
[null,null,null,null,null,"Producción, empleo y manipulación del cloro y de sus compuestos inorgánicos, y principalmente:"]
[null,null,null,1,"1C0201","Proceso electrolítico de producción de cloro."]
[null,null,null,2,"1C0202","Extracción y licuefacción del cloro."]
[null,null,null,3,"1C0203","Transporte y manipulación del cloro licuado."]
[null,null,null,4,"1C0204","Fabricación de derivados clorados en la industria química y farmacéutica."]
[null,null,null,5,"1C0205","Procesos de blanqueo y decoloración en las industrias, textil, papelera y de fibras artificiales."]
[null,null,null,6,"1C0206","Utilización de cloro en tratamiento de aguas."]
[null,null,null,7,"1C0207","Pirotecnia."]
[null,null,null,8,"1C0208","Fabricación de cerillas y fulminantes."]
[null,null,null,9,"1C0209","Empleo como herbicida y defoliante."]
[null,null,3,null,null,"Flúor y sus compuestos"]
[null,null,null,null,null,"Extracción de minerales fluorados, fabricación del ácido fluorhídrico, manipulación y empleo de él o de sus derivados y especialmente:"]
[null,null,null,1,"1C0301","Extracción de los compuestos de flúor de los minerales (espato-flúor y criolita)."]
[null,null,null,2,"1C0302","Fabricación del aluminio."]
[null,null,null,3,"1C0303","Fabricación de compuestos de flúor orgánicos e inorgánicos."]
[null,null,null,4,"1C0304","Utilización de los compuestos de flúor en la extracción y refinado de metales (del níquel, del cobre, del oro, de la plata)."]
[null,null,null,5,"1C0305","Empleo de los fluoruros en las fundiciones y para recubrir las varillas soldadoras."]
[null,null,null,6,"1C0306","Empleo de ácido fluorhídrico en los procesos químicos como agente de ataque (industria del vidrio, decapado de metales, limpieza del grafito, de los metales, de los cristales, etc.) y como catalizador."]
[null,null,null,7,"1C0307","Empleo de fluoruros como mordiente en el tintado de lana."]
[null,null,null,8,"1C0308","Empleo de fluoruros como agente de blanqueo."]
[null,null,null,9,"1C0309","Utilización en la industria alimenticia (conservas de jugos de frutas, azúcares, espirituosos, fermentación de la cerveza, etc.)."]
[null,null,null,10,"1C0310","Empleo de compuestos de flúor como insecticida, pesticida, rodenticida y para conservación de la madera."]
[null,null,null,11,"1C0311","Tratamiento de cueros y pieles."]
[null,null,4,null,null,"Yodo y sus compuestos inorgánicos"]
[null,null,null,null,null,"Producción, empleo y manipulación de yodo y de sus compuestos inorgánicos, y especialmente:"]
[null,null,null,1,"1C0401","Utilización del yodo como agente oxidante."]
[null,null,null,2,"1C0402","Extracción del yodo a partir de algas, del salitre de Chile, y en el curso de ciertas operaciones como el refinado de petróleo."]
[null,null,null,3,"1C0403","Utilización en la industria química, farmacéutica y fotográfica."]
[null,"D",null,null,null,"ÁCIDOS INORGÁNICOS"]
[null,null,1,null,null,"Ácido nítrico"]
[null,null,null,1,"1D0101","Fabricación de ácido nítrico."]
[null,null,null,2,"1D0102","Producción de abonos orgánicos, explosivos, nitrocelulosa, seda artificial y cuero sintético, barnices, lacas, colorantes y colodium."]
[null,null,null,3,"1D0103","Decapado, fijación, mordentado, afinado damasquinado, revestimiento electrolítico de metales."]
[null,null,null,4,"1D0104","Grabado al agua fuerte."]
[null,null,null,5,"1D0105","Fabricación de fieltros y perlas de vidrio."]
[null,null,null,6,"1D0106","Producción de nitratos metálicos, ácidos oxálicos, ftálico o sulfúrico, de nitritos y ácidos nitrosos, de trinitrofenol, de trinitrotolueno, de nitroglicerina, de dinitrato de etilenglicol."]
[null,null,null,7,"1D0107","Fabricación de joyas, industria farmacéutica y ciertos procedimientos de impresión."]
[null,null,2,null,null,"Ácido sulfúrico y óxidos de azufre"]
[null,null,null,null,null,"Anhídrido sulfuroso (dióxido de azufre):"]
[null,null,null,1,"1D0201","Producción de ácido sulfúrico."]
[null,null,null,2,"1D0202","Refino de minerales ricos en azufre."]
[null,null,null,3,"1D0203","Procesos en que interviene la combustión de carbones ricos en azufre."]
[null,null,null,null,null,"Ácido sulfúrico:"]
[null,null,null,4,"1D0204","Producción, almacenamiento y manipulación de ácido sulfúrico."]
[null,null,null,5,"1D0205","Fabricación de papel encerado."]
[null,null,null,6,"1D0206","Industria de explosivos."]
[null,null,null,7,"1D0207","Refinado de aceites vegetales."]
[null,null,null,8,"1D0208","Carbonizado de tejidos de lana."]
[null,null,null,9,"1D0209","Purificación de petróleo."]
[null,null,null,10,"1D0210","Usos como ácido para acumulador en la electrolisis, en la industria química (producción de abonos) y laboratorios."]
[null,null,null,null,null,"Dióxido de azufre:"]
[null,null,null,11,"1D0211","Combustión del azufre (carburantes fósiles) y refinerías de minerales metálicos."]
[null,null,null,12,"1D0212","Usos como refrigerante, vulcanización de caucho, agente de blanqueo y para la producción de ácido sulfúrico."]
[null,null,null,null,null,"Trióxido sulfúrico:"]
[null,null,null,13,"1D0213","Producto intermediario en la producción del ácido sulfúrico y del oleum; se utiliza para la sulfonación de los ácidos orgánicos."]
[null,null,3,null,null,"Ácido sulfhídrico"]
[null,null,null,1,"1D0301","Trabajos en fosas de putrefacción de mataderos o instalaciones de curtidos."]
[null,null,null,2,"1D0302","Trabajos de exhumación de cadáveres."]
[null,null,null,3,"1D0303","Trabajos de alcantarillado y cloacas."]
[null,null,null,4,"1D0304","Trabajos subterráneos."]
[null,null,null,5,"1D0305","Excavaciones."]
[null,null,null,6,"1D0306","Enriado de cáñamo y del esparto."]
[null,null,null,7,"1D0307","Procesos de la industria química en que interviene el hidrógeno sulfurado."]
[null,null,null,8,"1D0308","Fabricación de fibras textiles sintéticas."]
[null,null,null,9,"1D0309","Refinerías de petróleo."]
[null,null,null,10,"1D0310","Fabricación de gases industriales."]
[null,null,null,11,"1D0311","Refinerías de azúcar."]
[null,null,4,null,null,"Ácido cianhídrico, cianuros, compuestos de cianógeno y acrilonitrilos"]
[null,null,null,1,"1D0401","Preparación de ácido cianhídrico líquido, cianuros, ferrocianuros y otros derivados."]
[null,null,null,2,"1D0402","Utilización del ácido cianhídrico gaseoso en la lucha contra los insectos parásitos en agricultura y contra los roedores."]
[null,null,null,3,"1D0403","Obtención de metales preciosos (oro y plata) por cianuración."]
[null,null,null,4,"1D0404","Fabricación de joyas."]
[null,null,null,5,"1D0405","Empleo de cianuro en las operaciones de galvanoplastia (niquelado, cadmiado, cobrizado, etc.)."]
[null,null,null,6,"1D0406","Tratamiento térmico de piezas metálicas."]
[null,null,null,7,"1D0407","Fabricación de «plexiglás» (acetonacianhidrina)."]
[null,null,null,8,"1D0408","Utilización de acrilonitrilo como pesticida."]
[null,null,null,9,"1D0409","Fabricación y manipulación de cianamida cálcica y su utilización como abono."]
[null,null,null,10,"1D0410","Producción de acrilatos, sales de amonio, cianógeno y otras sustancias químicas de síntesis."]
[null,null,null,11,"1D0411","Fabricación de limpia metales."]
[null,null,null,12,"1D0412","Fabricación de colorantes, pigmentos plásticos y fibras sintéticas."]
[null,null,null,13,"1D0413","Emisiones gaseosas en los altos hornos, hornos de coque o combustión de espumas de poliuretano."]
[null,null,null,14,"1D0414","Uso en laboratorio."]
[null,"E",null,null,null,"ÁCIDOS ORGÁNICOS"]
[null,null,1,null,null,"Ácido fórmico, ácido acético, ácido oxálico, ácido abiético, ácido plicático, etc."]
[null,null,null,1,"1E0101","Fabricación de ácidos orgánicos y de sus sales."]
[null,null,null,2,"1E0102","Utilización en la industria textil."]
[null,null,null,3,"1E0103","Utilización en la industria química."]
[null,null,null,4,"1E0104","Utilización en la industria alimentaria."]
[null,null,null,5,"1E0105","Utilización en la industria farmacéutica y cosmética."]
[null,null,null,6,"1E0106","Empleo en la industria metalúrgica, del caucho y en fotografía."]
[null,null,null,7,"1E0107","Fabricación de productos quitamanchas."]
[null,null,null,8,"1E0108","Fabricación del ácido acetilsalicílico."]
[null,null,null,9,"1E0109","Utilización en la limpieza ácida de metales."]
[null,null,null,10,"1E0110","Utilización en el electroplateado de metales."]
[null,null,null,11,"1E0111","Utilización en la industria textil."]
[null,null,null,12,"1E0112","Fabricación y utilización de adhesivos y resinas."]
[null,null,null,13,"1E0113","Utilización en la industria papelera."]
[null,null,null,14,"1E0114","Utilización en la industria del plástico."]
[null,null,null,15,"1E0115","Utilización como desinfectantes y herbicidas."]
[null,null,null,16,"1E0116","Utilización como reactivos de laboratorio."]
[null,null,null,null,null,"El ácido fórmico puede aparecer además en:"]
[null,null,null,17,"1E0117","La industria del cuero como neutralizador, para teñir, eliminar el pelo, etc."]
[null,null,null,18,"1E0118","La preparación de cables para soldadura."]
[null,null,null,19,"1E0119","La industria de la electrónica."]
[null,null,null,null,null,"El ácido acético puede aparecer además en:"]
[null,null,null,20,"1E0120","Utilización en litografía."]
[null,null,null,21,"1E0121","Disolvente de barnices y pinturas."]
[null,null,null,null,null,"El ácido propiónico puede aparecer además en:"]
[null,null,null,22,"1E0122","Utilización como fungicida."]
[null,null,null,23,"1E0123","Utilización como preservadores del grano y la madera."]
[null,"F",null,null,null,"ALCOHOLES Y FENOLES"]
[null,null,1,null,null,"Alcoholes"]
[null,null,null,1,"1F0101","Utilización en las síntesis orgánicas."]
[null,null,null,2,"1F0102","Fabricación de alcohol y sus compuestos halogenados."]
[null,null,null,3,"1F0103","Fabricación del formaldehído."]
[null,null,null,4,"1F0104","Fabricación y utilización de disolventes o diluyentes para los colorantes, pinturas, lacas, barnices, resinas naturales y sintéticos, desengrasantes y quitamanchas."]
[null,null,null,5,"1F0105","Fabricación y utilización de barnices y capas aislantes para la industria eléctrica (diacetona-alcohol acetona)."]
[null,null,null,6,"1F0106","Fabricación de colores de anilina (metanol)."]
[null,null,null,7,"1F0107","Industria de cosméticos, perfumes, jabones y detergentes."]
[null,null,null,8,"1F0108","Fabricación de esencia de frutas."]
[null,null,null,9,"1F0109","Industria farmacéutica."]
[null,null,null,10,"1F0110","Fabricación de líquidos anticongelantes, de líquidos de frenos hidráulicos, de lubrificantes sintéticos, etc."]
[null,null,null,11,"1F0111","Industria del caucho y de los cueros sintéticos."]
[null,null,null,12,"1F0112","Industria de fibras textiles artificiales."]
[null,null,null,13,"1F0113","Industria de explosivos."]
[null,null,null,14,"1F0114","Industria de la refinería de petróleo."]
[null,null,null,15,"1F0115","Utilización de alcoholes como agentes deshidratantes o antigerminativos."]
[null,null,2,null,null,"Fenoles, homólogos y sus derivados halógenos, pentaclorofenol, hidroxibenzonitrilo"]
[null,null,null,1,"1F0201","Fabricación de derivados, particularmente los explosivos (derivados nitrados)."]
[null,null,null,2,"1F0202","Fabricación de baquelita poliepóxido y policarbonatos."]
[null,null,null,3,"1F0203","Tratamiento de maderas"]
[null,null,null,4,"1F0204","Industrias de las fibras sintéticas (poliamidas, etc.)."]
[null,null,null,5,"1F0205","Refino del petróleo"]
[null,null,null,6,"1F0206","Fabricación de detergentes, colorantes, aditivos para aceites, etc."]
[null,null,null,7,"1F0207","Fabricación y manipulación de pesticidas y productos para el control de malezas."]
[null,null,null,8,"1F0208","Industria farmacéutica."]
[null,null,null,9,"1F0209","Tratamiento de brea de hulla, de gas de alumbrado y para el calentamiento de ciertas materias plásticas."]
[null,null,null,10,"1F0210","Síntesis química de productos."]
[null,null,null,11,"1F0211","Fabricación de pigmentos."]
[null,"G",null,null,null,"ALDEHÍDOS"]
[null,null,1,null,null,"Aldehídos: acetaldehído, aldehído acrílico, aldehído benzoico, formaldehído y el glutaraldehído"]
[null,null,null,1,"1G0101","Fabricación de aldehídos y sus compuestos."]
[null,null,null,2,"1G0102","Empleo en la industria química, textil y farmacéutica, cosmética, alimenticia."]
[null,null,null,3,"1G0103","Productos intermedios en numerosos procesos de síntesis orgánica."]
[null,null,null,4,"1G0104","Fabricación de desinfectantes, tintes, productos farmacéuticos, perfumes, explosivos, potenciadores del sabor, resinas, antioxidantes, barnices, levaduras , productos fotográficos, caucho, plásticos, polímeros de alto peso molecular, plaguicidas, etc."]
[null,null,null,5,"1G0105","Utilización como disolventes."]
[null,null,null,6,"1G0106","Utilización como herbicidas y pesticidas."]
[null,null,null,7,"1G0107","Utilización como desinfectantes."]
[null,null,null,8,"1G0108","Utilización del formaldehído en esterilización y desinfección."]
[null,null,null,9,"1G0109","Utilización del formol como agente desinfectante, desodorante, bactericida, etc."]
[null,null,null,10,"1G0110","Utilización del acetaldehído en la fabricación del vinagre y en el azogado de espejos."]
[null,null,null,11,"1G0111","Utilización de la acroleína en las fabricas de jabón, en la galvanoplastia, en la soldadura de piezas metálicas."]
[null,null,null,12,"1G0112","El uso de adhesivos y colas con polímeros de formol puede implicar exposición a formaldehído."]
[null,null,null,13,"1G0113","La combustión de combustibles fósiles, madera y el calentamiento de aceites produce acroleína."]
[null,"H",null,null,null,"ALIFÁTICOS"]
[null,null,1,null,null,"Hidrocarburos alifáticos saturados o no; cíclicos o no constituyentes del éter, del petróleo y de la gasolina. Saturados: alcanos, parafinas."]
[null,null,null,1,"1H0101","Destilación y refinado del petróleo."]
[null,null,null,2,"1H0102","El «cracking» y el «reforming», procedimientos destinados esencialmente a modificar la estructura de los hidrocarburos."]
[null,null,null,3,"1H0103","Utilización de los productos de destilación como disolventes, carburantes, combustibles y desengrasantes."]
[null,null,null,4,"1H0104","El n-hexano se utiliza principalmente como disolvente (colas)."]
[null,null,2,null,null,"Derivados halogenados de los hidrocarburos alifáticos, saturados o no, cíclicos o no. Bromuro de metilo, cloruro de vinilo monómero"]
[null,null,null,null,null,"Preparación, manipulación y empleo de los hidrocarburos clorados y bromados de la serie alifática y de los productos que lo contengan, y especialmente:"]
[null,null,null,1,"1H0201","Empleo como agentes de extracción y como disolventes."]
[null,null,null,2,"1H0202","Desengrasado y limpieza de piezas metálicas, como productos de limpieza y desengrasado en tintorerías."]
[null,null,null,3,"1H0203","Fabricación y reparación de aparatos e instalaciones frigoríficas."]
[null,null,null,4,"1H0204","Utilización de pesticidas."]
[null,null,null,5,"1H0205","Fabricación de ciertos desinfectantes, anestésicos, antisépticos y otros productos de la industria farmacéutica y química."]
[null,null,null,6,"1H0206","Fabricación y utilización de pinturas, disolventes, decapantes, barnices, látex, etc."]
[null,null,null,7,"1H0207","Reparación y relleno de aparatos extintores de incendio."]
[null,null,null,8,"1H0208","Preparación y empleo de lociones de peluquería."]
[null,null,null,9,"1H0209","Fabricación de polímeros de síntesis."]
[null,null,null,10,"1H0210","Refino de aceites minerales."]
[null,null,null,11,"1H0211","Uso en anestesia quirúrgica."]
[null,null,null,12,"1H0212","Empleo de bromuro de metilo para el tratamiento de vegetales en bodegas, cámaras de fumigación, contenedores, calas de barcos, camiones cubiertos, entre otros."]
[null,null,null,13,"1H0213","Uso del bromuro de metilo en la agricultura para el tratamiento de parásitos del suelo."]
[null,null,null,14,"1H0214","Uso del bromuro de metilo con fines sanitarios de desinsectación y desratización de edificios."]
[null,null,null,15,"1H0215","Trabajos de síntesis de policloruro de vinilo (PVC) que exponen al monómero."]
[null,"I",null,null,null,"AMINAS E HIDRACINAS"]
[null,null,1,null,null,"Aminas (primarias, secundarias, terciarias, heterocíclicas) e hidracinas aromáticas y sus derivados halógenos, fenólicos, nitrosados, nitrados y sulfonados"]
[null,null,null,1,"1I0101","Fabricación de estas sustancias y su utilización como productos intermediarios en la industria de colorantes sintéticos y en numerosas síntesis orgánicas, en la industria química, en la industria de insecticidas, en la industria farmacéutica, etc."]
[null,null,null,2,"1I0102","Fabricación y utilización de derivados utilizados como aceleradores y como antioxidantes en la industria del caucho."]
[null,null,null,3,"1I0103","Fabricación de ciertos explosivos."]
[null,null,null,4,"1I0104","Utilización como colorantes en la industria del cuero, de pieles del calzado, de productos capilares, etc., así como en papelería y en productos de peluquería."]
[null,null,null,5,"1I0105","Utilización de reveladores (para-aminofenoles) en la industria fotográfica."]
[null,"J",null,null,null,"AMONÍACO"]
[null,null,1,null,null,"Amoníaco"]
[null,null,null,1,"1J0101","Producción de abonos artificiales."]
[null,null,null,2,"1J0102","Preparación de ciertos residuos sintéticos del tipo ceraformol."]
[null,null,null,3,"1J0103","Fabricación de hielo artificial, utilizando amoniaco como refrigerante."]
[null,null,null,4,"1J0104","Los hornos de coque, fabricas de gas."]
[null,null,null,5,"1J0105","Utilización como decapante en pintura."]
[null,null,null,6,"1J0106","Utilización en laboratorios."]
[null,null,null,7,"1J0107","Galvanoplastia."]
[null,null,null,8,"1J0108","Fabricación de ácido nítrico y otros reactivos químicos como ácido sulfúrico, cianuros, amidas, urea, sosa, nitritos e intermediarios de colorantes."]
[null,null,null,9,"1J0109","Producción de monómeros de fibras sintéticas y otros plásticos."]
[null,null,null,10,"1J0110","Refino de petróleo (como inhibidor de la corrosión)."]
[null,null,null,11,"1J0111","Industria hulera, papel, extractiva, alimenticia, peletera y farmacéutica (como estabilizador)."]
[null,"K",null,null,null,"AROMÁTICOS"]
[null,null,1,null,null,"Benceno"]
[null,null,null,null,null,"Fabricación, extracción, rectificación, empleo y manipulación del benceno, y especialmente:"]
[null,null,null,1,"1K0101","Ocupaciones con exposición a benceno, por ejemplo, hornos de coque, uso de disolventes que contienen benceno."]
[null,null,null,2,"1K0102","Empleo del benceno para la preparación de sus derivados utilizados en las industrias de materias colorantes, perfumes, explosivos, productos farmacéuticos, etc."]
[null,null,null,3,"1K0103","Empleo del benceno y sus homólogos como decapantes, como diluente, como disolvente para la extracción de aceites, grasas, alcaloides, resinas, desengrasado de pieles, tejidos, huesos, piezas metálicas, caucho, etc."]
[null,null,null,4,"1K0104","Preparación, distribución y limpieza de tanques de carburantes que contengan benceno."]
[null,null,null,5,"1K0105","Trabajos de laboratorio en los que se emplee benceno."]
[null,null,2,null,null,"Naftaleno y sus homólogos"]
[null,null,null,1,"1K0201","Extracción del naftaleno, durante la destilación del alquitrán de hulla."]
[null,null,null,2,"1K0202","Utilización como productos de base para la fabricación del ácido ftálico, naftaleno, hidrogenados y materias plásticas."]
[null,null,null,3,"1K0203","Fabricación de tintes."]
[null,null,null,4,"1K0204","Utilización como insecticida y en conservación de la madera."]
[null,null,null,5,"1K0205","Fabricación de resinas sintéticas, celuloide e hidronaftalenos (tetralin, decalin) que se usam como disolventes, en lubricantes y en combustibles."]
[null,null,null,6,"1K0206","Fabricación de repelente de polillas, insecticida, antiséptico (tópico y vía oral), antihelmíntico."]
[null,null,null,7,"1K0207","Uso en fungicidas, bronceadores sintéticos, conservantes, textiles, químicos, materia prima y producto intermedio en industria del plástico y en la fabricación de lacas y barnices."]
[null,null,3,null,null,"Xileno, tolueno"]
[null,null,null,null,null,"Operaciones de producción transporte y utilización del tolueno y xileno y otros productos que los contienen, en especial:"]
[null,null,null,1,"1K0301","Industria química: fabricación de ácido benzoico, benzoaldehidos, benceno, fenol, caprolactama, linóleo, toluendiisocianato (resinas poliuretano), sulfonatos de tolueno (detergentes), cuero artificial, revestimiento de tejidos y papeles, explosivos, tintes y otros compuestos orgánicos."]
[null,null,null,2,"1K0302","Preparación de combustibles y las operaciones de mezclado, trasvasado, limpiado de estanques y cisternas."]
[null,null,null,3,"1K0303","Operaciones de disolución de resinas naturales o sintéticas para la preparación de colas, adhesivos, lacas, barnices, esmaltes, masillas, tintas, diluyentes de pinturas y productos de limpieza."]
[null,null,null,4,"1K0304","Utilización de los productos citados, en especial las operaciones de secado que facilitan la evaporación del tolueno y los xilenos."]
[null,null,null,5,"1K0305","Uso en laboratorio de análisis químico y de anatomía patológica."]
[null,null,null,6,"1K0306","Aditivo de las gasolinas."]
[null,null,null,7,"1K0307","Utilización en la industria de la limpieza."]
[null,null,null,8,"1K0308","Utilización de insecticidas."]
[null,null,null,9,"1K0309","Utilización en perfumería."]
[null,null,null,10,"1K0310","Esterilización del hilo de sutura quirúrgica catgut."]
[null,null,4,null,null,"Vinilbenceno (estireno y divinilbenceno)"]
[null,null,null,1,"1K0401","Síntesis y producción de polímeros (poliestireno), de copolímeros (acrilonitrilo butadieno estireno o ABS) y de resinas poliésteres."]
[null,null,null,2,"1K0402","Uso del divinilbenceno como monómero para la polimerización de caucho sintético."]
[null,null,null,3,"1K0403","Disolvente y aditivo en el carburante para aviones."]
[null,null,null,4,"1K0404","Fabricación de insecticidas."]
[null,null,null,5,"1K0405","Fabricación de piscinas, yates, bañeras, carrocerías de automóviles."]
[null,null,null,6,"1K0406","Fabricación de plásticos, goma sintética, resinas, aislantes."]
[null,null,null,7,"1K0407","Utilización como resina cambiadora de iones en la depuración de agua."]
[null,null,null,8,"1K0408","Utilización en odontología."]
[null,null,5,null,null,"Derivados halogenados de hidrocarburos aromáticos"]
[null,null,null,1,"1K0501","Empleo como disolventes, pesticidas, herbicidas, insecticidas y fungicidas."]
[null,null,null,2,"1K0502","Empleo en las industrias de materias colorantes, perfumería y fotografía."]
[null,null,null,3,"1K0503","Fabricación de productos de limpieza y lubrificantes."]
[null,null,null,4,"1K0504","Utilización como aditivo en lubrificantes de alta presión."]
[null,null,null,5,"1K0505","Fabricación de caucho sintético, productos ignífugos, papel autocopiativo sin carbono, plastificantes, etc."]
[null,null,null,6,"1K0506","Fabricación de transformadores, condensadores, aislamiento de cables y de hilos eléctricos."]
[null,null,6,null,null,"Nitroderivados de los hidrocarburos aromáticos: nitro-dinitrobenceno, dinitro-trinitrotolueno"]
[null,null,null,1,"1K0601","Utilización como disolventes."]
[null,null,null,2,"1K0602","Producción de colorantes, pigmentos, tintes."]
[null,null,null,3,"1K0603","Fabricación de explosivos."]
[null,null,null,4,"1K0604","Industria farmacéutica y cosmética."]
[null,null,null,5,"1K0605","Industria del plástico."]
[null,null,null,6,"1K0606","Utilización como pesticidas."]
[null,null,null,7,"1K0607","Utilización en la industria textil, química, del papel."]
[null,null,null,8,"1K0608","Utilización en laboratorios."]
[null,null,null,9,"1K0609","Utilización de nitrobenceno como enmascarador de olores."]
[null,null,null,10,"1K0610","Utilización de dinitrobenceno en la producción de celuloide, etc."]
[null,null,7,null,null,"Derivados nitrados de los fenoles y homólogos: dinitrofenol, dinitro-ortocresol, dinoseb (2-sec-butil-4, 6-dinitrofenol), ioxinil, bromoxinil"]
[null,null,null,1,"1K0701","Utilización como herbicidas e insecticidas."]
[null,"L",null,null,null,"CETONAS"]
[null,null,1,null,null,"Cetonas"]
[null,null,null,1,"1L0101","Producción de cetonas y sus derivados."]
[null,null,null,2,"1L0102","Utilización como agentes de extracción, como materia prima o intermedia en numerosas síntesis orgánicas."]
[null,null,null,3,"1L0103","Utilización como disolventes."]
[null,null,null,4,"1L0104","Fabricación de fibras textiles artificiales, seda y cueros artificiales, limpieza y preparación de tejidos para la tintura."]
[null,null,null,5,"1L0105","Fabricación de celuloide."]
[null,null,null,6,"1L0106","Industria farmacéutica."]
[null,null,null,7,"1L0107","Industria de perfumería y de los cosméticos."]
[null,null,null,8,"1L0108","Industria del caucho sintético y de explosivos."]
[null,null,null,9,"1L0109","Fabricación de productos de limpieza."]
[null,null,null,10,"1L0110","Tratamiento de resinas naturales y sintéticas."]
[null,null,null,11,"1L0111","Empleo de barnices, pinturas, esmaltes, adhesivos, lacas y masillas."]
[null,null,null,12,"1L0112","Procesos de refinado de metales preciosos."]
[null,"M",null,null,null,"EPÓXIDOS"]
[null,null,1,null,null,"Epóxidos, óxido de etileno, tetrahidrofurano, furfural, epiclorhidrina, guayacol, alcohol furfurílico, óxido de propileno"]
[null,null,null,1,"1M0101","Utilización como reactivos en la fabricación de disolventes, plastificantes, cementos, adhesivos y resinas sintéticas."]
[null,null,null,2,"1M0102","Utilización como recubrimientos para la madera y el metal."]
[null,null,null,3,"1M0103","Fabricación de agentes tensoactivos."]
[null,null,null,4,"1M0104","Utilización como disolventes."]
[null,null,null,5,"1M0105","El óxido de propileno se utiliza, además, como esterilizante de alimentos envasados y otros materiales."]
[null,null,null,6,"1M0106","La epiclorhidrina se utiliza además, como insecticida, fumigante y disolvente de pinturas, barnices, esmaltes y lacas. Producción de resinas de alta resistencia a la humedad en la industria papelera."]
[null,null,null,7,"1M0107","El óxido de etileno se utiliza, además, en la industria sanitaria y alimentaria como agente esterilizante, como fumigante de alimentos y tejidos, intermediario en síntesis química y en la síntesis de películas y fibras de poliéster."]
[null,null,null,8,"1M0108","El guayacol se utiliza, además, como anestésico local, antioxidante, expectorante y aromatizante de bebidas."]
[null,null,null,9,"1M0109","El furfural se utiliza, además, en la preparación y uso de moldes para fundición, en la vulcanización del caucho, refinado de aceites de petróleo y como agente humectante."]
[null,null,null,10,"1M0110","El tetrahidrofurano se utiliza, además, en histología, y en la fabricación de artículos para el envasado, transporte y conservación de alimentos."]
[null,"N",null,null,null,"ÉSTERES"]
[null,null,1,null,null,"Ésteres orgánicos y sus derivados halogenados"]
[null,null,null,1,"1N0101","Fabricación de ésteres orgánicos."]
[null,null,null,2,"1N0102","Síntesis de resinas sintéticas."]
[null,null,null,3,"1N0103","Productos intermedios en numerosos procesos de síntesis orgánica."]
[null,null,null,4,"1N0104","Industria de los papeles pintados."]
[null,null,null,5,"1N0105","Fabricación de adhesivos."]
[null,null,null,6,"1N0106","Industria de plásticos. Fabricación de revestimientos plásticos."]
[null,null,null,7,"1N0107","Fabricación de pinturas, barnices, tintes."]
[null,null,null,8,"1N0108","Fabricación de lacas de uñas y perfumes, esencias de frutas."]
[null,null,null,9,"1N0109","Industrias de fabricación de cristales de seguridad."]
[null,null,null,10,"1N0110","Industria farmacéutica."]
[null,null,null,11,"1N0111","Imprentas."]
[null,null,null,12,"1N0112","Utilización como aditivos de carburantes y de aceites de motor."]
[null,null,null,13,"1N0113","Aplicación de pinturas."]
[null,null,null,14,"1N0114","Utilización de adhesivos."]
[null,null,null,15,"1N0115","Utilización como disolventes."]
[null,null,null,16,"1N0116","Utilización de decapantes."]
[null,null,null,17,"1N0117","Utilización en productos de limpieza, lavandería y tintorería."]
[null,null,null,18,"1N0118","Imprenta, reproducción, plásticos, curtidos, textiles, resinas, protésicos dentales sellantes, cosméticos, etc."]
[null,null,null,19,"1N0119","Utilización del acetato de etilo en la electrodeposición de metales."]
[null,null,null,20,"1N0120","Utilización del acetato de isobutilo en la fabricación de periféricos de ordenadores."]
[null,null,null,null,null,"El etil acriato se utiliza, además en:"]
[null,null,null,21,"1N0121","Fabricación de alfombras."]
[null,null,null,22,"1N0122","Industria de semiconductores."]
[null,null,null,null,null,"El vinil acetato se utiliza, además en:"]
[null,null,null,23,"1N0123","Industria del papel."]
[null,null,null,24,"1N0124","Fabricación de plásticos de uso alimentario."]
[null,"O",null,null,null,"ÉTERES"]
[null,null,1,null,null,"Éteres de glicol: metil cellosolve o metoxi-etanol, etil cellosolve, etoxietanol, etc., otros éteres no comprendidos en el apartado anterior: Éter metílico, etílico, isopropílico, vinílico, dicloro-isopropílico, etc."]
[null,null,null,1,"1O0101","Disolventes y codisolventes de lacas, resinas, pigmentos, tintes, esmaltes, barnices, perfumes, aceites, acetato de celulosa y nitrato de celulosa."]
[null,null,null,2,"1O0102","Fabricación de semiconductores en la industria microelectrónica."]
[null,null,null,3,"1O0103","Constituyentes de fluidos hidráulicos, fabricación de filmes radiográficos y de celofán."]
[null,null,null,4,"1O0104","Utilización en la limpieza en seco."]
[null,null,null,5,"1O0105","Constituyentes de algunos insecticidas."]
[null,null,null,6,"1O0106","Utilización como aditivos de combustibles."]
[null,null,null,7,"1O0107","Utilización de tintes y pigmentos."]
[null,null,null,8,"1O0108","Utilización como estabilizadores de emulsiones."]
[null,null,null,9,"1O0109","Utilización en el acabado del cuero."]
[null,null,null,10,"1O0110","Producción de éteres y de sus derivados halogenados."]
[null,null,null,11,"1O0111","Utilización en la industria química como disolventes de ceras, grasas, etc., y en la fabricación de colodium para la extracción de nicotina."]
[null,null,null,12,"1O0112","Industria farmacéutica."]
[null,null,null,13,"1O0113","Utilización como agentes de esterilización y como anestésicos."]
[null,null,null,14,"1O0114","Industria de fibras textiles artificiales."]
[null,null,null,15,"1O0115","Industria del calzado."]
[null,null,null,16,"1O0116","Industria de la perfumería, caucho, fotografía y materias plásticas."]
[null,null,null,17,"1O0117","Fabricación y utilización de disolventes y decapantes para las pinturas y barnices."]
[null,"P",null,null,null,"GLICOLES"]
[null,null,1,null,null,"Glicoles: etilenglicol, dietilenglicol, 1-4 butanediol, así como los derivados nitrados de los glicoles y del glicerol"]
[null,null,null,1,"1P0101","Fabricación de glicoles y poliglicoles, de sus derivados y de sus acetatos."]
[null,null,null,2,"1P0102","Utilización en la industria química como productos intermedios en numerosas síntesis orgánicas, como disolventes de lacas, resinas, barnices celulósicos de secado rápido, de ciertas pinturas, pigmentos, nitrocelulosa y acetatos de celulosa, tintes y plásticos."]
[null,null,null,3,"1P0103","Utilización en la industria farmacéutica como vehículo de ciertos medicamentos, desodorantes, desinfectantes y bactericidas."]
[null,null,null,4,"1P0104","La industria de cosméticos, fabricación y utilización de anticongelantes, de líquidos de sistemas hidráulicos y de líquidos de frenos."]
[null,null,null,5,"1P0105","Fabricación de ciertas esencias, extractos en la industria alimentaria."]
[null,null,null,6,"1P0106","Industria textil para dar la flexibilidad a los tejidos y preparación para la textura e impresión de tejidos a base de acetatos de celulosa, así como en la preparación y utilización de ciertos almidones sintéticos."]
[null,null,null,7,"1P0107","Fabricación de condensadores electrolíticos."]
[null,null,null,8,"1P0108","Preparación de ciertas películas y placas en la industria fotográfica."]
[null,null,null,9,"1P0109","Industria de explosivos y caucho sintético."]
[null,"Q",null,null,null,"ISOCIANATOS"]
[null,null,1,null,null,"Poliuretanos (isocianatos)"]
[null,null,null,null,null,"Trabajos que exponen a la inhalación de isocianatos orgánicos y especialmente:"]
[null,null,null,1,"1Q0101","Fabricación y aplicación de toluen-diisocianato (TDI) y de difenilmetano-diisocianato (MDI), de hdi, ndi, isoforona, ciclohexanona (precursor)."]
[null,null,null,2,"1Q0102","Laqueado y acuchillado de parqué."]
[null,null,null,3,"1Q0103","Laqueado de papel, tejidos, cuero, gomas, hilos conductores."]
[null,null,null,4,"1Q0104","Elaboración y utilización de adhesivos y pinturas que contienen poliuretano."]
[null,null,null,5,"1Q0105","Fabricación y empleo de pegamentos que contengan isocianatos."]
[null,null,null,6,"1Q0106","Fabricación de espumas de poliuretano y su aplicación en estado líquido."]
[null,null,null,7,"1Q0107","Fabricación de fibras sintéticas y de caucho sintético."]
[null,null,null,8,"1Q0108","Fabricación y utilización de anticorrosivos y material aislante de cables."]
[null,null,null,9,"1Q0109","Utilización de monoisocianatos (metilisocianato) como agentes de síntesis en la industria química."]
[null,"R",null,null,null,"NITRODERIVADOS"]
[null,null,1,null,null,"Nitroderivados alifáticos, nitroalcanos"]
[null,null,null,1,"1R0101","Empleo como disolventes."]
[null,null,null,2,"1R0102","Empleo como aditivos de ciertos explosivos, pesticidas, fungicidas, gasolinas y propulsores para proyectiles."]
[null,null,null,3,"1R0103","Utilización en síntesis orgánica."]
[null,null,2,null,null,"Nitroglicerina y otros ésteres del ácido nítrico"]
[null,null,null,1,"1R0201","Industria de explosivos."]
[null,null,null,2,"1R0202","Empleo en la industria farmacéutica."]
[null,"S",null,null,null,"ORGANOCLORADOS Y ORGANOFOSFORADOS"]
[null,null,1,null,null,"Órgano fosforados y carbamatos"]
[null,null,null,1,"1S0101","Síntesis, formulación y envasado de los productos plaguicidas que contienen órgano fosforados y carbamatos inhibidores de la colinesterasa."]
[null,null,null,2,"1S0102","Transporte, almacenamiento y distribución de los productos plaguicidas que contienen órgano fosforados y carbamatos inhibidores de la colinesterasa."]
[null,null,null,3,"1S0103","Uso agrícola de los productos plaguicidas que contiene órgano fosforados y carbamatos inhibidores de la colinesterasa; preparación, formulación y las soluciones, cebos, gel y toda otra forma de presentación."]
[null,null,null,4,"1S0104","Aplicación directa de los productos plaguicidas que contiene órgano fosforados y carbamatos inhibidores de la colinesterasa por aspersión, nieblas, rocío, pulverizado, micropulverizado, vaporización, por vía terrestre o aérea, con métodos manuales o mecánicos."]
[null,null,null,5,"1S0105","Uso sanitario de los productos plaguicidas que contienen órgano fosforados y carbamatos inhibidores de la colinesterasa para desinsectación de edificios, bodegas, calas de barcos, control de vectores de enfermedades transmisibles."]
[null,null,2,null,null,"Órganos clorados"]
[null,null,null,1,"1S0201","Utilización de policlorobifenilos (PCBs) como constituyente de fluidos dieléctricos en condensadores y transformadores, fluidos hidráulicos, aceites lubricantes, plaguicidas o aditivos en plastificantes y pinturas, etc."]
[null,null,null,2,"1S0202","Utilización de hexaclorobenceno en los procesos industriales de fabricación y combustión de compuestos clorados."]
[null,null,null,3,"1S0203","Utilización de hexaclorobenceno como fungicida en el tratamiento de semillas y suelos."]
[null,null,null,4,"1S0204","Utilización de hexaclorobenceno como preservante de madera."]
[null,"T",null,null,null,"ÓXIDOS"]
[null,null,1,null,null,"Óxidos de carbono"]
[null,null,null,null,null,"Trabajos en locales o puestos cuya ventilación natural o forzada no logre impedir una concentración continuada de 50 centímetros cúbicos de oxido de carbono por metro cúbico de aire, a la altura de la zona de aspiración de los trabajadores, y especialmente:"]
[null,null,null,1,"1T0101","Producción, depuración y almacenamiento de gas."]
[null,null,null,2,"1T0102","Reparación de conductos de gas."]
[null,null,null,3,"1T0103","Trabajos en fundición y limpieza de hornos."]
[null,null,null,4,"1T0104","Trabajos de soldadura y corte."]
[null,null,null,5,"1T0105","Trabajos en presencia de motores de explosión."]
[null,null,null,6,"1T0106","Trabajos en calderas navales, industriales y domésticas."]
[null,null,null,7,"1T0107","Industrias que emplean como combustible cualquier gas industrial."]
[null,null,null,8,"1T0108","Trabajos en garajes, depósitos y talleres de reparación."]
[null,null,null,9,"1T0109","Conducción de máquinas a motor."]
[null,null,null,10,"1T0110","Incendios y explosiones (sobre todo en espacios cerrados, en los túneles y en las minas)."]
[null,null,null,11,"1T0111","Trabajos en instalaciones de calefacción."]
[null,null,null,12,"1T0112","Utilización de medios de calefacción o combustión libre."]
[null,null,null,13,"1T0113","Tráfico urbano, instalaciones de incineración. Industria petrolera, industria química."]
[null,null,null,14,"1T0114","Bomberos."]
[null,null,2,null,null,"Oxicloruro de carbono"]
[null,null,null,1,"1T0201","Procesos de síntesis industriales en que se utilice oxicloruro de carbono."]
[null,null,null,2,"1T0202","Fabricación de insecticidas."]
[null,null,null,3,"1T0203","Procesos industriales en que se utilicen hidrocarburos clorados."]
[null,null,null,4,"1T0204","Utilización de oxicloruro de carbono y sus compuestos en la industria química (preparación de productos farmacéuticos, de materias colorantes, etc.)."]
[null,null,null,5,"1T0205","Desprendimiento de fosgeno por pirólisis de numerosos derivados organoclorados, como el tetracloruro de carbono, el cloroformo, tetracloroetano, tricloroetileno, etc."]
[null,null,null,6,"1T0206","Soldadura de piezas o partes metálicas que hayan sido limpiadas con hidrocarburos clorados."]
[null,null,null,7,"1T0207","Utilización en la industria química para la fabricación de isocianatos, poliuretano, policarbonatos, tintes, pesticidas y productos farmacéuticos."]
[null,null,3,null,null,"Óxidos de nitrógeno"]
[null,null,null,1,"1T0301","Soldadura de arco."]
[null,null,null,2,"1T0302","Fabricación de colorantes, lacas y tintes."]
[null,null,null,3,"1T0303","Fabricación de explosivos y otras producciones que impliquen reacciones de nitración."]
[null,null,null,4,"1T0304","Producción de ácido nítrico."]
[null,null,null,5,"1T0305","Procesos de electroplateado y grabado."]
[null,null,null,6,"1T0306","Utilización del dióxido de nitrógeno como gas protector en los locales exiguos o mal ventilados."]
[null,null,null,7,"1T0307","Utilización del protóxido de nitrógeno como gas anestésico."]
[null,"U",null,null,null,"SULFUROS"]
[null,null,1,null,null,"Sulfuro de carbono"]
[null,null,null,null,null,"Fabricación, manipulación y empleo del sulfuro de carbono y de los productos que lo contengan, y especialmente:"]
[null,null,null,1,"1U0101","Fabricación de la seda artificial del tipo viscosa, rayón, del fibrán, del celofán."]
[null,null,null,2,"1U0102","Fabricación de mastiques y colas."]
[null,null,null,3,"1U0103","Preparación de la carbanilina como aceleradora de la vulcanización."]
[null,null,null,4,"1U0104","Empleo como disolvente de grasas, aceites, resinas, ceras, caucho, gutapercha y otras sustancias."]
[null,null,null,5,"1U0105","Fabricación de cerillas."]
[null,null,null,6,"1U0106","Fabricación de productos farmacéuticos y cosméticos."]
[null,null,null,7,"1U0107","Manipulación y empleo del sulfuro de carbono o productos que lo contengan, como insecticidas o parasiticidas en los trabajos de tratamiento de suelos o en el almacenado de productos agrícolas."]
[null,null,null,8,"1U0108","Preparación de ciertos rodenticidas."]
[null,null,null,9,"1U0109","Extracción de aceites volátiles de las flores."]
[null,null,null,10,"1U0110","Extracción del azufre."]
[null,null,null,11,"1U0111","Industria del caucho. Disolvente."]
[2,null,null,null,null,"Enfermedades profesionales causadas por agentes físicos"]
[null,"A",null,null,null,"Hipoacusia o sordera provocada por el ruido:"]
[null,null,1,null,null,"Sordera profesionales de tipo neurosensorial, frecuencias de 3 a 6 KHz, bilaterial simétrica e irreversible"]
[null,null,null,null,null,"Trabajos que exponen a ruidos continuos cuyo nivel sonoro diario equivalente (según legislación vigente) sea igual o superior a 80 decibelios A, especialmente:"]
[null,null,null,1,"2A0101","Trabajos de calderería."]
[null,null,null,2,"2A0102","Trabajos de estampado, embutido, remachado y martillado de metales."]
[null,null,null,3,"2A0103","Trabajos en telares de lanzadera batiente."]
[null,null,null,4,"2A0104","Trabajos de control y puesta a punto de motores de aviación, reactores o de pistón."]
[null,null,null,5,"2A0105","Trabajos con martillos y perforadores neumáticos en minas, túneles y galerías subterráneas."]
[null,null,null,6,"2A0106","Trabajos en salas de máquinas de navíos."]
[null,null,null,7,"2A0107","Tráfico aéreo (personal de tierra, mecánicos y personal de navegación, de aviones a reacción, etc.)."]
[null,null,null,8,"2A0108","Talado y corte de árboles con sierras portátiles."]
[null,null,null,9,"2A0109","Salas de recreación (discotecas, etc.)."]
[null,null,null,10,"2A0110","Trabajos de obras públicas (rutas, construcciones, etc.) efectuados con máquinas ruidosas como las bulldozers, excavadoras, palas mecánicas, etc."]
[null,null,null,11,"2A0111","Motores diesel, en particular en las dragas y los vehículos de transportes de ruta, ferroviarios y marítimos."]
[null,null,null,12,"2A0112","Recolección de basura doméstica."]
[null,null,null,13,"2A0113","Instalación y pruebas de equipos de amplificación de sonido."]
[null,null,null,14,"2A0114","Empleo de vibradores en la construcción."]
[null,null,null,15,"2A0115","Trabajo en imprenta rotativa en la industria gráfica."]
[null,null,null,16,"2A0116","Molienda de caucho, de plástico y la inyección de esos materiales para moldeo-Manejo de maquinaria de transformación de la madera, sierras circulares, de cinta, cepilladoras, tupies, fresas."]
[null,null,null,17,"2A0117","Molienda de piedras y minerales."]
[null,null,null,18,"2A0118","Expolio y destrucción de municiones y explosivos."]
[null,"B",null,null,null,"Enfermedades osteoarticulares o angioneuróticas provocadas por las vibraciones mecánicas:"]
[null,null,1,null,null,"Afectación vascular"]
[null,null,null,1,"2B0101","Trabajos en los que se produzcan: vibraciones transmitidas a la mano y al brazo por gran número de máquinas o por objetos mantenidos sobre una superficie vibrante (gama de frecuencia de 25 a 250 Hz), como son aquellos en los que se manejan maquinarias que transmitan vibraciones, como martillos neumáticos, punzones, taladros, taladros a percusión, perforadoras, pulidoras, esmeriles, sierras mecánicas, desbrozadoras."]
[null,null,null,2,"2B0102","Utilización de remachadoras y pistolas de sellado."]
[null,null,null,3,"2B0103","Trabajos que exponen al apoyo del talón de la mano de forma reiterativa, percutiendo sobre un plano fijo y rígido, así como los choques transmitidos a la eminencia hipotenar por una herramienta percutante."]
[null,null,2,null,null,"Afectación osteoarticular"]
[null,null,null,1,"2B0201","Trabajos en los que se produzcan: vibraciones transmitidas a la mano y al brazo por gran número de máquinas o por objetos mantenidos sobre una superficie vibrante (gama de frecuencia de 25 a 250 Hz), como son aquellos en los que se manejan maquinarias que transmitan vibraciones, como martillos neumáticos, punzones, taladros, taladros a percusión, perforadoras, pulidoras, esmeriles, sierras mecánicas, desbrozadoras."]
[null,null,null,2,"2B0202","Utilización de remachadoras y pistolas de sellado."]
[null,null,null,3,"2B0203","Trabajos que exponen al apoyo del talón de la mano de forma reiterativa, percutiendo sobre un plano fijo y rígido, así como los choques transmitidos a la eminencia hipotenar por una herramienta percutante."]
[null,"C",null,null,null,"Enfermedades provocadas por posturas forzadas y movimientos repetitivos en el trabajo; enfermedades de las bolsas serosas debida a la presión, celulitis subcutáneas:"]
[null,null,1,null,null,"Bursitis crónica de las sinoviales ó de los tejidos subcutáneos de las zonas de apoyo de las rodillas"]
[null,null,null,1,"2C0101","Trabajos que requieran habitualmente de una posición de rodillas mantenidas como son trabajos en minas, en la construcción, servicio doméstico, colocadores de parquet y baldosas, jardineros, talladores y pulidores de piedras, trabajadores agrícolas y similares."]
[null,null,2,null,null,"Bursitis glútea, retrocalcánea, y de la apófisis espinosa de C7 y subacromiodeltoideas"]
[null,null,null,1,"2C0201","Trabajos en la minería y aquellos que requieran presión mantenida en las zonas anatómicas referidas."]
[null,null,3,null,null,"Bursitis de la fascia anterior del muslo"]
[null,null,null,1,"2C0301","Zapateros y trabajos que requieran presión mantenida en cara anterior del muslo."]
[null,null,4,null,null,"Bursitis maleolar externa"]
[null,null,null,1,"2C0401","Sastrería y trabajos que requieran presión mantenida en región maleolar externa"]
[null,null,5,null,null,"Bursitis preesternal"]
[null,null,null,1,"2C0501","Carpintero y trabajos que requieran presión mantenida en región preesternal"]
[null,null,6,null,null,"Higroma crónico del codo"]
[null,null,null,1,"2C0601","Trabajos que requieren de un apoyo prolongado sobre la cara posterior del codo"]
[null,"D",null,null,null,"Enfermedades provocadas por posturas forzadas y movimientos repetitivos en el trabajo; enfermedades por fatiga e inflamación de las vainas tendinosas, de tejidos peritendinosos e inserciones musculares y tendinosas:"]
[null,null,1,null,null,"Hombro: patología tendidosa crónica de maguito de los rotadores"]
[null,null,null,1,"2D0101","Trabajos que se realicen con los codos en posición elevada o que tensen los tendones o bolsa subacromial, asociándose a acciones de levantar y alcanzar; uso continuado del brazo en abducción o flexión, como son pintores, escayolistas, montadores de estructuras."]
[null,null,2,null,null,"Codo y antebrazo: epicondilitis y epitrocleitis"]
[null,null,null,1,"2D0201","Trabajos que requieran movimientos de impacto o sacudidas, supinación o pronación repetidas del brazo contra resistencia, así como movimientos de flexoextensión forzada de la muñeca, como pueden ser: carniceros, pescaderos, curtidores, deportistas, mecánicos, chapistas, caldereros, albañiles."]
[null,null,3,null,null,"Muñeca y mano: tendinitis del abductor largo y extensor corto del pulgar (T. De Quervain), tenosinovitis estenosante digital (dedo en resorte), tenosinovitis del extensor largo del primer dedo"]
[null,null,null,1,"2D0301","Trabajos que exijan aprehensión fuerte con giros o desviaciones cubitales y radiales repetidas de la mano, así como movimientos repetidos o mantenidos de extensión de la muñeca"]
[null,"E",null,null,null,"Enfermedades provocadas por posturas forzadas y movimientos repetitivos en el trabajo:"]
[null,null,null,null,null,"Arrancamiento por fatiga de las apófisis espinosa"]
[null,null,null,1,2E+101,"Trabajos de apaleo o de manipulación de cargas pesadas."]
[null,"F",null,null,null,"Enfermedades provocadas por posturas forzadas y movimientos repetitivos en el trabajo: parálisis de los nervios debidos a la presión:"]
[null,null,1,null,null,"Síndrome del canal epitrocleo-olecraniano por compresión del nervio cubital en el codo"]
[null,null,null,1,"2F0101","Trabajos en los que se produzca un apoyo prolongado y repetido de forma directa o indirecta sobre las correderas anatómicas que provocan lesiones nerviosas por compresión. Movimientos extremos de hiperflexión y de hiperextensión. Trabajos que requieran apoyo prolongado en el codo."]
[null,null,2,null,null,"Síndrome del túnel carpiano por compresión del nervio mediano en la muñeca."]
[null,null,null,1,"2F0201","Trabajos en los que se produzca un apoyo prolongado y repetido de forma directa o indirecta sobre las correderas anatómicas que provocan lesiones nerviosas por compresión. Movimientos extremos de hiperflexión y de hiperextensión. Trabajos que requieran movimientos repetidos o mantenidos de hiperextensión e hiperflexión de la muñeca, de aprehensión de la mano como lavanderos, cortadores de tejidos y material plástico y similares, trabajos de montaje (electrónica, mecánica), industria textil, mataderos (carniceros, matarifes), hostelería (camareros, cocineros), soldadores, carpinteros, pulidores, pintores."]
[null,null,3,null,null,"Síndrome del canal de Guyon por compresión del nervio cubital en la muñeca"]
[null,null,null,1,"2F0301","Trabajos en los que se produzca un apoyo prolongado y repetido de forma directa o indirecta sobre las correderas anatómicas que provocan lesiones nerviosas por compresión. Movimientos extremos de hiperflexión y de hiperextensión. Trabajos que entrañen compresión prolongada en la muñeca o de una presión mantenida o repetida sobre el talón de la mano, como ordeño de vacas, grabado, talla y pulido de vidrio, burilado, trabajo de zapatería, leñadores, herreros, peleteros, lanzadores de martillo, disco y jabalina."]
[null,null,4,null,null,"Síndrome de compresión del ciático popliteo externo por compresión del mismo a nivel del cuello del peroné"]
[null,null,null,1,"2F0401","Trabajos en los que se produzca un apoyo prolongado y repetido de forma directa o indirecta sobre las correderas anatómicas que provocan lesiones nerviosas por compresión. Movimientos extremos de hiperflexión y de hiperextensión. Trabajos que requieran posición prolongada en cuclillas, como empedradores, soladores, colocadores de parqué, jardineros y similares."]
[null,null,5,null,null,"Parálisis de los nervios del serrato mayor, angular, romboides, circunflejo"]
[null,null,null,1,"2F0501","Trabajos en los que se produzca un apoyo prolongado y repetido de forma directa o indirecta sobre las correderas anatómicas que provocan lesiones nerviosas por compresión. Movimientos extremos de hiperflexión y de hiperextensión. Trabajos que requieran carga repetida sobre la espalda de objetos pesados y rígidos, como mozos de mudanzas, empleados de carga y descarga y similares."]
[null,null,6,null,null,"Parálisis del nervio radial por compresión del mismo"]
[null,null,null,1,"2F0601","Trabajos en los que se produzca un apoyo prolongado y repetido de forma directa o indirecta sobre las correderas anatómicas que provocan lesiones nerviosas por compresión. Movimientos extremos de hiperflexión y de hiperextensión. Trabajos que entrañen contracción repetida del músculo supinador largo, como conductores de automóviles, presión crónica por uso de tijera"]
[null,"G",null,null,null,"Enfermedades provocadas por posturas forzadas y movimientos repetitivos en el trabajo:"]
[null,null,1,null,null,"Lesiones del menisco por mecanismos de arrancamiento y compresión asociadas, dando lugar a fisuras o roturas completas"]
[null,null,null,1,"2G0101","Trabajos que requieran posturas en hiperflexión de la rodilla en posición mantenida en cuclillas de manera prolongada como son: Trabajos en minas subterráneas, electricistas, soladores, instaladores de suelos de madera, fontaneros."]
[null,"H",1,null,null,"Enfermedades provocadas por compresión o descompresión atmosférica"]
[null,null,null,1,"2H0101","Trabajos subacuáticos en operadores de cámaras submarinas hiperbáricas con escafandra o provistos de equipos de buceo autónomo."]
[null,null,null,2,"2H0102","Todo trabajo efectuado en un medio hiperbárico."]
[null,null,null,3,"2H0103","Deficiencia mantenida de los sistemas de presurización durante vuelos de gran altitud."]
[null,"I",1,null,null,"Enfermedades provocadas por radiaciones ionizantes"]
[null,null,null,null,null,"Todos los trabajos expuestos a la acción de los rayos X o de las sustancias radiactivas naturales o artificiales o a cualquier fuente de emisión corpuscular, y especialmente:"]
[null,null,null,1,"2I0101","Trabajos de extracción y tratamiento de minerales radiactivos."]
[null,null,null,2,"2I0102","Fabricación de aparatos de rayos X y de radioterapia."]
[null,null,null,3,"2I0103","Fabricación de productos químicos y farmacéuticos radiactivos."]
[null,null,null,4,"2I0104","Empleo de sustancias radiactivas y rayos X en los laboratorios de investigación."]
[null,null,null,5,"2I0105","Fabricación y aplicación de productos luminosos con sustancias radiactivas en pinturas de esferas de relojería."]
[null,null,null,6,"2I0106","Trabajos industriales en que se utilicen rayos X y materiales radiactivos, medidas de espesor y de desgaste."]
[null,null,null,7,"2I0107","Trabajos en las consultas de radiodiagnóstico, de radio y radioterapia y de aplicación de isótopos radiactivos, en consultas, clínicas, sanatorios, residencias y hospitales."]
[null,null,null,8,"2I0108","Conservación de alimentos."]
[null,null,null,9,"2I0109","Reactores de investigación y de producción de energía."]
[null,null,null,10,"2I0110","Instalación de producción y tratamiento de radioelementos."]
[null,null,null,11,"2I0111","Fábrica de enriquecimiento de combustibles."]
[null,null,null,12,"2I0112","Instalaciones de tratamiento y almacenamiento de residuos radiactivos."]
[null,null,null,13,"2I0113","Transporte de materias radiactivas."]
[null,"J",1,null,null,"Enfermedades oftalmológicas a consecuencia de exposiciones a radiaciones ultravioletas"]
[null,null,null,null,null,"Trabajos con exposición a radiaciones no ionizantes con longitud de onda entre los 100 y 400 nm, como son:"]
[null,null,null,1,"2J0101","Trabajos que precisan lámparas germicidas, antorchas de plomo, soldadura de arco o xenón, irradiación solar en grandes altitudes, láser industrial, colada de metales en fusión, vidrieros, empleados en estudios de cine, actores, personal de teatros, laboratorios bacteriológicos y similares."]
[null,"K",1,null,null,"Enfermedades provocadas por la energía radiante"]
[null,null,null,1,"2K0101","Trabajos con cristal incandescente, masas y superficies incandescentes, en fundiciones, acererías, etc., así como en fábricas de carburos."]
[null,"L",1,null,null,"Nódulos de las cuerdas vocales a causa de los esfuerzos sostenidos de la voz por motivos profesionales"]
[null,null,null,1,"2L0101","Actividades en las que se precise uso mantenido y continuo de la voz, como son profesores, cantantes, actores, teleoperadores, locutores."]
[null,"M",1,null,null,"Nistagmus de los mineros"]
[null,null,null,1,"2N0101","Trabajadores de la minería subterránea"]
[3,null,null,null,null,"Enfermedades profesionales causadas por agentes biológicos"]
[null,"A",1,null,null,"Enfermedades infecciosas causadas por el trabajo de las personas que se ocupan de la prevención, asistencia médica y actividades en las que se ha probado un riesgo de infección (excluidos aquellos microorganismos incluidos en el grupo 1 del R.D. 664/1997, de 12 de mayo regulador de la protección de los trabajadores contra los riesgos relacionados con la exposición a agentes biológicos durante el trabajo)"]
[null,null,null,1,"3A0101","Personal sanitario."]
[null,null,null,2,"3A0102","Personal sanitario y auxiliar de instituciones cerradas."]
[null,null,null,3,"3A0103","Personal de laboratorio."]
[null,null,null,4,"3A0104","Personal no sanitario, trabajadores de centros asistenciales o de cuidados de enfermos, tanto en ambulatorios como en instituciones cerradas o a domicilio."]
[null,null,null,5,"3A0105","Trabajadores de laboratorios de investigación o análisis clínicos."]
[null,null,null,6,"3A0106","Trabajos de toma, manipulación o empleo de sangre humana o sus derivados."]
[null,null,null,7,"3A0107","Odontólogos."]
[null,null,null,8,"3A0108","Personal de auxilio."]
[null,null,null,9,"3A0109","Trabajadores de centros penitenciarios."]
[null,null,null,10,"3A0110","Personal de orden público."]
[null,"B",1,null,null,"Enfermedades infecciosas o parasitarias transmitidas al hombre por los animales o por sus productos y cadáveres"]
[null,null,null,1,"3B0101","Agricultores."]
[null,null,null,2,"3B0102","Ganaderos."]
[null,null,null,3,"3B0103","Matarifes."]
[null,null,null,4,"3B0104","Peleteros."]
[null,null,null,5,"3B0105","Curtidores."]
[null,null,null,6,"3B0106","Veterinarios."]
[null,null,null,7,"3B0107","Diseñadores de prendas de piel."]
[null,null,null,8,"3B0108","Trabajos de manipulación, carga, descarga, transporte y empleo de los despojos de animales."]
[null,null,null,9,"3B0109","Pastores."]
[null,null,null,10,"3B0110","Personal sanitario."]
[null,null,null,11,"3B0111","Personal de laboratorios."]
[null,null,null,12,"3B0112","Personal de mataderos."]
[null,null,null,13,"3B0113","Personal de cuidado, recogida, cría y transporte de animales."]
[null,null,null,14,"3B0114","Obreros rurales."]
[null,null,null,15,"3B0115","Carniceros."]
[null,null,null,16,"3B0116","Veterinarios."]
[null,null,null,17,"3B0117","Avicultores."]
[null,null,null,18,"3B0118","Tiendas de animales."]
[null,null,null,19,"3B0119","Trabajos con riesgos de herida en ambiente potencialmente peligroso."]
[null,null,null,20,"3B0120","Trabajos de manipulación de excretas humanas o de animales."]
[null,null,null,21,"3B0121","Granjeros."]
[null,null,null,22,"3B0122","Guardas de caza."]
[null,null,null,23,"3B0123","Trabajos forestales."]
[null,null,null,24,"3B0124","Trabajadores del campo."]
[null,null,null,25,"3B0125","Segadores de arrozales."]
[null,null,null,26,"3B0126","Porquerizos."]
[null,null,null,27,"3B0127","Trabajos de alcantarillado (ratas)."]
[null,null,null,28,"3B0128","Vaqueros."]
[null,null,null,29,"3B0129","Profesiones en contacto con ganado equino."]
[null,null,null,30,"3B0130","Personal de conservación de la naturaleza."]
[null,null,null,31,"3B0131","Personal de orden publico."]
[null,null,null,32,"3B0132","Trabajos que impliquen la manipulación o exposición de excretas de animales: ganaderos, veterinarios, trabajadores de animalarios."]
[null,"C",1,null,null,"Paludismo, amebiasis, tripanosomiasis, dengue, fiebre amarilla, fiebre papataci, fiebre recurrente, peste, lesishmaniosis, pian, tifus exantemático, borrelias y otras ricketsiosis"]
[null,null,null,1,"3C0101","Trabajos desarrollados en zonas endémicas."]
[null,"D",1,null,null,"Enfermedades infecciosas y parasitarias no contempladas en otros apartados: micosis, legionella y helmintiasis."]
[null,null,null,1,"3D0101","Trabajos en cuevas de fermentación."]
[null,null,null,2,"3D0102","Plantas de procesamiento de las patatas."]
[null,null,null,3,"3D0103","Museos y bibliotecas."]
[null,null,null,4,"3D0104","Trabajos en contacto con humedad."]
[null,null,null,5,"3D0105","Trabajadores dedicados a la limpieza y mantenimiento de instalaciones que sean susceptibles de transmitir la legionella."]
[null,null,null,6,"3D0106","Trabajos subterráneos: minas, túneles, galerías, cuevas."]
[null,null,null,7,"3D0107","Trabajos en zonas húmedas y/o pantanosas: pantanos, arrozales, salinas, huertas."]
[null,null,null,8,"3D0108","Agricultores (centeno)."]
[null,null,null,9,"3D0109","Trabajos de fermentación del vinagre."]
[4,null,null,null,null,"Enfermedades profesionales causadas por inhalación de sustancias y agentes no comprendidas en otros apartados"]
[null,"A",null,null,null,"Polvo de sílice libre:"]
[null,null,1,null,null,"Silicosis"]
[null,null,null,null,null,"Trabajos expuestos a la inhalación de polvo de sílice libre, y especialmente:"]
[null,null,null,1,"4A0101","Trabajos en minas, túneles, canteras, galerías, obras públicas."]
[null,null,null,2,"4A0102","Tallado y pulido de rocas silíceas, trabajos de canterías."]
[null,null,null,3,"4A0103","Trabajos en seco, de trituración, tamizado y manipulación de minerales o rocas."]
[null,null,null,4,"4A0104","Fabricación de carborundo, vidrio, porcelana, loza y otros productos cerámicos, fabricación y conservación de los ladrillos refractarios a base de sílice."]
[null,null,null,5,"4A0105","Fabricación y manutención de abrasivos y de polvos detergentes."]
[null,null,null,6,"4A0106","Trabajos de desmoldeo, desbardado y desarenado en las fundiciones."]
[null,null,null,7,"4A0107","Trabajos con muelas (pulido, afinado) que contengan sílice libre."]
[null,null,null,8,"4A0108","Trabajos en chorro de arena y esmeril."]
[null,null,null,9,"4A0109","Industria cerámica."]
[null,null,null,10,"4A0110","Industria siderometalúrgica."]
[null,null,null,11,"4A0111","Fabricación de refractarios."]
[null,null,null,12,"4A0112","Fabricación de abrasivos."]
[null,null,null,13,"4A0113","Industria del papel."]
[null,null,null,14,"4A0114","Fabricación de pinturas, plásticos y gomas."]
[null,"B",null,null,null,"Polvo de carbón:"]
[null,null,1,null,null,"Neumoconiosis de los mineros de carbón"]
[null,null,null,1,"4B0101","Trabajos que impliquen exposición a polvo de carbón."]
[null,"C",null,null,null,"Polvos de amianto (asbesto):"]
[null,null,1,null,null,"Asbestosis"]
[null,null,null,null,null,"Trabajos expuestos a la inhalación de polvos de amianto (asbesto), y especialmente:"]
[null,null,null,1,"4C0101","Trabajos de extracción, manipulación y tratamiento de minerales o rocas amiantíferas."]
[null,null,null,2,"4C0102","Fabricación de tejidos, cartones y papeles de amianto."]
[null,null,null,3,"4C0103","Tratamiento preparatorio de fibras de amianto (cardado, hilado, tramado, etc.)."]
[null,null,null,4,"4C0104","Aplicación de amianto a pistola (chimeneas, fondos de automóviles y vagones)."]
[null,null,null,5,"4C0105","Trabajos de aislamiento térmico en construcción naval y de edificios y su destrucción."]
[null,null,null,6,"4C0106","Fabricación de guarniciones para frenos y embragues, de productos de fibrocemento, de equipos contra incendios, de filtros y cartón de amianto, de juntas de amianto y caucho."]
[null,null,null,7,"4C0107","Desmontaje y demolición de instalaciones que contengan amianto."]
[null,null,null,8,"4C0108","Carga, descarga o transporte de mercancías que pudieran contener fibras de amianto."]
[null,null,2,null,null,"Afecciones fibrosantes de la pleura y pericardio que cursan con restricción respiratoria o cardíaca provocadas por amianto."]
[null,null,null,null,null,"Trabajos expuestos a la inhalación de polvos de amianto (asbesto), y especialmente:"]
[null,null,null,1,"4C0201","Trabajos de extracción, manipulación y tratamiento de minerales o rocas amiantíferas."]
[null,null,null,2,"4C0202","Fabricación de tejidos, cartones y papeles de amianto."]
[null,null,null,3,"4C0203","Tratamiento preparatorio de fibras de amianto (cardado, hilado, tramado, etc.)."]
[null,null,null,4,"4C0204","Aplicación de amianto a pistola (chimeneas, fondos de automóviles y vagones)."]
[null,null,null,5,"4C0205","Trabajos de aislamiento térmico en construcción naval y de edificios y su destrucción."]
[null,null,null,6,"4C0206","Fabricación de guarniciones para frenos y embragues, de productos de fibrocemento, de equipos contra incendios, de filtros y cartón de amianto, de juntas de amianto y caucho."]
[null,null,null,7,"4C0207","Desmontaje y demolición de instalaciones que contengan amianto."]
[null,null,null,8,"4C0208","Carga, descarga o transporte de mercancías que pudieran contener fibras de amianto."]
[null,"D",null,null,null,"Otros polvos de minerales (talco, caolín, tierra de batán, bentonita, sepiolita, mica, otros silicatos naturales):"]
[null,null,1,null,null,"Talcosis"]
[null,null,null,1,"4D0101","Extracción y tratamiento de minerales que liberen polvo de silicatos."]
[null,null,null,2,"4D0102","Industria farmacéutica y cosmética."]
[null,null,null,3,"4D0103","Industria cerámica y de la porcelana."]
[null,null,null,4,"4D0104","Fabricación de materiales refractarios."]
[null,null,null,5,"4D0105","Industria textil."]
[null,null,null,6,"4D0106","Industria de la alimentación."]
[null,null,null,7,"4D0107","Industria del papel del linóleo, cartón y de ciertas especies de fibrocemento."]
[null,null,null,8,"4D0108","Industria del caucho."]
[null,null,null,9,"4D0109","Fabricación de tintes y pinturas."]
[null,null,null,10,"4D0110","Industrias de pieles."]
[null,null,null,11,"4D0111","Industria de perfumes y productos de belleza, fábricas de jabones y en joyería."]
[null,null,null,12,"4D0112","Industria química."]
[null,null,null,13,"4D0113","Industria metalúrgica."]
[null,null,null,14,"4D0114","Trabajos de explotación de minas de hierro cuyo contenido en sílice sea prácticamente nulo."]
[null,null,null,15,"4D0115","Trabajos expuestos a la inhalación de talco cuando esta combinado con tremolita, serpentina o antofilita."]
[null,null,null,16,"4D0116","Operaciones de molido y ensacado de la barita."]
[null,null,2,null,null,"Silicocaolinosis"]
[null,null,null,1,"4D0201","Extracción y tratamiento de minerales que liberen polvo de silicatos."]
[null,null,null,2,"4D0202","Industria farmacéutica y cosmética."]
[null,null,null,3,"4D0203","Industria cerámica y de la porcelana."]
[null,null,null,4,"4D0204","Fabricación de materiales refractarios."]
[null,null,null,5,"4D0205","Industria textil."]
[null,null,null,6,"4D0206","Industria de la alimentación."]
[null,null,null,7,"4D0207","Industria del papel del linóleo, cartón y de ciertas especies de fibrocemento."]
[null,null,null,8,"4D0208","Industria del caucho."]
[null,null,null,9,"4D0209","Fabricación de tintes y pinturas."]
[null,null,null,10,"4D0210","Industrias de pieles."]
[null,null,null,11,"4D0211","Industria de perfumes y productos de belleza, fabricas de jabones y en joyería."]
[null,null,null,12,"4D0212","Industria química."]
[null,null,null,13,"4D0213","Industria metalúrgica."]
[null,null,null,14,"4D0214","Trabajos de explotación de minas de hierro cuyo contenido en sílice sea prácticamente nulo."]
[null,null,null,15,"4D0215","Trabajos expuestos a la inhalación de talco cuando esta combinado con tremolita, serpentina o antofilita."]
[null,null,null,16,"4D0216","Operaciones de molido y ensacado de la barita."]
[null,null,3,null,null,"Caolinosis y otras silicatosis"]
[null,null,null,1,"4D0301","Extracción y tratamiento de minerales que liberen polvo de silicatos."]
[null,null,null,2,"4D0302","Industria farmacéutica y cosmética."]
[null,null,null,3,"4D0303","Industria cerámica y de la porcelana."]
[null,null,null,4,"4D0304","Fabricación de materiales refractarios."]
[null,null,null,5,"4D0305","Industria textil."]
[null,null,null,6,"4D0306","Industria de la alimentación."]
[null,null,null,7,"4D0307","Industria del papel del linóleo, cartón y de ciertas especies de fibrocemento."]
[null,null,null,8,"4D0308","Industria del caucho."]
[null,null,null,9,"4D0309","Fabricación de tintes y pinturas."]
[null,null,null,10,"4D0310","Industrias de pieles."]
[null,null,null,11,"4D0311","Industria de perfumes y productos de belleza, fabricas de jabones y en joyería."]
[null,null,null,12,"4D0312","Industria química."]
[null,null,null,13,"4D0313","Industria metalúrgica."]
[null,null,null,14,"4D0314","Trabajos de explotación de minas de hierro cuyo contenido en sílice sea prácticamente nulo."]
[null,null,null,15,"4D0315","Trabajos expuestos a la inhalación de talco cuando esta combinado con tremolita, serpentina o antofilita."]
[null,null,null,16,"4D0316","Operaciones de molido y ensacado de la barita."]
[null,"E",null,null,null,"Metales sintetizados, compuestos de carburos metálicos de alto punto de fusión y metales de ligazón de bajo punto de fusión:"]
[null,null,1,null,null,"Neumoconiosis por metal duro o acero de Widia."]
[null,null,null,1,"4E0101","Trabajos en los que exista la posibilidad de inhalación de metales sinterizados, compuestos de carburos metálicos de alto punto de fusión y metales de ligazón de bajo punto de fusión (Los carburos metálicos más utilizados son los de titanio, vanadio, cromo, molibdeno, tungsteno y wolframio; como metales de ligazón se utilizan hierro, níquel y cobalto)."]
[null,null,null,2,"4E0102","Trabajos de mezclado, tamizado, moldeado y rectificado de carburos de tungsteno, titanio, tantalio, vanadio y molibdeno aglutinados con cobalto, hierro y níquel."]
[null,null,null,3,"4E0103","Pulidores de metales."]
[null,null,2,null,null,"Siderosis"]
[null,null,null,1,"4E0201","Trabajos en los que exista la posibilidad de inhalación de metales sinterizados, compuestos de carburos metálicos de alto punto de fusión y metales de ligazón de bajo punto de fusión (Los carburos metálicos más utilizados son los de titanio, vanadio, cromo, molibdeno, tungsteno y wolframio; como metales de ligazón se utilizan hierro, níquel y cobalto)."]
[null,null,null,2,"4E0202","Trabajos de mezclado, tamizado, moldeado y rectificado de carburos de tungsteno, titanio, tantalio, vanadio y molibdeno aglutinados con cobalto, hierro y níquel."]
[null,null,null,3,"4E0203","Pulidores de metales."]
[null,"F",1,null,null,"Escorias de Thomas"]
[null,null,null,1,"4F0101","Fabricación y utilización de escorias de Thomas como abono."]
[null,"G",1,null,null,"Neumoconiosis por polvo de aluminio"]
[null,null,null,1,"4G0101","Extracción de aluminio a partir de sus minerales, en particular la separación por fusión electrolítica del oxido de aluminio, de la bauxita (fabricación de corindón artificial)."]
[null,null,null,2,"4G0102","Preparación de polvos de aluminio, especialmente el polvo fino (operaciones, demolido, cribado y mezclas)."]
[null,null,null,3,"4G0103","Preparación de aleaciones de aluminio."]
[null,null,null,4,"4G0104","Preparación de tintas de imprimir a partir del pigmento extraído de los residuos de los baños de fusión de la bauxita."]
[null,null,null,5,"4G0105","Fabricación y manipulación de abrasivos de aluminio."]
[null,null,null,6,"4G0106","Fabricación de artefactos pirotécnicos con granos de aluminio."]
[null,null,null,7,"4G0107","Utilización del hidrato de aluminio en la industria papelera (preparación del sulfato de aluminio), en el tratamiento de aguas, en la industria textil (capa impermeabilizante), en las refinerías de petróleo (preparación y utilización de ciertos catalizadores) y en numerosas industrias donde el aluminio y sus compuestos entran en la composición de numerosas aleaciones."]
[null,"H",null,null,null,"Sustancias de alto peso molecular (sustancias de origen vegetal, animal, microorganismos, y sustancias enzimáticas de origen vegetal, animal y/o de microorganismos):"]
[null,null,1,null,null,"Rinoconjuntivitis"]
[null,null,null,null,null,"Trabajos en los que exista exposición a los agentes mencionados, relacionados con:"]
[null,null,null,1,"4H0101","Industria alimenticia, panadería, industria de la cerveza."]
[null,null,null,2,"4H0102","Industria del té, industria del café, industria del aceite."]
[null,null,null,3,"4H0103","Industria del lino."]
[null,null,null,4,"4H0104","Industria de la malta."]
[null,null,null,5,"4H0105","Procesamiento de canela."]
[null,null,null,6,"4H0106","Procesamiento de la soja."]
[null,null,null,7,"4H0107","Elaboración de especias."]
[null,null,null,8,"4H0108","Molienda de semillas."]
[null,null,null,9,"4H0109","Lavadores de queso."]
[null,null,null,10,"4H0110","Manipuladores de enzimas."]
[null,null,null,11,"4H0111","Trabajadores de silos y molinos."]
[null,null,null,12,"4H0112","Trabajos de agricultura."]
[null,null,null,13,"4H0113","Granjeros, ganaderos, veterinarios y procesadores de carne."]
[null,null,null,14,"4H0114","Trabajos en avicultura."]
[null,null,null,15,"4H0115","Trabajos en piscicultura."]
[null,null,null,16,"4H0116","Industria química."]
[null,null,null,17,"4H0117","Industria del plástico, industria del látex."]
[null,null,null,18,"4H0118","Industria farmacéutica."]
[null,null,null,19,"4H0119","Industria textil."]
[null,null,null,20,"4H0120","Industria del papel."]
[null,null,null,21,"4H0121","Industria del cuero."]
[null,null,null,22,"4H0122","Industria de la madera: aserraderos, carpintería, acabados de madera."]
[null,null,null,23,"4H0123","Personal sanitario, higienistas dentales."]
[null,null,null,24,"4H0124","Personal de laboratorios médicos y farmacéuticos."]
[null,null,null,25,"4H0125","Trabajos con harinas de pescado y piensos compuestos."]
[null,null,null,26,"4H0126","Personal de zoológicos, entomólogos."]
[null,null,null,27,"4H0127","Encuadernadores."]
[null,null,null,28,"4H0128","Personal de limpieza."]
[null,null,null,29,"4H0129","Trabajos en los que se manipula cáñamo, bagazo de caña de azúcar, yute, lino, esparto, sisal y corcho."]
[null,null,null,30,"4H0130","Construcción."]
[null,null,null,31,"4H0131","Aplicación de pinturas, pigmentos etc., mediante aerografía."]
[null,null,2,null,null,"Asma"]
[null,null,null,null,null,"Trabajos en los que exista exposición a los agentes mencionados, relacionados con:"]
[null,null,null,1,"4H0201","Industria alimenticia, panadería, industria de la cerveza."]
[null,null,null,2,"4H0202","Industria del té, industria del café, industria del aceite."]
[null,null,null,3,"4H0203","Industria del lino."]
[null,null,null,4,"4H0204","Industria de la malta."]
[null,null,null,5,"4H0205","Procesamiento de canela."]
[null,null,null,6,"4H0206","Procesamiento de la soja."]
[null,null,null,7,"4H0207","Elaboración de especias."]
[null,null,null,8,"4H0208","Molienda de semillas."]
[null,null,null,9,"4H0209","Lavadores de queso."]
[null,null,null,10,"4H0210","Manipuladores de enzimas."]
[null,null,null,11,"4H0211","Trabajadores de silos y molinos."]
[null,null,null,12,"4H0212","Trabajos de agricultura."]
[null,null,null,13,"4H0213","Granjeros, ganaderos, veterinarios y procesadores de carne."]
[null,null,null,14,"4H0214","Trabajos en avicultura."]
[null,null,null,15,"4H0215","Trabajos en piscicultura."]
[null,null,null,16,"4H0216","Industria química."]
[null,null,null,17,"4H0217","Industria del plástico, industria del látex."]
[null,null,null,18,"4H0218","Industria farmacéutica."]
[null,null,null,19,"4H0219","Industria textil."]
[null,null,null,20,"4H0220","Industria del papel."]
[null,null,null,21,"4H0221","Industria del cuero."]
[null,null,null,22,"4H0222","Industria de la madera: aserraderos, carpintería, acabados de madera."]
[null,null,null,23,"4H0223","Personal sanitario, higienistas dentales."]
[null,null,null,24,"4H0224","Personal de laboratorios médicos y farmacéuticos."]
[null,null,null,25,"4H0225","Trabajos con harinas de pescado y piensos compuestos."]
[null,null,null,26,"4H0226","Personal de zoológicos, entomólogos."]
[null,null,null,27,"4H0227","Encuadernadores."]
[null,null,null,28,"4H0228","Personal de limpieza."]
[null,null,null,29,"4H0229","Trabajos en los que se manipula cáñamo, bagazo de caña de azúcar, yute, lino, esparto, sisal y corcho."]
[null,null,null,30,"4H0230","Construcción."]
[null,null,null,31,"4H0231","Aplicación de pinturas, pigmentos etc., mediante aerografía."]
[null,null,3,null,null,"Alveolitis alégica extrínseca (o neumonitis de hipersensibilidad)"]
[null,null,null,null,null,"Trabajos en los que exista exposición a los agentes mencionados, relacionados con:"]
[null,null,null,1,"4H0301","Industria alimenticia, panadería, industria de la cerveza."]
[null,null,null,2,"4H0302","Industria del té, industria del café, industria del aceite."]
[null,null,null,3,"4H0303","Industria del lino."]
[null,null,null,4,"4H0304","Industria de la malta."]
[null,null,null,5,"4H0305","Procesamiento de canela."]
[null,null,null,6,"4H0306","Procesamiento de la soja."]
[null,null,null,7,"4H0307","Elaboración de especias."]
[null,null,null,8,"4H0308","Molienda de semillas."]
[null,null,null,9,"4H0309","Lavadores de queso."]
[null,null,null,10,"4H0310","Manipuladores de enzimas."]
[null,null,null,11,"4H0311","Trabajadores de silos y molinos."]
[null,null,null,12,"4H0312","Trabajos de agricultura."]
[null,null,null,13,"4H0313","Granjeros, ganaderos, veterinarios y procesadores de carne."]
[null,null,null,14,"4H0314","Trabajos en avicultura."]
[null,null,null,15,"4H0315","Trabajos en piscicultura."]
[null,null,null,16,"4H0316","Industria química."]
[null,null,null,17,"4H0317","Industria del plástico, industria del látex."]
[null,null,null,18,"4H0318","Industria farmacéutica."]
[null,null,null,19,"4H0319","Industria textil."]
[null,null,null,20,"4H0320","Industria del papel."]
[null,null,null,21,"4H0321","Industria del cuero."]
[null,null,null,22,"4H0322","Industria de la madera: aserraderos, carpintería, acabados de madera."]
[null,null,null,23,"4H0323","Personal sanitario, higienistas dentales."]
[null,null,null,24,"4H0324","Personal de laboratorios médicos y farmacéuticos."]
[null,null,null,25,"4H0325","Trabajos con harinas de pescado y piensos compuestos."]
[null,null,null,26,"4H0326","Personal de zoológicos, entomólogos."]
[null,null,null,27,"4H0327","Encuadernadores."]
[null,null,null,28,"4H0328","Personal de limpieza."]
[null,null,null,29,"4H0329","Trabajos en los que se manipula cáñamo, bagazo de caña de azúcar, yute, lino, esparto, sisal y corcho."]
[null,null,null,30,"4H0330","Construcción."]
[null,null,null,31,"4H0331","Aplicación de pinturas, pigmentos etc., mediante aerografía."]
[null,null,4,null,null,"Síndrome de disfunción reactivo de la vía área"]
[null,null,null,null,null,"Trabajos en los que exista exposición a los agentes mencionados, relacionados con:"]
[null,null,null,1,"4H0401","Industria alimenticia, panadería, industria de la cerveza."]
[null,null,null,2,"4H0402","Industria del té, industria del café, industria del aceite."]
[null,null,null,3,"4H0403","Industria del lino."]
[null,null,null,4,"4H0404","Industria de la malta."]
[null,null,null,5,"4H0405","Procesamiento de canela."]
[null,null,null,6,"4H0406","Procesamiento de la soja."]
[null,null,null,7,"4H0407","Elaboración de especias."]
[null,null,null,8,"4H0408","Molienda de semillas."]
[null,null,null,9,"4H0409","Lavadores de queso."]
[null,null,null,10,"4H0410","Manipuladores de enzimas."]
[null,null,null,11,"4H0411","Trabajadores de silos y molinos."]
[null,null,null,12,"4H0412","Trabajos de agricultura."]
[null,null,null,13,"4H0413","Granjeros, ganaderos, veterinarios y procesadores de carne."]
[null,null,null,14,"4H0414","Trabajos en avicultura."]
[null,null,null,15,"4H0415","Trabajos en piscicultura."]
[null,null,null,16,"4H0416","Industria química."]
[null,null,null,17,"4H0417","Industria del plástico, industria del látex."]
[null,null,null,18,"4H0418","Industria farmacéutica."]
[null,null,null,19,"4H0419","Industria textil."]
[null,null,null,20,"4H0420","Industria del papel."]
[null,null,null,21,"4H0421","Industria del cuero."]
[null,null,null,22,"4H0422","Industria de la madera: aserraderos, carpintería, acabados de madera."]
[null,null,null,23,"4H0423","Personal sanitario, higienistas dentales."]
[null,null,null,24,"4H0424","Personal de laboratorios médicos y farmacéuticos."]
[null,null,null,25,"4H0425","Trabajos con harinas de pescado y piensos compuestos."]
[null,null,null,26,"4H0426","Personal de zoológicos, entomólogos."]
[null,null,null,27,"4H0427","Encuadernadores."]
[null,null,null,28,"4H0428","Personal de limpieza."]
[null,null,null,29,"4H0429","Trabajos en los que se manipula cáñamo, bagazo de caña de azúcar, yute, lino, esparto, sisal y corcho."]
[null,null,null,30,"4H0430","Construcción."]
[null,null,null,31,"4H0431","Aplicación de pinturas, pigmentos etc., mediante aerografía."]
[null,null,5,null,null,"Fibrosis intersticial difusa"]
[null,null,null,null,null,"Trabajos en los que exista exposición a los agentes mencionados, relacionados con:"]
[null,null,null,1,"4H0501","Industria alimenticia, panadería, industria de la cerveza."]
[null,null,null,2,"4H0502","Industria del té, industria del café, industria del aceite."]
[null,null,null,3,"4H0503","Industria del lino."]
[null,null,null,4,"4H0504","Industria de la malta."]
[null,null,null,5,"4H0505","Procesamiento de canela."]
[null,null,null,6,"4H0506","Procesamiento de la soja."]
[null,null,null,7,"4H0507","Elaboración de especias."]
[null,null,null,8,"4H0508","Molienda de semillas."]
[null,null,null,9,"4H0509","Lavadores de queso."]
[null,null,null,10,"4H0510","Manipuladores de enzimas."]
[null,null,null,11,"4H0511","Trabajadores de silos y molinos."]
[null,null,null,12,"4H0512","Trabajos de agricultura."]
[null,null,null,13,"4H0513","Granjeros, ganaderos, veterinarios y procesadores de carne."]
[null,null,null,14,"4H0514","Trabajos en avicultura."]
[null,null,null,15,"4H0515","Trabajos en piscicultura."]
[null,null,null,16,"4H0516","Industria química."]
[null,null,null,17,"4H0517","Industria del plástico, industria del látex."]
[null,null,null,18,"4H0518","Industria farmacéutica."]
[null,null,null,19,"4H0519","Industria textil."]
[null,null,null,20,"4H0520","Industria del papel."]
[null,null,null,21,"4H0521","Industria del cuero."]
[null,null,null,22,"4H0522","Industria de la madera: aserraderos, carpintería, acabados de madera."]
[null,null,null,23,"4H0523","Personal sanitario, higienistas dentales."]
[null,null,null,24,"4H0524","Personal de laboratorios médicos y farmacéuticos."]
[null,null,null,25,"4H0525","Trabajos con harinas de pescado y piensos compuestos."]
[null,null,null,26,"4H0526","Personal de zoológicos, entomólogos."]
[null,null,null,27,"4H0527","Encuadernadores."]
[null,null,null,28,"4H0528","Personal de limpieza."]
[null,null,null,29,"4H0529","Trabajos en los que se manipula cáñamo, bagazo de caña de azúcar, yute, lino, esparto, sisal y corcho."]
[null,null,null,30,"4H0530","Construcción."]
[null,null,null,31,"4H0531","Aplicación de pinturas, pigmentos etc., mediante aerografía."]
[null,null,6,null,null,"Otras enfermedades de mecanismo impreciso (bisinosis, cannabiosis, yuterosis, linnosis, bagazosis, estipatosis, suberosis, etc.)"]
[null,null,null,null,null,"Trabajos en los que exista exposición a los agentes mencionados, relacionados con:"]
[null,null,null,1,"4H0601","Industria alimenticia, panadería, industria de la cerveza."]
[null,null,null,2,"4H0602","Industria del té, industria del café, industria del aceite."]
[null,null,null,3,"4H0603","Industria del lino."]
[null,null,null,4,"4H0604","Industria de la malta."]
[null,null,null,5,"4H0605","Procesamiento de canela."]
[null,null,null,6,"4H0606","Procesamiento de la soja."]
[null,null,null,7,"4H0607","Elaboración de especias."]
[null,null,null,8,"4H0608","Molienda de semillas."]
[null,null,null,9,"4H0609","Lavadores de queso."]
[null,null,null,10,"4H0610","Manipuladores de enzimas."]
[null,null,null,11,"4H0611","Trabajadores de silos y molinos."]
[null,null,null,12,"4H0612","Trabajos de agricultura."]
[null,null,null,13,"4H0613","Granjeros, ganaderos, veterinarios y procesadores de carne."]
[null,null,null,14,"4H0614","Trabajos en avicultura."]
[null,null,null,15,"4H0615","Trabajos en piscicultura."]
[null,null,null,16,"4H0616","Industria química."]
[null,null,null,17,"4H0617","Industria del plástico, industria del látex."]
[null,null,null,18,"4H0618","Industria farmacéutica."]
[null,null,null,19,"4H0619","Industria textil."]
[null,null,null,20,"4H0620","Industria del papel."]
[null,null,null,21,"4H0621","Industria del cuero."]
[null,null,null,22,"4H0622","Industria de la madera: aserraderos, carpintería, acabados de madera."]
[null,null,null,23,"4H0623","Personal sanitario, higienistas dentales."]
[null,null,null,24,"4H0624","Personal de laboratorios médicos y farmacéuticos."]
[null,null,null,25,"4H0625","Trabajos con harinas de pescado y piensos compuestos."]
[null,null,null,26,"4H0626","Personal de zoológicos, entomólogos."]
[null,null,null,27,"4H0627","Encuadernadores."]
[null,null,null,28,"4H0628","Personal de limpieza."]
[null,null,null,29,"4H0629","Trabajos en los que se manipula cáñamo, bagazo de caña de azúcar, yute, lino, esparto, sisal y corcho."]
[null,null,null,30,"4H0630","Construcción."]
[null,null,null,31,"4H0631","Aplicación de pinturas, pigmentos etc., mediante aerografía."]
[null,null,7,null,null,"Neumapatía intersticial difusa"]
[null,null,null,null,null,"Trabajos en los que exista exposición a los agentes mencionados, relacionados con:"]
[null,null,null,1,"4H0701","Industria alimenticia, panadería, industria de la cerveza."]
[null,null,null,2,"4H0702","Industria del té, industria del café, industria del aceite."]
[null,null,null,3,"4H0703","Industria del lino."]
[null,null,null,4,"4H0704","Industria de la malta."]
[null,null,null,5,"4H0705","Procesamiento de canela."]
[null,null,null,6,"4H0706","Procesamiento de la soja."]
[null,null,null,7,"4H0707","Elaboración de especias."]
[null,null,null,8,"4H0708","Molienda de semillas."]
[null,null,null,9,"4H0709","Lavadores de queso."]
[null,null,null,10,"4H0710","Manipuladores de enzimas."]
[null,null,null,11,"4H0711","Trabajadores de silos y molinos."]
[null,null,null,12,"4H0712","Trabajos de agricultura."]
[null,null,null,13,"4H0713","Granjeros, ganaderos, veterinarios y procesadores de carne."]
[null,null,null,14,"4H0714","Trabajos en avicultura."]
[null,null,null,15,"4H0715","Trabajos en piscicultura."]
[null,null,null,16,"4H0716","Industria química."]
[null,null,null,17,"4H0717","Industria del plástico, industria del látex."]
[null,null,null,18,"4H0718","Industria farmacéutica."]
[null,null,null,19,"4H0719","Industria textil."]
[null,null,null,20,"4H0720","Industria del papel."]
[null,null,null,21,"4H0721","Industria del cuero."]
[null,null,null,22,"4H0722","Industria de la madera: aserraderos, carpintería, acabados de madera."]
[null,null,null,23,"4H0723","Personal sanitario, higienistas dentales."]
[null,null,null,24,"4H0724","Personal de laboratorios médicos y farmacéuticos."]
[null,null,null,25,"4H0725","Trabajos con harinas de pescado y piensos compuestos."]
[null,null,null,26,"4H0726","Personal de zoológicos, entomólogos."]
[null,null,null,27,"4H0727","Encuadernadores."]
[null,null,null,28,"4H0728","Personal de limpieza."]
[null,null,null,29,"4H0729","Trabajos en los que se manipula cáñamo, bagazo de caña de azúcar, yute, lino, esparto, sisal y corcho."]
[null,null,null,30,"4H0730","Construcción."]
[null,null,null,31,"4H0731","Aplicación de pinturas, pigmentos etc., mediante aerografía."]
[null,"I",null,null,null,"Sustancias de bajo peso molecular (metales y sus sales, polvos de maderas, productos farmacéuticos, sustancias químico plásticas, aditivos, etc.):"]
[null,null,1,null,null,"Rinoconjuntivitis"]
[null,null,null,null,null,"Trabajos en los que exista exposición a los agentes mencionados, relacionados con:"]
[null,null,null,1,"4I0101","Industria del cuero."]
[null,null,null,2,"4I0102","Industria química."]
[null,null,null,3,"4I0103","Industria textil."]
[null,null,null,4,"4I0104","Industria cosmética y farmacéutica."]
[null,null,null,5,"4I0105","Trabajos de peluquería."]
[null,null,null,6,"4I0106","Fabricación de resinas y endurecedores."]
[null,null,null,7,"4I0107","Trabajos en fundiciones."]
[null,null,null,8,"4I0108","Fijado y revelado de fotografía."]
[null,null,null,9,"4I0109","Fabricación y aplicación de lacas, pinturas, colorantes, adhesivos, barnices, esmaltes."]
[null,null,null,10,"4I0110","Industria electrónica."]
[null,null,null,11,"4I0111","Industria aeronáutica."]
[null,null,null,12,"4I0112","Industria del plástico."]
[null,null,null,13,"4I0113","Industria del caucho."]
[null,null,null,14,"4I0114","Industria del papel."]
[null,null,null,15,"4I0115","Industria de la madera: Aserraderos, acabados de madera, carpintería, ebanistería, fabricación y utilización de conglomerados de madera."]
[null,null,null,16,"4I0116","Fabricación de espumas de poliuretano y su aplicación en estado líquido."]
[null,null,null,17,"4I0117","Fabricación de látex."]
[null,null,null,18,"4I0118","Trabajos de aislamiento y revestimiento."]
[null,null,null,19,"4I0119","Trabajos de laboratorio."]
[null,null,null,20,"4I0120","Trabajos en fotocopiadoras."]
[null,null,null,21,"4I0121","Dentistas."]
[null,null,null,22,"4I0122","Personal sanitario: enfermería, anatomía patológica, laboratorio."]
[null,null,null,23,"4I0123","Flebología, granjeros, fumigadores."]
[null,null,null,24,"4I0124","Refinería de platino."]
[null,null,null,25,"4I0125","Galvanizado, plateado, niquelado y cromado de metales."]
[null,null,null,26,"4I0126","Soldadores."]
[null,null,null,27,"4I0127","Industria del aluminio."]
[null,null,null,28,"4I0128","Trabajos de joyería."]
[null,null,null,29,"4I0129","Trabajos con acero inoxidable."]
[null,null,null,30,"4I0130","Personal de limpieza."]
[null,null,null,31,"4I0131","Trabajadores sociales."]
[null,null,null,32,"4I0132","Trabajadores que se dedican al cuidado de personas y asimilados."]
[null,null,null,33,"4I0133","Aplicación de pinturas, pigmentos, etc., mediante aerografía."]
[null,null,2,null,null,"Urticarias, angioedemas"]
[null,null,null,null,null,"Trabajos en los que exista exposición a los agentes mencionados, relacionados con:"]
[null,null,null,1,"4I0201","Industria del cuero."]
[null,null,null,2,"4I0202","Industria química."]
[null,null,null,3,"4I0203","Industria textil."]
[null,null,null,4,"4I0204","Industria cosmética y farmacéutica."]
[null,null,null,5,"4I0205","Trabajos de peluquería."]
[null,null,null,6,"4I0206","Fabricación de resinas y endurecedores."]
[null,null,null,7,"4I0207","Trabajos en fundiciones."]
[null,null,null,8,"4I0208","Fijado y revelado de fotografía."]
[null,null,null,9,"4I0209","Fabricación y aplicación de lacas, pinturas, colorantes, adhesivos, barnices, esmaltes."]
[null,null,null,10,"4I0210","Industria electrónica."]
[null,null,null,11,"4I0211","Industria aeronáutica."]
[null,null,null,12,"4I0212","Industria del plástico."]
[null,null,null,13,"4I0213","Industria del caucho."]
[null,null,null,14,"4I0214","Industria del papel."]
[null,null,null,15,"4I0215","Industria de la madera: Aserraderos, acabados de madera, carpintería, ebanistería, fabricación y utilización de conglomerados de madera."]
[null,null,null,16,"4I0216","Fabricación de espumas de poliuretano y su aplicación en estado líquido."]
[null,null,null,17,"4I0217","Fabricación de látex."]
[null,null,null,18,"4I0218","Trabajos de aislamiento y revestimiento."]
[null,null,null,19,"4I0219","Trabajos de laboratorio."]
[null,null,null,20,"4I0220","Trabajos en fotocopiadoras."]
[null,null,null,21,"4I0221","Dentistas."]
[null,null,null,22,"4I0222","Personal sanitario: enfermería, anatomía patológica, laboratorio."]
[null,null,null,23,"4I0223","Flebología, granjeros, fumigadores."]
[null,null,null,24,"4I0224","Refinería de platino."]
[null,null,null,25,"4I0225","Galvanizado, plateado, niquelado y cromado de metales."]
[null,null,null,26,"4I0226","Soldadores."]
[null,null,null,27,"4I0227","Industria del aluminio."]
[null,null,null,28,"4I0228","Trabajos de joyería."]
[null,null,null,29,"4I0229","Trabajos con acero inoxidable."]
[null,null,null,30,"4I0230","Personal de limpieza."]
[null,null,null,31,"4I0231","Trabajadores sociales."]
[null,null,null,32,"4I0232","Trabajadores que se dedican al cuidado de personas y asimilados."]
[null,null,null,33,"4I0233","Aplicación de pinturas, pigmentos, etc., mediante aerografía."]
[null,null,3,null,null,"Asma"]
[null,null,null,null,null,"Trabajos en los que exista exposición a los agentes mencionados, relacionados con:"]
[null,null,null,1,"4I0301","Industria del cuero."]
[null,null,null,2,"4I0302","Industria química."]
[null,null,null,3,"4I0303","Industria textil."]
[null,null,null,4,"4I0304","Industria cosmética y farmacéutica."]
[null,null,null,5,"4I0305","Trabajos de peluquería."]
[null,null,null,6,"4I0306","Fabricación de resinas y endurecedores."]
[null,null,null,7,"4I0307","Trabajos en fundiciones."]
[null,null,null,8,"4I0308","Fijado y revelado de fotografía."]
[null,null,null,9,"4I0309","Fabricación y aplicación de lacas, pinturas, colorantes, adhesivos, barnices, esmaltes."]
[null,null,null,10,"4I0310","Industria electrónica."]
[null,null,null,11,"4I0311","Industria aeronáutica."]
[null,null,null,12,"4I0312","Industria del plástico."]
[null,null,null,13,"4I0313","Industria del caucho."]
[null,null,null,14,"4I0314","Industria del papel."]
[null,null,null,15,"4I0315","Industria de la madera: Aserraderos, acabados de madera, carpintería, ebanistería, fabricación y utilización de conglomerados de madera."]
[null,null,null,16,"4I0316","Fabricación de espumas de poliuretano y su aplicación en estado líquido."]
[null,null,null,17,"4I0317","Fabricación de látex."]
[null,null,null,18,"4I0318","Trabajos de aislamiento y revestimiento."]
[null,null,null,19,"4I0319","Trabajos de laboratorio."]
[null,null,null,20,"4I0320","Trabajos en fotocopiadoras."]
[null,null,null,21,"4I0321","Dentistas."]
[null,null,null,22,"4I0322","Personal sanitario: enfermería, anatomía patológica, laboratorio."]
[null,null,null,23,"4I0323","Flebología, granjeros, fumigadores."]
[null,null,null,24,"4I0324","Refinería de platino."]
[null,null,null,25,"4I0325","Galvanizado, plateado, niquelado y cromado de metales."]
[null,null,null,26,"4I0326","Soldadores."]
[null,null,null,27,"4I0327","Industria del aluminio."]
[null,null,null,28,"4I0328","Trabajos de joyería."]
[null,null,null,29,"4I0329","Trabajos con acero inoxidable."]
[null,null,null,30,"4I0330","Personal de limpieza."]
[null,null,null,31,"4I0331","Trabajadores sociales."]
[null,null,null,32,"4I0332","Trabajadores que se dedican al cuidado de personas y asimilados."]
[null,null,null,33,"4I0333","Aplicación de pinturas, pigmentos, etc., mediante aerografía."]
[null,null,4,null,null,"Alveolitis alérgica extrínseca (o neumonitis de hipersensibilidad)"]
[null,null,null,null,null,"Trabajos en los que exista exposición a los agentes mencionados, relacionados con:"]
[null,null,null,1,"4I0401","Industria del cuero."]
[null,null,null,2,"4I0402","Industria química."]
[null,null,null,3,"4I0403","Industria textil."]
[null,null,null,4,"4I0404","Industria cosmética y farmacéutica."]
[null,null,null,5,"4I0405","Trabajos de peluquería."]
[null,null,null,6,"4I0406","Fabricación de resinas y endurecedores."]
[null,null,null,7,"4I0407","Trabajos en fundiciones."]
[null,null,null,8,"4I0408","Fijado y revelado de fotografía."]
[null,null,null,9,"4I0409","Fabricación y aplicación de lacas, pinturas, colorantes, adhesivos, barnices, esmaltes."]
[null,null,null,10,"4I0410","Industria electrónica."]
[null,null,null,11,"4I0411","Industria aeronáutica."]
[null,null,null,12,"4I0412","Industria del plástico."]
[null,null,null,13,"4I0413","Industria del caucho."]
[null,null,null,14,"4I0414","Industria del papel."]
[null,null,null,15,"4I0415","Industria de la madera: Aserraderos, acabados de madera, carpintería, ebanistería, fabricación y utilización de conglomerados de madera."]
[null,null,null,16,"4I0416","Fabricación de espumas de poliuretano y su aplicación en estado líquido."]
[null,null,null,17,"4I0417","Fabricación de látex."]
[null,null,null,18,"4I0418","Trabajos de aislamiento y revestimiento."]
[null,null,null,19,"4I0419","Trabajos de laboratorio."]
[null,null,null,20,"4I0420","Trabajos en fotocopiadoras."]
[null,null,null,21,"4I0421","Dentistas."]
[null,null,null,22,"4I0422","Personal sanitario: enfermería, anatomía patológica, laboratorio."]
[null,null,null,23,"4I0423","Flebología, granjeros, fumigadores."]
[null,null,null,24,"4I0424","Refinería de platino."]
[null,null,null,25,"4I0425","Galvanizado, plateado, niquelado y cromado de metales."]
[null,null,null,26,"4I0426","Soldadores."]
[null,null,null,27,"4I0427","Industria del aluminio."]
[null,null,null,28,"4I0428","Trabajos de joyería."]
[null,null,null,29,"4I0429","Trabajos con acero inoxidable."]
[null,null,null,30,"4I0430","Personal de limpieza."]
[null,null,null,31,"4I0431","Trabajadores sociales."]
[null,null,null,32,"4I0432","Trabajadores que se dedican al cuidado de personas y asimilados."]
[null,null,null,33,"4I0433","Aplicación de pinturas, pigmentos, etc., mediante aerografía."]
[null,null,5,null,null,"Síndrome de disfunción de la vía reactiva"]
[null,null,null,null,null,"Trabajos en los que exista exposición a los agentes mencionados, relacionados con:"]
[null,null,null,1,"4I0501","Industria del cuero."]
[null,null,null,2,"4I0502","Industria química."]
[null,null,null,3,"4I0503","Industria textil."]
[null,null,null,4,"4I0504","Industria cosmética y farmacéutica."]
[null,null,null,5,"4I0505","Trabajos de peluquería."]
[null,null,null,6,"4I0506","Fabricación de resinas y endurecedores."]
[null,null,null,7,"4I0507","Trabajos en fundiciones."]
[null,null,null,8,"4I0508","Fijado y revelado de fotografía."]
[null,null,null,9,"4I0509","Fabricación y aplicación de lacas, pinturas, colorantes, adhesivos, barnices, esmaltes."]
[null,null,null,10,"4I0510","Industria electrónica."]
[null,null,null,11,"4I0511","Industria aeronáutica."]
[null,null,null,12,"4I0512","Industria del plástico."]
[null,null,null,13,"4I0513","Industria del caucho."]
[null,null,null,14,"4I0514","Industria del papel."]
[null,null,null,15,"4I0515","Industria de la madera: Aserraderos, acabados de madera, carpintería, ebanistería, fabricación y utilización de conglomerados de madera."]
[null,null,null,16,"4I0516","Fabricación de espumas de poliuretano y su aplicación en estado líquido."]
[null,null,null,17,"4I0517","Fabricación de látex."]
[null,null,null,18,"4I0518","Trabajos de aislamiento y revestimiento."]
[null,null,null,19,"4I0519","Trabajos de laboratorio."]
[null,null,null,20,"4I0520","Trabajos en fotocopiadoras."]
[null,null,null,21,"4I0521","Dentistas."]
[null,null,null,22,"4I0522","Personal sanitario: enfermería, anatomía patológica, laboratorio."]
[null,null,null,23,"4I0523","Flebología, granjeros, fumigadores."]
[null,null,null,24,"4I0524","Refinería de platino."]
[null,null,null,25,"4I0525","Galvanizado, plateado, niquelado y cromado de metales."]
[null,null,null,26,"4I0526","Soldadores."]
[null,null,null,27,"4I0527","Industria del aluminio."]
[null,null,null,28,"4I0528","Trabajos de joyería."]
[null,null,null,29,"4I0529","Trabajos con acero inoxidable."]
[null,null,null,30,"4I0530","Personal de limpieza."]
[null,null,null,31,"4I0531","Trabajadores sociales."]
[null,null,null,32,"4I0532","Trabajadores que se dedican al cuidado de personas y asimilados."]
[null,null,null,33,"4I0533","Aplicación de pinturas, pigmentos, etc., mediante aerografía."]
[null,null,6,null,null,"Fibrosis intersticial difusa"]
[null,null,null,null,null,"Trabajos en los que exista exposición a los agentes mencionados, relacionados con:"]
[null,null,null,1,"4I0601","Industria del cuero."]
[null,null,null,2,"4I0602","Industria química."]
[null,null,null,3,"4I0603","Industria textil."]
[null,null,null,4,"4I0604","Industria cosmética y farmacéutica."]
[null,null,null,5,"4I0605","Trabajos de peluquería."]
[null,null,null,6,"4I0606","Fabricación de resinas y endurecedores."]
[null,null,null,7,"4I0607","Trabajos en fundiciones."]
[null,null,null,8,"4I0608","Fijado y revelado de fotografía."]
[null,null,null,9,"4I0609","Fabricación y aplicación de lacas, pinturas, colorantes, adhesivos, barnices, esmaltes."]
[null,null,null,10,"4I0610","Industria electrónica."]
[null,null,null,11,"4I0611","Industria aeronáutica."]
[null,null,null,12,"4I0612","Industria del plástico."]
[null,null,null,13,"4I0613","Industria del caucho."]
[null,null,null,14,"4I0614","Industria del papel."]
[null,null,null,15,"4I0615","Industria de la madera: Aserraderos, acabados de madera, carpintería, ebanistería, fabricación y utilización de conglomerados de madera."]
[null,null,null,16,"4I0616","Fabricación de espumas de poliuretano y su aplicación en estado líquido."]
[null,null,null,17,"4I0617","Fabricación de látex."]
[null,null,null,18,"4I0618","Trabajos de aislamiento y revestimiento."]
[null,null,null,19,"4I0619","Trabajos de laboratorio."]
[null,null,null,20,"4I0620","Trabajos en fotocopiadoras."]
[null,null,null,21,"4I0621","Dentistas."]
[null,null,null,22,"4I0622","Personal sanitario: enfermería, anatomía patológica, laboratorio."]
[null,null,null,23,"4I0623","Flebología, granjeros, fumigadores."]
[null,null,null,24,"4I0624","Refinería de platino."]
[null,null,null,25,"4I0625","Galvanizado, plateado, niquelado y cromado de metales."]
[null,null,null,26,"4I0626","Soldadores."]
[null,null,null,27,"4I0627","Industria del aluminio."]
[null,null,null,28,"4I0628","Trabajos de joyería."]
[null,null,null,29,"4I0629","Trabajos con acero inoxidable."]
[null,null,null,30,"4I0630","Personal de limpieza."]
[null,null,null,31,"4I0631","Trabajadores sociales."]
[null,null,null,32,"4I0632","Trabajadores que se dedican al cuidado de personas y asimilados."]
[null,null,null,33,"4I0633","Aplicación de pinturas, pigmentos, etc., mediante aerografía."]
[null,null,7,null,null,"Fiebre de los metales y de otras sustancias de bajo peso molecular"]
[null,null,null,null,null,"Trabajos en los que exista exposición a los agentes mencionados, relacionados con:"]
[null,null,null,1,"4I0701","Industria del cuero."]
[null,null,null,2,"4I0702","Industria química."]
[null,null,null,3,"4I0703","Industria textil."]
[null,null,null,4,"4I0704","Industria cosmética y farmacéutica."]
[null,null,null,5,"4I0705","Trabajos de peluquería."]
[null,null,null,6,"4I0706","Fabricación de resinas y endurecedores."]
[null,null,null,7,"4I0707","Trabajos en fundiciones."]
[null,null,null,8,"4I0708","Fijado y revelado de fotografía."]
[null,null,null,9,"4I0709","Fabricación y aplicación de lacas, pinturas, colorantes, adhesivos, barnices, esmaltes."]
[null,null,null,10,"4I0710","Industria electrónica."]
[null,null,null,11,"4I0711","Industria aeronáutica."]
[null,null,null,12,"4I0712","Industria del plástico."]
[null,null,null,13,"4I0713","Industria del caucho."]
[null,null,null,14,"4I0714","Industria del papel."]
[null,null,null,15,"4I0715","Industria de la madera: Aserraderos, acabados de madera, carpintería, ebanistería, fabricación y utilización de conglomerados de madera."]
[null,null,null,16,"4I0716","Fabricación de espumas de poliuretano y su aplicación en estado líquido."]
[null,null,null,17,"4I0717","Fabricación de látex."]
[null,null,null,18,"4I0718","Trabajos de aislamiento y revestimiento."]
[null,null,null,19,"4I0719","Trabajos de laboratorio."]
[null,null,null,20,"4I0720","Trabajos en fotocopiadoras."]
[null,null,null,21,"4I0721","Dentistas."]
[null,null,null,22,"4I0722","Personal sanitario: enfermería, anatomía patológica, laboratorio."]
[null,null,null,23,"4I0723","Flebología, granjeros, fumigadores."]
[null,null,null,24,"4I0724","Refinería de platino."]
[null,null,null,25,"4I0725","Galvanizado, plateado, niquelado y cromado de metales."]
[null,null,null,26,"4I0726","Soldadores."]
[null,null,null,27,"4I0727","Industria del aluminio."]
[null,null,null,28,"4I0728","Trabajos de joyería."]
[null,null,null,29,"4I0729","Trabajos con acero inoxidable."]
[null,null,null,30,"4I0730","Personal de limpieza."]
[null,null,null,31,"4I0731","Trabajadores sociales."]
[null,null,null,32,"4I0732","Trabajadores que se dedican al cuidado de personas y asimilados."]
[null,null,null,33,"4I0733","Aplicación de pinturas, pigmentos, etc., mediante aerografía."]
[null,null,8,null,null,"Neumopatía intersticial difusa"]
[null,null,null,null,null,"Trabajos en los que exista exposición a los agentes mencionados, relacionados con:"]
[null,null,null,1,"4I0801","Industria del cuero."]
[null,null,null,2,"4I0802","Industria química."]
[null,null,null,3,"4I0803","Industria textil."]
[null,null,null,4,"4I0804","Industria cosmética y farmacéutica."]
[null,null,null,5,"4I0805","Trabajos de peluquería."]
[null,null,null,6,"4I0806","Fabricación de resinas y endurecedores."]
[null,null,null,7,"4I0807","Trabajos en fundiciones."]
[null,null,null,8,"4I0808","Fijado y revelado de fotografía."]
[null,null,null,9,"4I0809","Fabricación y aplicación de lacas, pinturas, colorantes, adhesivos, barnices, esmaltes."]
[null,null,null,10,"4I0810","Industria electrónica."]
[null,null,null,11,"4I0811","Industria aeronáutica."]
[null,null,null,12,"4I0812","Industria del plástico."]
[null,null,null,13,"4I0813","Industria del caucho."]
[null,null,null,14,"4I0814","Industria del papel."]
[null,null,null,15,"4I0815","Industria de la madera: Aserraderos, acabados de madera, carpintería, ebanistería, fabricación y utilización de conglomerados de madera."]
[null,null,null,16,"4I0816","Fabricación de espumas de poliuretano y su aplicación en estado líquido."]
[null,null,null,17,"4I0817","Fabricación de látex."]
[null,null,null,18,"4I0818","Trabajos de aislamiento y revestimiento."]
[null,null,null,19,"4I0819","Trabajos de laboratorio."]
[null,null,null,20,"4I0820","Trabajos en fotocopiadoras."]
[null,null,null,21,"4I0821","Dentistas."]
[null,null,null,22,"4I0822","Personal sanitario: enfermería, anatomía patológica, laboratorio."]
[null,null,null,23,"4I0823","Flebología, granjeros, fumigadores."]
[null,null,null,24,"4I0824","Refinería de platino."]
[null,null,null,25,"4I0825","Galvanizado, plateado, niquelado y cromado de metales."]
[null,null,null,26,"4I0826","Soldadores."]
[null,null,null,27,"4I0827","Industria del aluminio."]
[null,null,null,28,"4I0828","Trabajos de joyería."]
[null,null,null,29,"4I0829","Trabajos con acero inoxidable."]
[null,null,null,30,"4I0830","Personal de limpieza."]
[null,null,null,31,"4I0831","Trabajadores sociales."]
[null,null,null,32,"4I0832","Trabajadores que se dedican al cuidado de personas y asimilados."]
[null,null,null,33,"4I0833","Aplicación de pinturas, pigmentos, etc., mediante aerografía."]
[null,"J",1,null,null,"Antimonio y derivados"]
[null,null,null,null,null,"Trabajos que exponen a la inhalación de polvos, humos y vapores de antimonio, en especial:"]
[null,null,null,1,"4J0101","Extracción de minerales que contienen antimonio y sus procesos de molienda, tamizado y concentrado."]
[null,null,null,2,"4J0102","Envasado del óxido de antimonio."]
[null,null,null,3,"4J0103","Soldadura con antimonio."]
[null,null,null,4,"4J0104","Fabricación de semiconductores."]
[null,null,null,5,"4J0105","Fabricación de placas para baterías y material para forrado de cables."]
[null,null,null,6,"4J0106","Fabricación de pinturas, barnices, cristal, cerámica (pentóxido de antimonio)."]
[null,null,null,7,"4J0107","Fabricación de explosivos y de pigmentos para la industria del caucho (trisulfuro de antimonio)."]
[null,null,null,8,"4J0108","Uso en la industria del caucho y farmacéutica (pentacloruro de antimonio)."]
[null,null,null,9,"4J0109","Fabricación de colorantes y uso en cerámica (trifluoruro de antimonio)."]
[null,"K",1,null,null,"Berilio (glucinio) y sus compuestos"]
[null,null,null,null,null,"Manipulación y empleo del berilio y sus compuestos (fluoruro doble de glucinio y sodio), y especialmente:"]
[null,null,null,1,"4K0101","Extracción y metalurgia de berilio, industria aeroespacial, industria nuclear."]
[null,null,null,2,"4K0102","Extracción del berilio de los minerales."]
[null,null,null,3,"4K0103","Preparación de aleaciones y compuestos de berilio."]
[null,null,null,4,"4K0104","Fabricación de cristales, cerámicas, porcelanas y productos altamente refractarios."]
[null,null,null,5,"4K0105","Fabricación de barras de control de reactores nucleares."]
[5,null,null,null,null,"Enfermedades profesionales de la piel causadas por sustSustancias de bajo peso molecular por debajo de los 1.000 daltons (metales y sus sales, polvos de maderas, producos farmacéuticos, sustancias químico plásticas, aditivos, disolventes, conservantes, catalizadores, perfumes, adhesivos, acrilatos, resinas de bajo peso molecular, formaldehído y derivados, etc."]
["A"]
[null,null,null,null,null,"En cualquier tipo de actividad en la que se entre en contacto con sustancias de bajo peso molecular:"]
[null,null,null,1,"5A0101","Industria del cuero."]
[null,null,null,2,"5A0102","Industria textil."]
[null,null,null,3,"5A0103","Industria química."]
[null,null,null,4,"5A0104","Industria cosmética y farmacéutica."]
[null,null,null,5,"5A0105","Trabajos de peluquería."]
[null,null,null,6,"5A0106","Fabricación de resinas y endurecedores."]
[null,null,null,7,"5A0107","Trabajos en fundiciones."]
[null,null,null,8,"5A0108","Fijado y revelado de fotografía."]
[null,null,null,9,"5A0109","Fabricación y aplicación de lacas, pinturas, colorantes, adhesivos, barnices, esmaltes."]
[null,null,null,10,"5A0110","Industria electrónica."]
[null,null,null,11,"5A0111","Industria aeronáutica."]
[null,null,null,12,"5A0112","Industria del plástico."]
[null,null,null,13,"5A0113","Industria del caucho."]
[null,null,null,14,"5A0114","Industria del papel."]
[null,null,null,15,"5A0115","Industria de la madera: Aserraderos, acabados de madera, carpintería, ebanistería, fabricación y utilización de conglomerados de madera."]
[null,null,null,16,"5A0116","Fabricación de espumas de poliuretano y su aplicación en estado líquido."]
[null,null,null,17,"5A0117","Fabricación de látex."]
[null,null,null,18,"5A0118","Trabajos de aislamiento y revestimiento."]
[null,null,null,19,"5A0119","Trabajos de laboratorio."]
[null,null,null,20,"5A0120","Dentistas."]
[null,null,null,21,"5A0121","Trabajos en fotocopiadoras."]
[null,null,null,22,"5A0122","Personal sanitario: enfermería, anatomía patológica, laboratorio."]
[null,null,null,23,"5A0123","Granjeros, fumigadores."]
[null,null,null,24,"5A0124","Galvanizado, plateado, niquelado y cromado de metales."]
[null,null,null,25,"5A0125","Soldadores."]
[null,null,null,26,"5A0126","Industria del aluminio."]
[null,null,null,27,"5A0127","Trabajos de joyería."]
[null,null,null,28,"5A0128","Trabajos con acero inoxidable."]
[null,null,null,29,"5A0129","Personal de limpieza."]
[null,null,null,30,"5A0130","Trabajadores sociales."]
[null,null,null,31,"5A0131","Trabajadores que se dedican al cuidado de personas y asimilados."]
[null,null,null,32,"5A0132","Aplicación de pinturas, pigmentos etc., mediante aerografía."]
[null,"B",1,null,null,"Agentes y sustancias de alto peso molecular, por encima de los 1.000 daltons (sustancias de origen vegetal, animal, microorganismos y sustancias enzimáticas de origen vegetal, animal y/o de microorganismos"]
[null,null,null,null,null,"En cualquier tipo de actividad en la que se entre en contacto con sustancias de alto peso molecular:"]
[null,null,null,1,"5B0101","Industria alimenticia, panadería, industria de la cerveza."]
[null,null,null,2,"5B0102","Industria del té, industria del café, industria del aceite."]
[null,null,null,3,"5B0103","Industria del lino."]
[null,null,null,4,"5B0104","Industria de la malta."]
[null,null,null,5,"5B0105","Procesamiento de canela."]
[null,null,null,6,"5B0106","Procesamiento de la soja."]
[null,null,null,7,"5B0107","Elaboración de especias."]
[null,null,null,8,"5B0108","Molienda de semillas."]
[null,null,null,9,"5B0109","Lavadores de queso."]
[null,null,null,10,"5B0110","Manipuladores de enzimas."]
[null,null,null,11,"5B0111","Trabajadores de silos y molinos."]
[null,null,null,12,"5B0112","Trabajos de agricultura."]
[null,null,null,13,"5B0113","Granjeros, ganaderos, veterinarios y procesadores de carne."]
[null,null,null,14,"5B0114","Trabajos en avicultura."]
[null,null,null,15,"5B0115","Trabajos en piscicultura."]
[null,null,null,16,"5B0116","Industria química."]
[null,null,null,17,"5B0117","Industria del plástico, Industria del látex."]
[null,null,null,18,"5B0118","Industria farmacéutica."]
[null,null,null,19,"5B0119","Industria textil."]
[null,null,null,20,"5B0120","Industria del papel."]
[null,null,null,21,"5B0121","Industria del cuero."]
[null,null,null,22,"5B0122","Industria de la madera: aserraderos, carpintería, acabados de madera."]
[null,null,null,23,"5B0123","Personal sanitario, higienistas dentales."]
[null,null,null,24,"5B0124","Personal de laboratorios médicos y farmacéuticos."]
[null,null,null,25,"5B0125","Trabajos con harinas de pescado y piensos compuestos."]
[null,null,null,26,"5B0126","Personal de zoológicos, entomólogos."]
[null,null,null,27,"5B0127","Encuadernadores."]
[null,null,null,28,"5B0128","Personal de limpieza."]
[null,null,null,29,"5B0129","Trabajos en los que se manipula cáñamo, bagazo de caña de azúcar, yute, lino, esparto, sisal."]
[null,null,null,30,"5B0130","Construcción."]
[null,"C",1,null,null,"Sustancias fotosensibles exógenas"]
[null,null,null,1,"5C0101","Toda industria o trabajo en los que se entre en contacto con sustancias fotosensibilizantes y conlleve una dosis de exposición lumínica."]
[null,"D",1,null,null,"Agentes infecciosos"]
[null,null,null,1,"5D0101","Personal sanitario."]
[null,null,null,2,"5D0102","Personal no sanitario, trabajadores de centros asistenciales o de cuidados de enfermos, tanto a nivel ambulatorio, de instituciones cerradas o domicilio."]
[null,null,null,3,"5D0103","Trabajadores de laboratorios de investigación o análisis clínicos."]
[null,null,null,4,"5D0104","Trabajos de toma, manipulación o empleo de sangre humana o sus derivados."]
[null,null,null,5,"5D0105","Odontólogos."]
[null,null,null,6,"5D0106","Personal de auxilio."]
[null,null,null,7,"5D0107","Personal del orden público."]
[null,null,null,8,"5D0108","Trabajadores de centros penitenciarios."]
[null,null,null,9,"5D0109","Ganaderos."]
[null,null,null,10,"5D0110","Veterinario."]
[null,null,null,11,"5D0111","Matarifes."]
[null,null,null,12,"5D0112","Agricultores."]
[null,null,null,13,"5D0113","Industria alimentaria."]
[null,null,null,14,"5D0114","Carniceros."]
[6,null,null,null,null,"Enfermedades profesionales causadas por agentes carcinógenos"]
[null,"A",null,null,null,"Amianto"]
[null,null,1,null,null,"Neoplasia maligna de bronquio y plumón"]
[null,null,null,1,"6A0101","Industrias en las que se utiliza amianto (por ejemplo, minas de rocas amiantíferas, industria de producción de amianto, trabajos de aislamientos, trabajos de construcción, construcción naval, trabajos en garajes, etc.)."]
[null,null,null,null,null,"Trabajos expuestos a la inhalación de polvos de amianto (asbesto), y especialmente:"]
[null,null,null,2,"6A0102","Trabajos de extracción, manipulación y tratamiento de minerales o rocas amiantíferas."]
[null,null,null,3,"6A0103","Fabricación de tejidos, cartones y papeles de amianto."]
[null,null,null,4,"6A0104","Tratamiento preparatorio de fibras de amianto (cardado, hilado, tramado, etc.)."]
[null,null,null,5,"6A0105","Aplicación de amianto a pistola (chimeneas, fondos de automóviles y vagones)."]
[null,null,null,6,"6A0106","Trabajos de aislamiento térmico en construcción naval y de edificios."]
[null,null,null,7,"6A0107","Fabricación de guarniciones para frenos y embragues, de productos de fibrocemento, de equipos contra incendios, de filtros y cartón de amianto, de juntas de amianto y caucho."]
[null,null,null,8,"6A0108","Desmontaje y demolición de instalaciones que contengan amianto."]
[null,null,null,9,"6A0109","Limpieza, mantenimiento y reparación de acumuladores de calor u otras máquinas que tengan componentes de amianto."]
[null,null,null,10,"6A0110","Trabajos de reparación de vehículos automóviles."]
[null,null,null,11,"6A0111","Aserrado de fibrocemento."]
[null,null,null,12,"6A0112","Trabajos que impliquen la eliminación de materiales con amianto"]
[null,null,2,null,null,"Mesotelioma"]
[null,null,null,1,"6A0201","Industrias en las que se utiliza amianto (por ejemplo, minas de rocas amiantíferas, industria de producción de amianto, trabajos de aislamientos, trabajos de construcción, construcción naval, trabajos en garajes, etc.). Trabajos expuestos a la inhalación de polvos de amianto (asbesto), y especialmente:"]
[null,null,null,2,"6A0202","Trabajos de extracción, manipulación y tratamiento de minerales o rocas amiantíferas."]
[null,null,null,3,"6A0203","Fabricación de tejidos, cartones y papeles de amianto."]
[null,null,null,4,"6A0204","Tratamiento preparatorio de fibras de amianto (cardado, hilado, tramado, etc.)."]
[null,null,null,5,"6A0205","Aplicación de amianto a pistola (chimeneas, fondos de automóviles y vagones)."]
[null,null,null,6,"6A0206","Trabajos de aislamiento térmico en construcción naval y de edificios."]
[null,null,null,7,"6A0207","Fabricación de guarniciones para frenos y embragues, de productos de fibrocemento, de equipos contra incendios, de filtros y cartón de amianto, de juntas de amianto y caucho."]
[null,null,null,8,"6A0208","Desmontaje y demolición de instalaciones que contengan amianto."]
[null,null,null,9,"6A0209","Limpieza, mantenimiento y reparación de acumuladores de calor u otras máquinas que tengan componentes de amianto."]
[null,null,null,10,"6A0210","Trabajos de reparación de vehículos automóviles."]
[null,null,null,11,"6A0211","Aserrado de fibrocemento."]
[null,null,null,12,"6A0212","Trabajos que impliquen la eliminación de materiales con amianto"]
[null,null,3,null,null,"Mesotelioma de pleura"]
[null,null,null,1,"6A0301","Industrias en las que se utiliza amianto (por ejemplo, minas de rocas amiantíferas, industria de producción de amianto, trabajos de aislamientos, trabajos de construcción, construcción naval, trabajos en garajes, etc.)."]
[null,null,null,null,null,"Trabajos expuestos a la inhalación de polvos de amianto (asbesto), y especialmente:"]
[null,null,null,2,"6A0302","Trabajos de extracción, manipulación y tratamiento de minerales o rocas amiantíferas."]
[null,null,null,3,"6A0303","Fabricación de tejidos, cartones y papeles de amianto."]
[null,null,null,4,"6A0304","Tratamiento preparatorio de fibras de amianto (cardado, hilado, tramado, etc.)."]
[null,null,null,5,"6A0305","Aplicación de amianto a pistola (chimeneas, fondos de automóviles y vagones)."]
[null,null,null,6,"6A0306","Trabajos de aislamiento térmico en construcción naval y de edificios."]
[null,null,null,7,"6A0307","Fabricación de guarniciones para frenos y embragues, de productos de fibrocemento, de equipos contra incendios, de filtros y cartón de amianto, de juntas de amianto y caucho."]
[null,null,null,8,"6A0308","Desmontaje y demolición de instalaciones que contengan amianto."]
[null,null,null,9,"6A0309","Limpieza, mantenimiento y reparación de acumuladores de calor u otras máquinas que tengan componentes de amianto."]
[null,null,null,10,"6A0310","Trabajos de reparación de vehículos automóviles."]
[null,null,null,11,"6A0311","Aserrado de fibrocemento."]
[null,null,null,12,"6A0312","Trabajos que impliquen la eliminación de materiales con amianto"]
[null,null,4,null,null,"Mesotelioma de peritoneo"]
[null,null,null,1,"6A0401","Industrias en las que se utiliza amianto (por ejemplo, minas de rocas amiantíferas, industria de producción de amianto, trabajos de aislamientos, trabajos de construcción, construcción naval, trabajos en garajes, etc.)."]
[null,null,null,null,null,"Trabajos expuestos a la inhalación de polvos de amianto (asbesto), y especialmente:"]
[null,null,null,2,"6A0402","Trabajos de extracción, manipulación y tratamiento de minerales o rocas amiantíferas."]
[null,null,null,3,"6A0403","Fabricación de tejidos, cartones y papeles de amianto."]
[null,null,null,4,"6A0404","Tratamiento preparatorio de fibras de amianto (cardado, hilado, tramado, etc.)."]
[null,null,null,5,"6A0405","Aplicación de amianto a pistola (chimeneas, fondos de automóviles y vagones)."]
[null,null,null,6,"6A0406","Trabajos de aislamiento térmico en construcción naval y de edificios."]
[null,null,null,7,"6A0407","Fabricación de guarniciones para frenos y embragues, de productos de fibrocemento, de equipos contra incendios, de filtros y cartón de amianto, de juntas de amianto y caucho."]
[null,null,null,8,"6A0408","Desmontaje y demolición de instalaciones que contengan amianto."]
[null,null,null,9,"6A0409","Limpieza, mantenimiento y reparación de acumuladores de calor u otras máquinas que tengan componentes de amianto."]
[null,null,null,10,"6A0410","Trabajos de reparación de vehículos automóviles."]
[null,null,null,11,"6A0411","Aserrado de fibrocemento."]
[null,null,null,12,"6A0412","Trabajos que impliquen la eliminación de materiales con amianto."]
[null,null,5,null,null,"Mesotelioma de otras localizaciones"]
[null,null,null,1,"6A0501","Industrias en las que se utiliza amianto (por ejemplo, minas de rocas amiantíferas, industria de producción de amianto, trabajos de aislamientos, trabajos de construcción, construcción naval, trabajos en garajes, etc.)."]
[null,null,null,null,null,"Trabajos expuestos a la inhalación de polvos de amianto (asbesto), y especialmente:"]
[null,null,null,2,"6A0502","Trabajos de extracción, manipulación y tratamiento de minerales o rocas amiantíferas."]
[null,null,null,3,"6A0503","Fabricación de tejidos, cartones y papeles de amianto."]
[null,null,null,4,"6A0504","Tratamiento preparatorio de fibras de amianto (cardado, hilado, tramado, etc.)."]
[null,null,null,5,"6A0505","Aplicación de amianto a pistola (chimeneas, fondos de automóviles y vagones)."]
[null,null,null,6,"6A0506","Trabajos de aislamiento térmico en construcción naval y de edificios."]
[null,null,null,7,"6A0507","Fabricación de guarniciones para frenos y embragues, de productos de fibrocemento, de equipos contra incendios, de filtros y cartón de amianto, de juntas de amianto y caucho."]
[null,null,null,8,"6A0508","Desmontaje y demolición de instalaciones que contengan amianto."]
[null,null,null,9,"6A0509","Limpieza, mantenimiento y reparación de acumuladores de calor u otras máquinas que tengan componentes de amianto."]
[null,null,null,10,"6A0510","Trabajos de reparación de vehículos automóviles."]
[null,null,null,11,"6A0511","Aserrado de fibrocemento."]
[null,null,null,12,"6A0512","Trabajos que impliquen la eliminación de materiales con amianto."]
[null,"B",null,null,null,"Aminas aromáticas"]
[null,null,1,null,null,"Neoplasia maligna de vejiga"]
[null,null,null,null,null,"Fabricación y empleo de aminas aromáticas, y especialmente:"]
[null,null,null,1,"6B0101","Trabajadores del caucho."]
[null,null,null,2,"6B0102","Trabajos en los que se emplee tintes, alfa-naftilamina y beta-naftilamina, bencidina, colorantes con base de bencidina, aminodifenilo, nitrodifenilo, auramina, magenta y sus sales."]
[null,"C",null,null,null,"Arsénico y sus compuestos"]
[null,null,1,null,null,"Neoplasia maligna de bronquio y pulmón"]
[null,null,null,null,null,"Preparación, empleo y manipulación del arsénico y sus compuestos, y especialmente:"]
[null,null,null,1,"6C0101","Minería del arsénico, fundición de cobre, producción de cobre."]
[null,null,null,2,"6C0102","Decapado de metales y limpieza de metales."]
[null,null,null,3,"6C0103","Revestimiento electrolítico de metales."]
[null,null,null,4,"6C0104","Calcinación, fundición y refino de minerales arseníferos."]
[null,null,null,5,"6C0105","Producción y uso de pesticidas arsenicales, herbicidas e insecticidas."]
[null,null,null,6,"6C0106","Fabricación y empleo de colorantes y pinturas que contengan compuestos de arsénico."]
[null,null,null,7,"6C0107","Industria de colorantes arsenicales."]
[null,null,null,8,"6C0108","Aleación con otros metales (Pb)."]
[null,null,null,9,"6C0109","Refino de Cu, Pb, Zn, Co (presente como impureza)."]
[null,null,null,10,"6C0110","Tratamiento de cueros y maderas con agentes de conservación a base de compuestos arsenicales."]
[null,null,null,11,"6C0111","Conservación de pieles."]
[null,null,null,12,"6C0112","Taxidermia."]
[null,null,null,13,"6C0113","Pirotecnia."]
[null,null,null,14,"6C0114","Fabricación de municiones y baterías de polarización."]
[null,null,null,15,"6C0115","Industria farmacéutica."]
[null,null,null,16,"6C0116","Preparación del ácido sulfúrico partiendo de piritas arseníferas."]
[null,null,null,17,"6C0117","Empleo del anhídrido arsenioso en la fabricación del vidrio."]
[null,null,null,18,"6C0118","Fabricación de acero al silicio."]
[null,null,null,19,"6C0119","Desincrustado de calderas."]
[null,null,null,20,"6C0120","Industria de caucho."]
[null,null,null,21,"6C0121","Fabricación de vidrio: preparación y mezcla de la pasta, fusión y colada, manipulación de aditivos."]
[null,null,null,22,"6C0122","Restauradores de arte."]
[null,null,null,23,"6C0123","Utilización de compuestos arsenicales en electrónica."]
[null,null,2,null,null,"Carcinoma epidemoide de piel"]
[null,null,null,null,null,"Preparación, empleo y manipulación del arsénico y sus compuestos, y especialmente:"]
[null,null,null,1,"6C0201","Minería del arsénico, fundición de cobre, producción de cobre."]
[null,null,null,2,"6C0202","Decapado de metales y limpieza de metales."]
[null,null,null,3,"6C0203","Revestimiento electrolítico de metales."]
[null,null,null,4,"6C0204","Calcinación, fundición y refino de minerales arseníferos."]
[null,null,null,5,"6C0205","Producción y uso de pesticidas arsenicales, herbicidas e insecticidas."]
[null,null,null,6,"6C0206","Fabricación y empleo de colorantes y pinturas que contengan compuestos de arsénico."]
[null,null,null,7,"6C0207","Industria de colorantes arsenicales."]
[null,null,null,8,"6C0208","Aleación con otros metales (Pb)."]
[null,null,null,9,"6C0209","Refino de Cu, Pb, Zn, Co (presente como impureza)."]
[null,null,null,10,"6C0210","Tratamiento de cueros y maderas con agentes de conservación a base de compuestos arsenicales."]
[null,null,null,11,"6C0211","Conservación de pieles."]
[null,null,null,12,"6C0212","Taxidermia."]
[null,null,null,13,"6C0213","Pirotecnia."]
[null,null,null,14,"6C0214","Fabricación de municiones y baterías de polarización."]
[null,null,null,15,"6C0215","Industria farmacéutica."]
[null,null,null,16,"6C0216","Preparación del ácido sulfúrico partiendo de piritas arseníferas."]
[null,null,null,17,"6C0217","Empleo del anhídrido arsenioso en la fabricación del vidrio."]
[null,null,null,18,"6C0218","Fabricación de acero al silicio."]
[null,null,null,19,"6C0219","Desincrustado de calderas."]
[null,null,null,20,"6C0220","Industria de caucho."]
[null,null,null,21,"6C0221","Fabricación de vidrio: preparación y mezcla de la pasta, fusión y colada, manipulación de aditivos."]
[null,null,null,22,"6C0222","Restauradores de arte."]
[null,null,null,23,"6C0223","Utilización de compuestos arsenicales en electrónica."]
[null,null,3,null,null,"Disqueratosis lenticular en disco (enfermedad de Bowen)"]
[null,null,null,null,null,"Preparación, empleo y manipulación del arsénico y sus compuestos, y especialmente:"]
[null,null,null,1,"6C0301","Minería del arsénico, fundición de cobre, producción de cobre."]
[null,null,null,2,"6C0302","Decapado de metales y limpieza de metales."]
[null,null,null,3,"6C0303","Revestimiento electrolítico de metales."]
[null,null,null,4,"6C0304","Calcinación, fundición y refino de minerales arseníferos."]
[null,null,null,5,"6C0305","Producción y uso de pesticidas arsenicales, herbicidas e insecticidas."]
[null,null,null,6,"6C0306","Fabricación y empleo de colorantes y pinturas que contengan compuestos de arsénico."]
[null,null,null,7,"6C0307","Industria de colorantes arsenicales."]
[null,null,null,8,"6C0308","Aleación con otros metales (Pb)."]
[null,null,null,9,"6C0309","Refino de Cu, Pb, Zn, Co (presente como impureza)."]
[null,null,null,10,"6C0310","Tratamiento de cueros y maderas con agentes de conservación a base de compuestos arsenicales."]
[null,null,null,11,"6C0311","Conservación de pieles."]
[null,null,null,12,"6C0312","Taxidermia."]
[null,null,null,13,"6C0313","Pirotecnia."]
[null,null,null,14,"6C0314","Fabricación de municiones y baterías de polarización."]
[null,null,null,15,"6C0315","Industria farmacéutica."]
[null,null,null,16,"6C0316","Preparación del ácido sulfúrico partiendo de piritas arseníferas."]
[null,null,null,17,"6C0317","Empleo del anhídrido arsenioso en la fabricación del vidrio."]
[null,null,null,18,"6C0318","Fabricación de acero al silicio."]
[null,null,null,19,"6C0319","Desincrustado de calderas."]
[null,null,null,20,"6C0320","Industria de caucho."]
[null,null,null,21,"6C0321","Fabricación de vidrio: preparación y mezcla de la pasta, fusión y colada, manipulación de aditivos."]
[null,null,null,22,"6C0322","Restauradores de arte."]
[null,null,null,23,"6C0323","Utilización de compuestos arsenicales en electrónica."]
[null,null,4,null,null,"Angiosarcoma del hígado"]
[null,null,null,null,null,"Preparación, empleo y manipulación del arsénico y sus compuestos, y especialmente:"]
[null,null,null,1,"6C0401","Minería del arsénico, fundición de cobre, producción de cobre."]
[null,null,null,2,"6C0402","Decapado de metales y limpieza de metales."]
[null,null,null,3,"6C0403","Revestimiento electrolítico de metales."]
[null,null,null,4,"6C0404","Calcinación, fundición y refino de minerales arseníferos."]
[null,null,null,5,"6C0405","Producción y uso de pesticidas arsenicales, herbicidas e insecticidas."]
[null,null,null,6,"6C0406","Fabricación y empleo de colorantes y pinturas que contengan compuestos de arsénico."]
[null,null,null,7,"6C0407","Industria de colorantes arsenicales."]
[null,null,null,8,"6C0408","Aleación con otros metales (Pb)."]
[null,null,null,9,"6C0409","Refino de Cu, Pb, Zn, Co (presente como impureza)."]
[null,null,null,10,"6C0410","Tratamiento de cueros y maderas con agentes de conservación a base de compuestos arsenicales."]
[null,null,null,11,"6C0411","Conservación de pieles."]
[null,null,null,12,"6C0412","Taxidermia."]
[null,null,null,13,"6C0413","Pirotecnia."]
[null,null,null,14,"6C0414","Fabricación de municiones y baterías de polarización."]
[null,null,null,15,"6C0415","Industria farmacéutica."]
[null,null,null,16,"6C0416","Preparación del ácido sulfúrico partiendo de piritas arseníferas."]
[null,null,null,17,"6C0417","Empleo del anhídrido arsenioso en la fabricación del vidrio."]
[null,null,null,18,"6C0418","Fabricación de acero al silicio."]
[null,null,null,19,"6C0419","Desincrustado de calderas."]
[null,null,null,20,"6C0420","Industria de caucho."]
[null,null,null,21,"6C0421","Fabricación de vidrio: preparación y mezcla de la pasta, fusión y colada, manipulación de aditivos."]
[null,null,null,22,"6C0422","Restauradores de arte."]
[null,null,null,23,"6C0423","Utilización de compuestos arsenicales en electrónica."]
[null,"D",null,null,null,"Benceno"]
[null,null,1,null,null,"Síndrome linfo y mieloproliferativos"]
[null,null,null,null,null,"Fabricación, extracción, rectificación, empleo y manipulación del benceno, y especialmente:"]
[null,null,null,1,"6D0101","Ocupaciones con exposición a benceno, por ejemplo, hornos de coque, uso de disolventes que contienen benceno."]
[null,null,null,2,"6D0102","Empleo del benceno para la preparación de sus derivados."]
[null,null,null,3,"6D0103","Empleo del benceno como decapante, como diluente, como disolvente."]
[null,null,null,4,"6D0104","Preparación, distribución y limpieza de tanques de carburantes que contengan benceno."]
[null,null,null,5,"6D0105","Trabajos de laboratorio en los que se emplee benceno."]
[null,"E",null,null,null,"Berilio"]
[null,null,1,null,null,"Neoplasia maligna de bronquio y pulmón"]
[null,null,null,null,null,"Manipulación y empleo del berilio y sus compuestos (fluoruro doble de glucinio y sodio), y especialmente:"]
[null,null,null,1,"6E0101","Extracción y metalurgia de berilio, industria aeroespacial, industria nuclear."]
[null,null,null,2,"6E0102","Extracción del berilio de los minerales."]
[null,null,null,3,"6E0103","Preparación de aleaciones y compuestos de berilio."]
[null,null,null,4,"6E0104","Fabricación de cristales, cerámicas, porcelanas y productos altamente refractarios."]
[null,null,null,5,"6E0105","Fabricación de barras de control de reactores nucleares."]
[null,"F",null,null,null,"Bis-(cloro-metil) éter"]
[null,null,1,null,null,"Neoplasia maligna de bronquio y pulmón"]
[null,null,null,1,"6F0101","Síntesis de plásticos."]
[null,null,null,2,"6F0102","Síntesis de resinas de intercambio iónico."]
[null,null,null,3,"6F0103","Tratamientos de caucho vulcanizado."]
[null,"G",null,null,null,"Cadmio"]
[null,null,1,null,null,"Neoplasia maligna de bronquio, pulmón y próstata"]
[null,null,null,null,null,"Preparación y empleo industrial de cadmio, y esencialmente:"]
[null,null,null,1,"6G0101","Preparación del cadmio por procesado del cinc, cobre o plomo."]
[null,null,null,2,"6G0102","Fabricación de acumuladores de níquel-cadmio."]
[null,null,null,3,"6G0103","Fabricación de pigmentos cadmíferos para pinturas, esmaltes, materias plásticas, papel, caucho, pirotecnia."]
[null,null,null,4,"6G0104","Fabricación de lámparas fluorescentes."]
[null,null,null,5,"6G0105","Cadmiado electrolítico."]
[null,null,null,6,"6G0106","Soldadura y oxicorte de piezas con cadmio."]
[null,null,null,7,"6G0107","Procesado de residuos que contengan cadmio."]
[null,null,null,8,"6G0108","Fabricación de barras de control de reactores nucleares."]
[null,null,null,9,"6G0109","Fabricación de células fotoeléctricas."]
[null,null,null,10,"6G0110","Fabricación de varillas de soldadura."]
[null,null,null,11,"6G0111","Trabajos en horno de fundición de hierro o acero."]
[null,null,null,12,"6G0112","Fusión y colada de vidrio."]
[null,null,null,13,"6G0113","Aplicación por proyección de pinturas y barnices que contengan cadmio."]
[null,null,null,14,"6G0114","Barnizado y esmaltado de cerámica."]
[null,null,null,15,"6G0115","Tratamiento de residuos peligrosos en actividades de saneamiento público."]
[null,null,null,16,"6G0116","Fabricación de pesticidas."]
[null,null,null,17,"6G0117","Fabricación de amalgamas dentales."]
[null,null,null,18,"6G0118","Fabricación de joyas."]
[null,"H",null,null,null,"Cloururo de vinilo monómero:"]
[null,null,1,null,null,"Neoplasia maligna de hígado y conductos biliares intrahepáticos"]
[null,null,null,1,"6H0101","Producción y polimerización de cloruro de vinilo."]
[null,null,2,null,null,"Angiosarcoma de hígado"]
[null,null,null,1,"6H0201","Producción y polimerización de cloruro de vinilo."]
[null,"I",null,null,null,"Cromo VI y compuesto de cromo VI:"]
[null,null,1,null,null,"Neoplasia maligna de cabidad nasal"]
[null,null,null,null,null,"Preparación, empleo y manipulación de los compuestos de cromo hexavalente, especialmente los cromatos, dicromatos alcalinos y el ácido crómico, y especialmente:"]
[null,null,null,1,"6I0101","Fabricación de catalizadores, productos químicos para la curtición, y productos de tratamiento de la madera que contengan compuestos de cromo."]
[null,null,null,2,"6I0102","Fabricación y empleo de pigmentos, colorantes y pinturas a base de compuestos de cromo."]
[null,null,null,3,"6I0103","Aserrado y mecanizado de madera tratada con compuestos de cromo."]
[null,null,null,4,"6I0104","Aplicación por proyección de pinturas y barnices que contengan cromo."]
[null,null,null,5,"6I0105","Curtido al cromo de pieles."]
[null,null,null,6,"6I0106","Preparación de clichés de fotograbado por coloides bicromados."]
[null,null,null,7,"6I0107","Fabricación de cerillas o fósforos."]
[null,null,null,8,"6I0108","Galvanoplastia y tratamiento de superficies de metales con cromo."]
[null,null,null,9,"6I0109","Decapado y limpieza de metales y vidrios (ácido sulfocrómico o ácido crómico)."]
[null,null,null,10,"6I0110","Fabricación de cromatos alcalinos."]
[null,null,null,11,"6I0111","Litograbados."]
[null,null,null,12,"6I0112","Fabricación de aceros inoxidables."]
[null,null,null,13,"6I0113","Trabajos que implican soldadura y oxicorte de aceros inoxidables."]
[null,null,null,14,"6I0114","Fabricación de cemento y sus derivados."]
[null,null,null,15,"6I0115","Procesado de residuos que contengan cromo."]
[null,null,2,null,null,"Neoplasia maligna de bronquio y pulmón"]
[null,null,null,null,null,"Preparación, empleo y manipulación de los compuestos de cromo hexavalente, especialmente los cromatos, dicromatos alcalinos y el ácido crómico, y especialmente:"]
[null,null,null,1,"6I0201","Fabricación de catalizadores, productos químicos para la curtición, y productos de tratamiento de la madera que contengan compuestos de cromo."]
[null,null,null,2,"6I0202","Fabricación y empleo de pigmentos, colorantes y pinturas a base de compuestos de cromo."]
[null,null,null,3,"6I0203","Aserrado y mecanizado de madera tratada con compuestos de cromo."]
[null,null,null,4,"6I0204","Aplicación por proyección de pinturas y barnices que contengan cromo."]
[null,null,null,5,"6I0205","Curtido al cromo de pieles."]
[null,null,null,6,"6I0206","Preparación de clichés de fotograbado por coloides bicromados."]
[null,null,null,7,"6I0207","Fabricación de cerillas o fósforos."]
[null,null,null,8,"6I0208","Galvanoplastia y tratamiento de superficies de metales con cromo."]
[null,null,null,9,"6I0209","Decapado y limpieza de metales y vidrios (ácido sulfocrómico o ácido crómico)."]
[null,null,null,10,"6I0210","Fabricación de cromatos alcalinos."]
[null,null,null,11,"6I0211","Litograbados."]
[null,null,null,12,"6I0212","Fabricación de aceros inoxidables."]
[null,null,null,13,"6I0213","Trabajos que implican soldadura y oxicorte de aceros inoxidables."]
[null,null,null,14,"6I0214","Fabricación de cemento y sus derivados."]
[null,null,null,15,"6I0215","Procesado de residuos que contengan cromo."]
[null,"J",null,null,null,"Hidrocarburos aromáticos policíclicos (PAH), productos de destilación del carbón: hollín, alquitrán, betún, brea, antraceno, aceites minerales, parafina bruta y a los compuestos, productos, residuos de estas sustancias y a otros factores carcinógenos. Destilación de la hulla:"]
[null,null,1,null,null,"Lesiones premaligna de piel"]
[null,null,null,1,"6J0101","Fabricación de pigmentos, deshollinado de chimeneas, pavimentación de carreteras, aislamientos."]
[null,null,null,2,"6J0102","Preparación de aditivos para papel autocopiativo."]
[null,null,null,3,"6J0103","Operaciones de laminado en metalurgia."]
[null,null,null,4,"6J0104","Fabricación de cables eléctricos."]
[null,null,null,5,"6J0105","Fabricación de tela asfáltica."]
[null,null,null,6,"6J0106","Trabajos en hornos de carbón o coque."]
[null,null,null,7,"6J0107","Procesos de fabricación en los que se utilice polvo de carbón."]
[null,null,null,8,"6J0108","Producción de aluminio."]
[null,null,null,9,"6J0109","Fabricación de electrodos."]
[null,null,null,10,"6J0110","Producción, transporte y almacenamiento de productos de asfalto."]
[null,null,null,11,"6J0111","Operaciones de destilación en la industria del petróleo."]
[null,null,null,12,"6J0112","Trabajos de pavimentación."]
[null,null,null,13,"6J0113","Trabajos de eliminación de suelos asfaltados."]
[null,null,null,14,"6J0114","Aplicación de pinturas con base de alquitrán."]
[null,null,null,15,"6J0115","Tratamiento antióxido de vehículos."]
[null,null,null,16,"6J0116","Conductores de vehículos automóviles."]
[null,null,null,17,"6J0117","Montadores de motores."]
[null,null,null,18,"6J0118","Mecánicos (trabajos de reparación de vehículos)."]
[null,null,null,19,"6J0119","Trabajadores de aparcamientos."]
[null,null,null,20,"6J0120","Trabajos en unidades de combustión (calderas)."]
[null,null,null,21,"6J0121","Producción de gas ciudad."]
[null,null,null,22,"6J0122","Mantenimiento de redes eléctricas subterráneas."]
[null,null,null,23,"6J0123","Producción de ladrillos refractarios y cerámicos."]
[null,null,null,24,"6J0124","Producción de carburo de silíceo."]
[null,null,null,25,"6J0125","Fabricación de neumáticos."]
[null,null,null,26,"6J0126","Trabajos de impresión en artes gráficas."]
[null,null,2,null,null,"Carcinoma de células escamosas"]
[null,null,null,1,"6J0201","Fabricación de pigmentos, deshollinado de chimeneas, pavimentación de carreteras, aislamientos."]
[null,null,null,2,"6J0202","Preparación de aditivos para papel autocopiativo."]
[null,null,null,3,"6J0203","Operaciones de laminado en metalurgia."]
[null,null,null,4,"6J0204","Fabricación de cables eléctricos."]
[null,null,null,5,"6J0205","Fabricación de tela asfáltica."]
[null,null,null,6,"6J0206","Trabajos en hornos de carbón o coque."]
[null,null,null,7,"6J0207","Procesos de fabricación en los que se utilice polvo de carbón."]
[null,null,null,8,"6J0208","Producción de aluminio."]
[null,null,null,9,"6J0209","Fabricación de electrodos."]
[null,null,null,10,"6J0210","Producción, transporte y almacenamientos de productos de asfalto."]
[null,null,null,11,"6J0211","Operaciones de destilación en la industria del petróleo."]
[null,null,null,12,"6J0212","Trabajos de pavimentación."]
[null,null,null,13,"6J0213","Trabajos de eliminación de suelos asfaltados."]
[null,null,null,14,"6J0214","Aplicación de pinturas con base de alquitrán."]
[null,null,null,15,"6J0215","Tratamiento antióxido de vehículos."]
[null,null,null,16,"6J0216","Conductores de vehículos automóviles."]
[null,null,null,17,"6J0217","Montadores de motores."]
[null,null,null,18,"6J0218","Mecánicos (trabajos de reparación de vehículos)."]
[null,null,null,19,"6J0219","Trabajadores de aparcamientos."]
[null,null,null,20,"6J0220","Trabajos en unidades de combustión (calderas)."]
[null,null,null,21,"6J0221","Producción de gas ciudad."]
[null,null,null,22,"6J0222","Mantenimiento de redes eléctricas subterráneas."]
[null,null,null,23,"6J0223","Producción de ladrillos refractarios y cerámicos."]
[null,null,null,24,"6J0224","Producción de carburo de silicio."]
[null,null,null,25,"6J0225","Fabricación de neumáticos."]
[null,null,null,26,"6J0226","Trabajos de impresión en artes gráficas."]
[null,"K",null,null,null,"Níquel y compuestos de níquel:"]
[null,null,1,null,null,"Neoplasia maligna de cavidad nasal"]
[null,null,null,1,"6K0101","Fundición y refino de níquel, producción de acero inoxidable, fabricación de baterías."]
[null,null,null,2,"6K0102","Producción de níquel por el proceso Mond."]
[null,null,null,3,"6K0103","Niquelado electrolítico de los metales."]
[null,null,null,4,"6K0104","Trabajos de bisutería."]
[null,null,null,5,"6K0105","Fabricación de aleaciones con níquel (cobre, manganeso, zinc, cromo, hierro, molibdeno)."]
[null,null,null,6,"6K0106","Fabricación de aceros especiales al níquel (ferroníquel). Fabricación de acumuladores al níquel cadmio."]
[null,null,null,7,"6K0107","Empleo como catalizador en la industria química."]
[null,null,null,8,"6K0108","Trabajos que implican soldadura y oxicorte de acero inoxidable."]
[null,null,null,9,"6K0109","Trabajos en horno de fundición de hierro y de acero inoxidable."]
[null,null,null,10,"6K0110","Desbarbado y limpieza de piezas de fundición."]
[null,null,null,11,"6K0111","Industria de cerámica y vidrio."]
[null,null,null,12,"6K0112","Aplicación por proyección de pinturas y barnices que contengan níquel."]
[null,null,null,13,"6K0113","Procesado de residuos que contengan níquel."]
[null,null,2,null,null,"Cáncer primitivo del etmoides y de los senos de la cara"]
[null,null,null,1,"6K0201","Fundición y refino de níquel, producción de acero inoxidable, fabricación de baterías."]
[null,null,null,2,"6K0202","Producción de níquel por el proceso Mond."]
[null,null,null,3,"6K0203","Niquelado electrolítico de los metales."]
[null,null,null,4,"6K0204","Trabajos de bisutería."]
[null,null,null,5,"6K0205","Fabricación de aleaciones con níquel (cobre, manganeso, zinc, cromo, hierro, molibdeno)."]
[null,null,null,6,"6K0206","Fabricación de aceros especiales al níquel (ferroníquel). Fabricación de acumuladores al níquel cadmio."]
[null,null,null,7,"6K0207","Empleo como catalizador en la industria química."]
[null,null,null,8,"6K0208","Trabajos que implican soldadura y oxicorte de acero inoxidable."]
[null,null,null,9,"6K0209","Trabajos en horno de fundición de hierro y de acero inoxidable."]
[null,null,null,10,"6K0210","Desbarbado y limpieza de piezas de fundición."]
[null,null,null,11,"6K0211","Industria de cerámica y vidrio."]
[null,null,null,12,"6K0212","Aplicación por proyección de pinturas y barnices que contengan níquel."]
[null,null,null,13,"6K0213","Procesado de residuos que contengan níquel."]
[null,null,3,null,null,"Neoplasia maligna de bronquio y pulmón"]
[null,null,null,1,"6K0301","Fundición y refino de níquel, producción de acero inoxidable, fabricación de baterías."]
[null,null,null,2,"6K0302","Producción de níquel por el proceso Mond."]
[null,null,null,3,"6K0303","Niquelado electrolítico de los metales."]
[null,null,null,4,"6K0304","Trabajos de bisutería."]
[null,null,null,5,"6K0305","Fabricación de aleaciones con níquel (cobre, manganeso, zinc, cromo, hierro, molibdeno)."]
[null,null,null,6,"6K0306","Fabricación de aceros especiales al níquel (ferroníquel). Fabricación de acumuladores al níquel cadmio."]
[null,null,null,7,"6K0307","Empleo como catalizador en la industria química."]
[null,null,null,8,"6K0308","Trabajos que implican soldadura y oxicorte de acero inoxidable."]
[null,null,null,9,"6K0309","Trabajos en horno de fundición de hierro y de acero inoxidable."]
[null,null,null,10,"6K0310","Desbarbado y limpieza de piezas de fundición."]
[null,null,null,11,"6K0311","Industria de cerámica y vidrio."]
[null,null,null,12,"6K0312","Aplicación por proyección de pinturas y barnices que contengan níquel."]
[null,null,null,13,"6K0313","Procesado de residuos que contengan níquel."]
[null,"L",null,null,null,"Polvo de madera dura:"]
[null,null,1,null,null,"Neoplasia maligna de cavidad nasal"]
[null,null,null,null,null,"Trabajos con madera dura reconocidos como agente cancerígeno, tales como:"]
[null,null,null,1,"6L0101","Fabricación de muebles."]
[null,null,null,2,"6L0102","Trabajos de tala de árboles."]
[null,null,null,3,"6L0103","Trabajos en aserraderos."]
[null,null,null,4,"6L0104","Triturado de la madera en la industria del papel."]
[null,null,null,5,"6L0105","Modelistas de madera."]
[null,null,null,6,"6L0106","Prensado de madera."]
[null,null,null,7,"6L0107","Mecanizado y montaje de piezas de madera."]
[null,null,null,8,"6L0108","Trabajos de acabado de productos de madera, contrachapado y aglomerado."]
[null,null,null,9,"6L0109","Lijado de parqué, tarima, etc."]
[null,"M",null,null,null,"Radón"]
[null,null,1,null,null,"Neoplasia maligna de bronquio y pulmón"]
[null,null,null,1,"6M0101","Minería subterránea, procesos con productos de la cadena radiactiva de origen natural del Uranio-238 precursores del Radón-222."]
[null,"N",null,null,null,"Radiación ionizante"]
[null,null,1,null,null,"Síndromes linfo y mieloproliferativos"]
[null,null,null,null,null,"Todos los trabajos expuestos a la acción de los rayos X o de las sustancias radiactivas naturales o artificiales o a cualquier fuente de emisión corpuscular, y especialmente:"]
[null,null,null,1,"6N0101","Trabajos de extracción y tratamiento de minerales radiactivos."]
[null,null,null,2,"6N0102","Fabricación de aparatos de rayos X y de radioterapia."]
[null,null,null,3,"6N0103","Fabricación de productos químicos y farmacéuticos radiactivos."]
[null,null,null,4,"6N0104","Empleo de sustancias radiactivas y rayos X en los laboratorios de investigación."]
[null,null,null,5,"6N0105","Fabricación y aplicación de productos luminosos con sustancias radiactivas en pinturas de esferas de relojería."]
[null,null,null,6,"6N0206","Trabajos industriales en que se utilicen rayos X y materiales radiactivos, medidas de espesor y de desgaste."]
[null,null,null,7,"6N0107","Trabajos en las consultas de radiodiagnóstico, de radio y radioterapia y de aplicación de isótopos radiactivos, en consultas, clínicas, sanatorios, residencias y hospitales."]
[null,null,null,8,"6N0108","Conservación de alimentos por radiaciones ionizantes."]
[null,null,null,9,"6N0109","Reactores de investigación y centrales nucleares."]
[null,null,null,10,"6N0110","Instalaciones de producción y tratamiento de radioelementos o isótopos radiactivos."]
[null,null,null,11,"6N0111","Fabrica de enriquecimiento de combustibles nucleares."]
[null,null,null,12,"6N0112","Instalaciones de tratamiento y almacenamiento de residuos radiactivos."]
[null,null,null,13,"6N0113","Transporte de materias radiactivas."]
[null,null,null,14,"6N0114","Aceleradores de partículas, fuentes de gammagrafía, bombas de cobalto, etc."]
[null,null,2,null,null,"Carcinoma epidermoide de piel"]
[null,null,null,null,null,"Todos los trabajos expuestos a la acción de los rayos X o de las sustancias radiactivas naturales o artificiales o a cualquier fuente de emisión corpuscular, y especialmente:"]
[null,null,null,1,"6N0201","Trabajos de extracción y tratamiento de minerales radiactivos."]
[null,null,null,2,"6N0202","Fabricación de aparatos de rayos X y de radioterapia."]
[null,null,null,3,"6N0203","Fabricación de productos químicos y farmacéuticos radiactivos."]
[null,null,null,4,"6N0204","Empleo de sustancias radiactivas y rayos X en los laboratorios de investigación."]
[null,null,null,5,"6N0205","Fabricación y aplicación de productos luminosos con sustancias radiactivas en pinturas de esferas de relojería."]
[null,null,null,6,"6N0206","Trabajos industriales en que se utilicen rayos X y materiales radiactivos, medidas de espesor y de desgaste."]
[null,null,null,7,"6N0207","Trabajos en las consultas de radiodiagnóstico, de radio y radioterapia y de aplicación de isótopos radiactivos, en consultas, clínicas, sanatorios, residencias y hospitales."]
[null,null,null,8,"6N0208","Conservación de alimentos por radiaciones ionizantes."]
[null,null,null,9,"6N0209","Reactores de investigación y centrales nucleares."]
[null,null,null,10,"6N0210","Instalaciones de producción y tratamiento de radioelementos o isótopos radiactivos."]
[null,null,null,11,"6N0211","Fabrica de enriquecimiento de combustibles nucleares."]
[null,null,null,12,"6N0212","Instalaciones de tratamiento y almacenamiento de residuos radiactivos."]
[null,null,null,13,"6N0213","Transporte de materias radiactivas."]
[null,null,null,14,"6N0214","Aceleradores de partículas, fuentes de gammagrafía, bombas de cobalto, etc."]
[null,"O",null,null,null,"Aminas (primarias, secundarias, terciarias, heterocíclicas) e hidracinas aromáticas y sus derivados halógenos, fenólicos, nitrosados, nitrados y sulfonados"]
[null,null,1,null,null,"Cáncer versical"]
[null,null,null,1,"6O0101","Fabricación de estas sustancias y su utilización como productos intermediarios en la industria de colorantes sintéticos y en numerosas síntesis orgánicas, en la industria química, en la industria de insecticidas, en la industria farmacéutica, etc."]
[null,null,null,2,"6O0102","Fabricación y utilización de derivados utilizados como aceleradores y como antioxidantes en la industria del caucho."]
[null,null,null,3,"6O0103","Fabricación de ciertos explosivos."]
[null,null,null,4,"6O0104","Utilización como colorantes en la industria del cuero, de pieles del calzado, de productos capilares, etc., así como en papelería y en productos de peluquería."]
[null,null,null,5,"6O0105","Utilización de reveladores (para-aminofenoles) en la industria fotográfica."]
[null,"P",null,null,null,"Nitrobenceno"]
[null,null,1,null,null,"Linfoma"]
[null,null,null,1,"6P0101","Utilización como disolventes."]
[null,null,null,2,"6P0102","Producción de colorantes, pigmentos, tintes."]
[null,null,null,3,"6P0103","Fabricación de explosivos."]
[null,null,null,4,"6P0104","Industria farmacéutica y cosmética."]
[null,null,null,5,"6P0105","Industria del plástico."]
[null,null,null,6,"6P0106","Utilización como pesticidas."]
[null,null,null,7,"6P0107","Utilización en la industria textil, química, del papel."]
[null,null,null,8,"6P0108","Utilización en laboratorios."]
[null,null,null,9,"6P0109","Utilización de nitrobenceno como enmascarador de olores."]
[null,null,null,10,"6P0110","Utilización de dinitrobenceno en la producción de celuloide, etc."]
[null,"Q",1,null,null,"Ácido cianhídrico, cianuros, compuestos de cianógeno y acrilonitrilos"]
[null,null,null,1,"6Q0101","Preparación de ácido cianhídrico líquido, cianuros, ferrocianuros y otros derivados."]
[null,null,null,2,"6Q0102","Utilización del ácido cianhídrico gaseoso en la lucha contra los insectos parásitos en agricultura y contra los roedores."]
[null,null,null,3,"6Q0103","Obtención de metales preciosos (oro y plata) por cianuración."]
[null,null,null,4,"6Q0104","Fabricación de joyas."]
[null,null,null,5,"6Q0105","Empleo de cianuro en las operaciones de galvanoplastia (niquelado, cadmiado, cobrizado, etc.)."]
[null,null,null,6,"6Q0106","Tratamiento térmico de piezas metálicas."]
[null,null,null,7,"6Q0107","Fabricación de «plexiglás» (acetonacianhidrina)."]
[null,null,null,8,"6Q0108","Utilización de acrilonitrilo como pesticida."]
[null,null,null,9,"6Q0109","Fabricación y manipulación de cianamida cálcica y su utilización como abono."]
[null,null,null,10,"6Q0110","Producción de acrilatos, sales de amonio, cianógeno, y otras sustancias químicas de síntesis."]
[null,null,null,11,"6Q0111","Fabricación de limpia metales."]
[null,null,null,12,"6Q0112","Fabricación de colorantes, pigmentos plásticos y fibras sintéticas."]
[null,null,null,13,"6Q0113","Emisiones gaseosas en los altos hornos, hornos de coque o combustión de espumas de poliuretano."]
[null,null,null,14,"6Q0114","Uso en laboratorio."]

{"sheet":"Anexo PANOTRATSS","index":35,"n_rows":72,"n_cols":3,"rows_kept":72,"cut":false,"hidden":false,"merged":[]}
["Volver índice"]
[]
["Código",null,"Descripción Categoria"]
[]
[1,null,"01. Enfermedades infecciosas y parasitarias "]
[2,null,"02. Neoplasias"]
[3,null,"03. Enfermedades de la sangre y del sistema inmunológico "]
[4,null,"04. Enfermedades endocrinas "]
[5,null,"05. Desórdenes mentales "]
[6,null,"06. Enfermedades del sistema nervioso central y periférico "]
[7,null,"07. Enfermedades de los sentidos "]
[9,null,"09. Enfermedades del sistema cardiocirculatorio "]
[10,null,"10. Enfermedades del sistema respiratorio "]
[11,null,"11. Enfermedades del sistema digestivo "]
[12,null,"12. Enfermedades de la piel"]
[13,null,"13. Enfermedades del aparato locomotor "]
[14,null,"14. Enfermedades del sistema genitourinario "]
[18,null,"18. n Otros síntomas y observaciones clínicas o de laboratorio anormales no clasificados en otras parte"]
[19,null,"19. Lesiones, heridas, intoxicaciones y otros factores externos "]
[23,null,"23. Factores que afectan el estado sanitario "]
[]
["Código",null,"Descripción Enfermedad"]
[]
[1,"b","Otras enfermedades víricas"]
[1,"n","Otras enfermedades infecciosas y parasitarias"]
[2,"n","Neoplasías"]
[3,"a","Coagulopatías y otras enfermedades de la sangre y órganos relacionados"]
[3,"n","Otras enfermedades de la sangre y del sistema inmunológico"]
[4,"a","Trastornos del metabolismo"]
[4,"n","Otras enfermedades endocrinas"]
[5,"a ","Desordenes afectivos"]
[5,"b","Trastornos fóbicos y neuróticos"]
[5,"n","Otros desórdenes mentales"]
[6,"a","Enfermedades agudas del sistema nervioso central"]
[6,"e","Trastornos localizados de los nervios"]
[6,"f","Neuropatías y polineuropatías"]
[7,"a","Alteraciones de la visión y ceguera"]
[7,"b","Afecciones de la conjuntiva"]
[7,"c","Afecciones de la esclerótida, córnea, iris y cuerpos ciliares."]
[7,"e","Afecciones del interior del ojo y de la retina"]
[7,"h","Alteraciones de la visión y ceguera"]
[7,"i","Enfermedades del oido medio"]
[7,"j","Enfermedades del odio interno"]
[7,"k","Otras enfermedades del oido"]
[7,"n","Otras enfermedades de los sentidos"]
[9,"a","Enfermedad cardíaca isquémica"]
[9,"b","Enfermedades de la circulación pulmonar"]
[9,"c","Otras enfermedades cardíacas"]
[9,"d","Enfermedades de la circulación cerebral"]
[9,"e","Enfermedades de las venas y de los vasos linfáticos"]
[9,"f","Otras enfermedades del sistema circulatorio"]
[10,"a","Enfermedades infecciosas del tracto respiratorio superior"]
[10,"b","Otras enfermedades de las vías respiratorias altas"]
[10,"c","Enfermedades crónicas de las vías respiratorias"]
[10,"d","Enfermedades pulmonares debidas a sustancias extrañas"]
[10,"e","Otras enfermedades de la pleura"]
[11,"a","Enfermedades de la boca y de los dientes"]
[11,"b","Hernias"]
[11,"n","Otras enfermedades del sistema digestivo"]
[12,"a","Infecciones de la piel y subcutáneas"]
[12,"e","Urticaria y eritema"]
[12,"f","Enfermedades de la piel y subcutáneas debidas a agentes externos"]
[12,"g","Enfermedades de los órganos accesorios de la piel"]
[12,"h","Otras enfermedades de la piel"]
[13,"c","Enfermedades de la columna vertebral y de la espalda"]
[13,"e","Osteopatías y condropatías"]
[13,"n","Otras enfermedades del aparato locomotor"]
[14,"a","Enfermedades del aparato genital masculino. Enfermedades renales"]
[18,"n","Otros sintomas y observaciones clínicas o de laboratorio anormales n.c.e.o.p."]
[19,"c","Lesiones por otras causas externas"]
[19,"n","Otras lesiones, heridas, intoxicaciones y otros factores externos"]
[23,"a","Exámenes en personas potencialmente expuestas a enfermedades infecciosas o parasitarias"]